Body Name,Body,Date,Department,Beneficiary,Summary of Purpose (SeRCOP),Amount SUM,Merchant Code,Transaction Number,Supplier ID
Sandwell Metropolitan Borough Council,http://www.sandwell.gov.uk/info/200202/performance_and_spending/1079/payments_over_500,19-Dec-2022, Adult Social Care,BLACK COUNTRY WOMEN'S AID., Adult Social Care,5000.00, Adult Social Care,2323P09_CR00001,164584
Sandwell Metropolitan Borough Council,http://www.sandwell.gov.uk/info/200202/performance_and_spending/1079/payments_over_500,19-Dec-2022, Adult Social Care,BLACK COUNTRY WOMEN'S AID., Adult Social Care,25498.25, Adult Social Care,2323P09_CR00002,164584
Sandwell Metropolitan Borough Council,http://www.sandwell.gov.uk/info/200202/performance_and_spending/1079/payments_over_500,09-Dec-2022,Adults Social Care Capital,AXIS EUROPE PLC ,Adults Social Care Capital,6458.23,Adults Social Care Capital,2323P09_CR00003,64946
Sandwell Metropolitan Borough Council,http://www.sandwell.gov.uk/info/200202/performance_and_spending/1079/payments_over_500,01-Dec-2022,Adults Social Care Capital,AXIS EUROPE PLC ,Adults Social Care Capital,7637.92,Adults Social Care Capital,2323P09_CR00004,64946
Sandwell Metropolitan Borough Council,http://www.sandwell.gov.uk/info/200202/performance_and_spending/1079/payments_over_500,06-Dec-2022,Adults Social Care Capital,AXIS EUROPE PLC ,Adults Social Care Capital,8519.41,Adults Social Care Capital,2323P09_CR00005,64946
Sandwell Metropolitan Borough Council,http://www.sandwell.gov.uk/info/200202/performance_and_spending/1079/payments_over_500,01-Dec-2022,Adults Social Care Capital,DLM BUILDING & MAINTENANCE LTD,Adults Social Care Capital,1168.53,Adults Social Care Capital,2323P09_CR00006,137596
Sandwell Metropolitan Borough Council,http://www.sandwell.gov.uk/info/200202/performance_and_spending/1079/payments_over_500,01-Dec-2022,Adults Social Care Capital,DLM BUILDING & MAINTENANCE LTD,Adults Social Care Capital,5842.66,Adults Social Care Capital,2323P09_CR00007,137596
Sandwell Metropolitan Borough Council,http://www.sandwell.gov.uk/info/200202/performance_and_spending/1079/payments_over_500,09-Dec-2022,Adults Social Care Capital,DOLPHIN LIFTS MIDLANDS LTD,Adults Social Care Capital,1466.66,Adults Social Care Capital,2323P09_CR00008,123852
Sandwell Metropolitan Borough Council,http://www.sandwell.gov.uk/info/200202/performance_and_spending/1079/payments_over_500,07-Dec-2022,Adults Social Care Capital,DOLPHIN LIFTS MIDLANDS LTD,Adults Social Care Capital,2081.20,Adults Social Care Capital,2323P09_CR00009,123852
Sandwell Metropolitan Borough Council,http://www.sandwell.gov.uk/info/200202/performance_and_spending/1079/payments_over_500,06-Dec-2022,Adults Social Care Capital,DOLPHIN LIFTS MIDLANDS LTD,Adults Social Care Capital,2514.00,Adults Social Care Capital,2323P09_CR00010,123852
Sandwell Metropolitan Borough Council,http://www.sandwell.gov.uk/info/200202/performance_and_spending/1079/payments_over_500,01-Dec-2022,Adults Social Care Capital,DOLPHIN LIFTS MIDLANDS LTD,Adults Social Care Capital,3706.60,Adults Social Care Capital,2323P09_CR00011,123852
Sandwell Metropolitan Borough Council,http://www.sandwell.gov.uk/info/200202/performance_and_spending/1079/payments_over_500,01-Dec-2022,Adults Social Care Capital,DOLPHIN LIFTS MIDLANDS LTD,Adults Social Care Capital,5631.66,Adults Social Care Capital,2323P09_CR00012,123852
Sandwell Metropolitan Borough Council,http://www.sandwell.gov.uk/info/200202/performance_and_spending/1079/payments_over_500,01-Dec-2022,Adults Social Care Capital,INNOVA CARE CONCEPTS LTD,Adults Social Care Capital,169307.00,Adults Social Care Capital,2323P09_CR00013,163030
Sandwell Metropolitan Borough Council,http://www.sandwell.gov.uk/info/200202/performance_and_spending/1079/payments_over_500,07-Dec-2022,Adults Social Care Capital,J A BEDWARD & SON ,Adults Social Care Capital,1130.00,Adults Social Care Capital,2323P09_CR00014,77001727
Sandwell Metropolitan Borough Council,http://www.sandwell.gov.uk/info/200202/performance_and_spending/1079/payments_over_500,09-Dec-2022,Adults Social Care Capital,PR PROPERTY MAINTENANCE,Adults Social Care Capital,8214.42,Adults Social Care Capital,2323P09_CR00015,33836
Sandwell Metropolitan Borough Council,http://www.sandwell.gov.uk/info/200202/performance_and_spending/1079/payments_over_500,09-Dec-2022,Adults Social Care Capital,PR PROPERTY MAINTENANCE,Adults Social Care Capital,8293.05,Adults Social Care Capital,2323P09_CR00016,33836
Sandwell Metropolitan Borough Council,http://www.sandwell.gov.uk/info/200202/performance_and_spending/1079/payments_over_500,01-Dec-2022,Adults Social Care Capital,PR PROPERTY MAINTENANCE,Adults Social Care Capital,12806.54,Adults Social Care Capital,2323P09_CR00017,33836
Sandwell Metropolitan Borough Council,http://www.sandwell.gov.uk/info/200202/performance_and_spending/1079/payments_over_500,09-Dec-2022,Adults Social Care Capital,PR PROPERTY MAINTENANCE,Adults Social Care Capital,20865.45,Adults Social Care Capital,2323P09_CR00018,33836
Sandwell Metropolitan Borough Council,http://www.sandwell.gov.uk/info/200202/performance_and_spending/1079/payments_over_500,09-Dec-2022,Adults Social Care Capital,PR PROPERTY MAINTENANCE,Adults Social Care Capital,21779.28,Adults Social Care Capital,2323P09_CR00019,33836
Sandwell Metropolitan Borough Council,http://www.sandwell.gov.uk/info/200202/performance_and_spending/1079/payments_over_500,09-Dec-2022,Adults Social Care Capital,PR PROPERTY MAINTENANCE,Adults Social Care Capital,21931.88,Adults Social Care Capital,2323P09_CR00020,33836
Sandwell Metropolitan Borough Council,http://www.sandwell.gov.uk/info/200202/performance_and_spending/1079/payments_over_500,01-Dec-2022,Adults Social Care Capital,PROFILE SECURITY SERVICES LTD,Adults Social Care Capital,3264.00,Adults Social Care Capital,2323P09_CR00021,131253
Sandwell Metropolitan Borough Council,http://www.sandwell.gov.uk/info/200202/performance_and_spending/1079/payments_over_500,01-Dec-2022,Adults Social Care Capital,TERRY GROUP LIMITED,Adults Social Care Capital,12142.00,Adults Social Care Capital,2323P09_CR00022,77002029
Sandwell Metropolitan Borough Council,http://www.sandwell.gov.uk/info/200202/performance_and_spending/1079/payments_over_500,01-Dec-2022,Adults Social Care Capital,VINCI CONSTRUCTION LTD,Adults Social Care Capital,4774.70,Adults Social Care Capital,2323P09_CR00023,36361
Sandwell Metropolitan Borough Council,http://www.sandwell.gov.uk/info/200202/performance_and_spending/1079/payments_over_500,01-Dec-2022,Adults Social Care Capital,VINCI CONSTRUCTION LTD,Adults Social Care Capital,5232.35,Adults Social Care Capital,2323P09_CR00024,36361
Sandwell Metropolitan Borough Council,http://www.sandwell.gov.uk/info/200202/performance_and_spending/1079/payments_over_500,01-Dec-2022,Adults Social Care Capital,WILLMOTT DIXON CONSTRUCTION LIMITED,Adults Social Care Capital,3703.72,Adults Social Care Capital,2323P09_CR00025,34081
Sandwell Metropolitan Borough Council,http://www.sandwell.gov.uk/info/200202/performance_and_spending/1079/payments_over_500,01-Dec-2022,Adults Social Care Capital,HOME DESIGN,Adults Social Care Capital,6596.00,Adults Social Care Capital,2323P09_CR00026,141847
Sandwell Metropolitan Borough Council,http://www.sandwell.gov.uk/info/200202/performance_and_spending/1079/payments_over_500,01-Dec-2022,Adults Social Care Capital,SPECTOR DESIGN LTD,Adults Social Care Capital,7300.00,Adults Social Care Capital,2323P09_CR00027,134898
Sandwell Metropolitan Borough Council,http://www.sandwell.gov.uk/info/200202/performance_and_spending/1079/payments_over_500,05-Dec-2022,Adults Social Care Capital,R J WISHART,Adults Social Care Capital,25000.00,Adults Social Care Capital,2323P09_CR00028,08555927
Sandwell Metropolitan Borough Council,http://www.sandwell.gov.uk/info/200202/performance_and_spending/1079/payments_over_500,01-Dec-2022,Childrens Services,TOTALENERGIES GAS & POWER LTD,Childrens Services,-2697.31,Childrens Services,2323P09_CR00029,107605
Sandwell Metropolitan Borough Council,http://www.sandwell.gov.uk/info/200202/performance_and_spending/1079/payments_over_500,07-Dec-2022,Childrens Services,TOTALENERGIES GAS & POWER LTD,Childrens Services,-1098.15,Childrens Services,2323P09_CR00030,107605
Sandwell Metropolitan Borough Council,http://www.sandwell.gov.uk/info/200202/performance_and_spending/1079/payments_over_500,07-Dec-2022,Childrens Services,TOTALENERGIES GAS & POWER LTD,Childrens Services,-1063.79,Childrens Services,2323P09_CR00031,107605
Sandwell Metropolitan Borough Council,http://www.sandwell.gov.uk/info/200202/performance_and_spending/1079/payments_over_500,07-Dec-2022,Childrens Services,TOTALENERGIES GAS & POWER LTD,Childrens Services,-745.60,Childrens Services,2323P09_CR00032,107605
Sandwell Metropolitan Borough Council,http://www.sandwell.gov.uk/info/200202/performance_and_spending/1079/payments_over_500,01-Dec-2022,Childrens Services,TOTALENERGIES GAS & POWER LTD,Childrens Services,-656.08,Childrens Services,2323P09_CR00033,107605
Sandwell Metropolitan Borough Council,http://www.sandwell.gov.uk/info/200202/performance_and_spending/1079/payments_over_500,07-Dec-2022,Childrens Services,TOTALENERGIES GAS & POWER LTD,Childrens Services,-607.38,Childrens Services,2323P09_CR00034,107605
Sandwell Metropolitan Borough Council,http://www.sandwell.gov.uk/info/200202/performance_and_spending/1079/payments_over_500,07-Dec-2022,Childrens Services,TOTALENERGIES GAS & POWER LTD,Childrens Services,-600.61,Childrens Services,2323P09_CR00035,107605
Sandwell Metropolitan Borough Council,http://www.sandwell.gov.uk/info/200202/performance_and_spending/1079/payments_over_500,01-Dec-2022,Childrens Services,WEST BROMWICH ALBION FC LTD,Childrens Services,-1088.40,Childrens Services,2323P09_CR00036,01606624
Sandwell Metropolitan Borough Council,http://www.sandwell.gov.uk/info/200202/performance_and_spending/1079/payments_over_500,12-Dec-2022,Childrens Services,ABIGAIL D'AMORE ASSOCIATES,Childrens Services,4900.00,Childrens Services,2323P09_CR00037,162300
Sandwell Metropolitan Borough Council,http://www.sandwell.gov.uk/info/200202/performance_and_spending/1079/payments_over_500,09-Dec-2022,Childrens Services,AMP BIOMASS FUEL LTD T/A AMP CLEAN ENERGY,Childrens Services,5778.70,Childrens Services,2323P09_CR00038,128761
Sandwell Metropolitan Borough Council,http://www.sandwell.gov.uk/info/200202/performance_and_spending/1079/payments_over_500,12-Dec-2022,Childrens Services,APD PRINT & DESIGN,Childrens Services,2390.00,Childrens Services,2323P09_CR00039,49454
Sandwell Metropolitan Borough Council,http://www.sandwell.gov.uk/info/200202/performance_and_spending/1079/payments_over_500,18-Dec-2022,Childrens Services,BANGLADESHI WOMEN'S ASSOCIATION LIMITED,Childrens Services,1707.75,Childrens Services,2323P09_CR00040,69648
Sandwell Metropolitan Borough Council,http://www.sandwell.gov.uk/info/200202/performance_and_spending/1079/payments_over_500,01-Dec-2022,Childrens Services,BANGLADESHI WOMEN'S ASSOCIATION LIMITED,Childrens Services,3066.61,Childrens Services,2323P09_CR00041,69648
Sandwell Metropolitan Borough Council,http://www.sandwell.gov.uk/info/200202/performance_and_spending/1079/payments_over_500,12-Dec-2022,Childrens Services,BEST WEB JOBS LTD,Childrens Services,2000.00,Childrens Services,2323P09_CR00042,125874
Sandwell Metropolitan Borough Council,http://www.sandwell.gov.uk/info/200202/performance_and_spending/1079/payments_over_500,01-Dec-2022,Childrens Services,BKSB LIMITED,Childrens Services,592.20,Childrens Services,2323P09_CR00043,21062
Sandwell Metropolitan Borough Council,http://www.sandwell.gov.uk/info/200202/performance_and_spending/1079/payments_over_500,01-Dec-2022,Childrens Services,BLAKEMORE FOOD SERVICE LTD,Childrens Services,798.03,Childrens Services,2323P09_CR00044,2518
Sandwell Metropolitan Borough Council,http://www.sandwell.gov.uk/info/200202/performance_and_spending/1079/payments_over_500,16-Dec-2022,Childrens Services,BOSTIN CREATIVE ARTS AND THEATRE LTD,Childrens Services,2000.00,Childrens Services,2323P09_CR00045,162821
Sandwell Metropolitan Borough Council,http://www.sandwell.gov.uk/info/200202/performance_and_spending/1079/payments_over_500,01-Dec-2022,Childrens Services,BRUSHSTROKES,Childrens Services,839.67,Childrens Services,2323P09_CR00046,21029374
Sandwell Metropolitan Borough Council,http://www.sandwell.gov.uk/info/200202/performance_and_spending/1079/payments_over_500,20-Dec-2022,Childrens Services,BUFFET EXPRESS,Childrens Services,548.00,Childrens Services,2323P09_CR00047,01730518
Sandwell Metropolitan Borough Council,http://www.sandwell.gov.uk/info/200202/performance_and_spending/1079/payments_over_500,01-Dec-2022,Childrens Services,CASTELL HOWELL FOODS LTD,Childrens Services,508.25,Childrens Services,2323P09_CR00048,163660
Sandwell Metropolitan Borough Council,http://www.sandwell.gov.uk/info/200202/performance_and_spending/1079/payments_over_500,06-Dec-2022,Childrens Services,CERTAS ENERGY LIMITED,Childrens Services,985.00,Childrens Services,2323P09_CR00049,80421
Sandwell Metropolitan Borough Council,http://www.sandwell.gov.uk/info/200202/performance_and_spending/1079/payments_over_500,15-Dec-2022,Childrens Services,CITY & GUILDS,Childrens Services,1056.65,Childrens Services,2323P09_CR00050,01463013
Sandwell Metropolitan Borough Council,http://www.sandwell.gov.uk/info/200202/performance_and_spending/1079/payments_over_500,07-Dec-2022,Childrens Services,CLB MUSIC SERVICES LTD,Childrens Services,720.00,Childrens Services,2323P09_CR00051,163924
Sandwell Metropolitan Borough Council,http://www.sandwell.gov.uk/info/200202/performance_and_spending/1079/payments_over_500,07-Dec-2022,Childrens Services,CLB MUSIC SERVICES LTD,Childrens Services,720.00,Childrens Services,2323P09_CR00052,163924
Sandwell Metropolitan Borough Council,http://www.sandwell.gov.uk/info/200202/performance_and_spending/1079/payments_over_500,01-Dec-2022,Childrens Services,CONFEDERATION OF BANGLADESHI ORGANISATIONS (CBO) LIMITED,Childrens Services,772.60,Childrens Services,2323P09_CR00053,10034
Sandwell Metropolitan Borough Council,http://www.sandwell.gov.uk/info/200202/performance_and_spending/1079/payments_over_500,01-Dec-2022,Childrens Services,COUNTY CARS (2003) LIMITED,Childrens Services,13949.56,Childrens Services,2323P09_CR00054,06002387
Sandwell Metropolitan Borough Council,http://www.sandwell.gov.uk/info/200202/performance_and_spending/1079/payments_over_500,01-Dec-2022,Childrens Services,COUNTY CARS (2003) LIMITED,Childrens Services,13949.56,Childrens Services,2323P09_CR00055,06002387
Sandwell Metropolitan Borough Council,http://www.sandwell.gov.uk/info/200202/performance_and_spending/1079/payments_over_500,01-Dec-2022,Childrens Services,COUNTY CARS (2003) LIMITED,Childrens Services,88035.02,Childrens Services,2323P09_CR00056,06002387
Sandwell Metropolitan Borough Council,http://www.sandwell.gov.uk/info/200202/performance_and_spending/1079/payments_over_500,01-Dec-2022,Childrens Services,COUNTY CARS (2003) LIMITED,Childrens Services,160214.44,Childrens Services,2323P09_CR00057,06002387
Sandwell Metropolitan Borough Council,http://www.sandwell.gov.uk/info/200202/performance_and_spending/1079/payments_over_500,01-Dec-2022,Childrens Services,COUNTY CARS (2003) LIMITED,Childrens Services,203800.91,Childrens Services,2323P09_CR00058,06002387
Sandwell Metropolitan Borough Council,http://www.sandwell.gov.uk/info/200202/performance_and_spending/1079/payments_over_500,01-Dec-2022,Childrens Services,COUNTY CARS (2003) LIMITED,Childrens Services,231128.25,Childrens Services,2323P09_CR00059,06002387
Sandwell Metropolitan Borough Council,http://www.sandwell.gov.uk/info/200202/performance_and_spending/1079/payments_over_500,01-Dec-2022,Childrens Services,DIGBETH DINING CLUB CIC,Childrens Services,2250.00,Childrens Services,2323P09_CR00060,153646
Sandwell Metropolitan Borough Council,http://www.sandwell.gov.uk/info/200202/performance_and_spending/1079/payments_over_500,01-Dec-2022,Childrens Services,DIGBETH DINING CLUB CIC,Childrens Services,2500.00,Childrens Services,2323P09_CR00061,153646
Sandwell Metropolitan Borough Council,http://www.sandwell.gov.uk/info/200202/performance_and_spending/1079/payments_over_500,01-Dec-2022,Childrens Services,DROACH TRAVEL LTD,Childrens Services,119665.46,Childrens Services,2323P09_CR00062,06002707
Sandwell Metropolitan Borough Council,http://www.sandwell.gov.uk/info/200202/performance_and_spending/1079/payments_over_500,07-Dec-2022,Childrens Services,DRYWALL STEEL SECTIONS LTD,Childrens Services,1085.21,Childrens Services,2323P09_CR00063,132994
Sandwell Metropolitan Borough Council,http://www.sandwell.gov.uk/info/200202/performance_and_spending/1079/payments_over_500,01-Dec-2022,Childrens Services,EGANS COACH TRAVEL LTD T/A KINGS NORTON COACHES,Childrens Services,83906.01,Childrens Services,2323P09_CR00064,164676
Sandwell Metropolitan Borough Council,http://www.sandwell.gov.uk/info/200202/performance_and_spending/1079/payments_over_500,01-Dec-2022,Childrens Services,EGANS COACH TRAVEL LTD T/A KINGS NORTON COACHES,Childrens Services,86957.66,Childrens Services,2323P09_CR00065,164676
Sandwell Metropolitan Borough Council,http://www.sandwell.gov.uk/info/200202/performance_and_spending/1079/payments_over_500,01-Dec-2022,Childrens Services,EGANS COACH TRAVEL LTD T/A KINGS NORTON COACHES,Childrens Services,127452.90,Childrens Services,2323P09_CR00066,164676
Sandwell Metropolitan Borough Council,http://www.sandwell.gov.uk/info/200202/performance_and_spending/1079/payments_over_500,01-Dec-2022,Childrens Services,EON NEXT ENERGY LTD,Childrens Services,848.45,Childrens Services,2323P09_CR00067,149566
Sandwell Metropolitan Borough Council,http://www.sandwell.gov.uk/info/200202/performance_and_spending/1079/payments_over_500,01-Dec-2022,Childrens Services,EURO SHAF TRAINING SERVICES LIMITED,Childrens Services,875.00,Childrens Services,2323P09_CR00068,76260
Sandwell Metropolitan Borough Council,http://www.sandwell.gov.uk/info/200202/performance_and_spending/1079/payments_over_500,01-Dec-2022,Childrens Services,FUEL CARD SERVICES LIMITED,Childrens Services,549.25,Childrens Services,2323P09_CR00069,113072
Sandwell Metropolitan Borough Council,http://www.sandwell.gov.uk/info/200202/performance_and_spending/1079/payments_over_500,16-Dec-2022,Childrens Services,FUTURE FIRST INDEPENDENT SCHOOL,Childrens Services,1740.00,Childrens Services,2323P09_CR00070,106165
Sandwell Metropolitan Borough Council,http://www.sandwell.gov.uk/info/200202/performance_and_spending/1079/payments_over_500,16-Dec-2022,Childrens Services,FUTURE FIRST INDEPENDENT SCHOOL,Childrens Services,1740.00,Childrens Services,2323P09_CR00071,106165
Sandwell Metropolitan Borough Council,http://www.sandwell.gov.uk/info/200202/performance_and_spending/1079/payments_over_500,01-Dec-2022,Childrens Services,GL EDUCATION GROUP LIMITED,Childrens Services,5348.66,Childrens Services,2323P09_CR00072,01447883
Sandwell Metropolitan Borough Council,http://www.sandwell.gov.uk/info/200202/performance_and_spending/1079/payments_over_500,01-Dec-2022,Childrens Services,GREEN DESTINATIONS LTD,Childrens Services,101504.92,Childrens Services,2323P09_CR00073,109275
Sandwell Metropolitan Borough Council,http://www.sandwell.gov.uk/info/200202/performance_and_spending/1079/payments_over_500,01-Dec-2022,Childrens Services,GREEN DESTINATIONS LTD,Childrens Services,105003.02,Childrens Services,2323P09_CR00074,109275
Sandwell Metropolitan Borough Council,http://www.sandwell.gov.uk/info/200202/performance_and_spending/1079/payments_over_500,01-Dec-2022,Childrens Services,HER MAJESTYS PRISON AND PROBATION SERVICE,Childrens Services,2568.00,Childrens Services,2323P09_CR00075,134815
Sandwell Metropolitan Borough Council,http://www.sandwell.gov.uk/info/200202/performance_and_spending/1079/payments_over_500,01-Dec-2022,Childrens Services,HER MAJESTYS PRISON AND PROBATION SERVICE,Childrens Services,3991.00,Childrens Services,2323P09_CR00076,134815
Sandwell Metropolitan Borough Council,http://www.sandwell.gov.uk/info/200202/performance_and_spending/1079/payments_over_500,01-Dec-2022,Childrens Services,HER MAJESTYS PRISON AND PROBATION SERVICE,Childrens Services,8289.00,Childrens Services,2323P09_CR00077,134815
Sandwell Metropolitan Borough Council,http://www.sandwell.gov.uk/info/200202/performance_and_spending/1079/payments_over_500,01-Dec-2022,Childrens Services,HER MAJESTYS PRISON AND PROBATION SERVICE,Childrens Services,9517.00,Childrens Services,2323P09_CR00078,134815
Sandwell Metropolitan Borough Council,http://www.sandwell.gov.uk/info/200202/performance_and_spending/1079/payments_over_500,01-Dec-2022,Childrens Services,HER MAJESTYS PRISON AND PROBATION SERVICE,Childrens Services,9517.00,Childrens Services,2323P09_CR00079,134815
Sandwell Metropolitan Borough Council,http://www.sandwell.gov.uk/info/200202/performance_and_spending/1079/payments_over_500,01-Dec-2022,Childrens Services,HER MAJESTYS PRISON AND PROBATION SERVICE,Childrens Services,23870.00,Childrens Services,2323P09_CR00080,134815
Sandwell Metropolitan Borough Council,http://www.sandwell.gov.uk/info/200202/performance_and_spending/1079/payments_over_500,19-Dec-2022,Childrens Services,IDEAL FOR ALL LIMITED,Childrens Services,4612.51,Childrens Services,2323P09_CR00081,01678484
Sandwell Metropolitan Borough Council,http://www.sandwell.gov.uk/info/200202/performance_and_spending/1079/payments_over_500,01-Dec-2022,Childrens Services,INGESTRE ORANGERY AND GARDENS,Childrens Services,650.00,Childrens Services,2323P09_CR00082,127331
Sandwell Metropolitan Borough Council,http://www.sandwell.gov.uk/info/200202/performance_and_spending/1079/payments_over_500,01-Dec-2022,Childrens Services,IRON MAIDENS COMMERCIAL LAUNDRY LIMITED,Childrens Services,804.30,Childrens Services,2323P09_CR00083,124628
Sandwell Metropolitan Borough Council,http://www.sandwell.gov.uk/info/200202/performance_and_spending/1079/payments_over_500,01-Dec-2022,Childrens Services,JUST STRAIGHT TALK,Childrens Services,3287.10,Childrens Services,2323P09_CR00084,163039
Sandwell Metropolitan Borough Council,http://www.sandwell.gov.uk/info/200202/performance_and_spending/1079/payments_over_500,16-Dec-2022,Childrens Services,KANCHEN KUMARI T/A KREATIVE CONSULTANCY,Childrens Services,4054.94,Childrens Services,2323P09_CR00085,112641
Sandwell Metropolitan Borough Council,http://www.sandwell.gov.uk/info/200202/performance_and_spending/1079/payments_over_500,12-Dec-2022,Childrens Services,LEARNING INTO EMPLOYMENT ACADEMY LTD,Childrens Services,1242.99,Childrens Services,2323P09_CR00086,147427
Sandwell Metropolitan Borough Council,http://www.sandwell.gov.uk/info/200202/performance_and_spending/1079/payments_over_500,07-Dec-2022,Childrens Services,LEARNPLAY FOUNDATION LTD,Childrens Services,1053.98,Childrens Services,2323P09_CR00087,86525
Sandwell Metropolitan Borough Council,http://www.sandwell.gov.uk/info/200202/performance_and_spending/1079/payments_over_500,01-Dec-2022,Childrens Services,LEARNPLAY FOUNDATION LTD,Childrens Services,1783.65,Childrens Services,2323P09_CR00088,86525
Sandwell Metropolitan Borough Council,http://www.sandwell.gov.uk/info/200202/performance_and_spending/1079/payments_over_500,01-Dec-2022,Childrens Services,LEARNPLAY FOUNDATION LTD,Childrens Services,2594.75,Childrens Services,2323P09_CR00089,86525
Sandwell Metropolitan Borough Council,http://www.sandwell.gov.uk/info/200202/performance_and_spending/1079/payments_over_500,16-Dec-2022,Childrens Services,MERCURIAL DANCE LTD,Childrens Services,1575.00,Childrens Services,2323P09_CR00090,159482
Sandwell Metropolitan Borough Council,http://www.sandwell.gov.uk/info/200202/performance_and_spending/1079/payments_over_500,01-Dec-2022,Childrens Services,NCFE,Childrens Services,1459.75,Childrens Services,2323P09_CR00091,6230
Sandwell Metropolitan Borough Council,http://www.sandwell.gov.uk/info/200202/performance_and_spending/1079/payments_over_500,01-Dec-2022,Childrens Services,NEW BEGINNINGS COMMUNITY,Childrens Services,500.00,Childrens Services,2323P09_CR00092,155886
Sandwell Metropolitan Borough Council,http://www.sandwell.gov.uk/info/200202/performance_and_spending/1079/payments_over_500,07-Dec-2022,Childrens Services,NEW BEGINNINGS COMMUNITY,Childrens Services,700.00,Childrens Services,2323P09_CR00093,155886
Sandwell Metropolitan Borough Council,http://www.sandwell.gov.uk/info/200202/performance_and_spending/1079/payments_over_500,07-Dec-2022,Childrens Services,NEW BEGINNINGS COMMUNITY,Childrens Services,700.00,Childrens Services,2323P09_CR00094,155886
Sandwell Metropolitan Borough Council,http://www.sandwell.gov.uk/info/200202/performance_and_spending/1079/payments_over_500,07-Dec-2022,Childrens Services,NEW BEGINNINGS COMMUNITY,Childrens Services,700.00,Childrens Services,2323P09_CR00095,155886
Sandwell Metropolitan Borough Council,http://www.sandwell.gov.uk/info/200202/performance_and_spending/1079/payments_over_500,01-Dec-2022,Childrens Services,NEW BEGINNINGS COMMUNITY,Childrens Services,700.00,Childrens Services,2323P09_CR00096,155886
Sandwell Metropolitan Borough Council,http://www.sandwell.gov.uk/info/200202/performance_and_spending/1079/payments_over_500,11-Dec-2022,Childrens Services,NEWAVE LTD,Childrens Services,597.84,Childrens Services,2323P09_CR00097,101666
Sandwell Metropolitan Borough Council,http://www.sandwell.gov.uk/info/200202/performance_and_spending/1079/payments_over_500,11-Dec-2022,Childrens Services,NEWAVE LTD,Childrens Services,905.95,Childrens Services,2323P09_CR00098,101666
Sandwell Metropolitan Borough Council,http://www.sandwell.gov.uk/info/200202/performance_and_spending/1079/payments_over_500,15-Dec-2022,Childrens Services,NEWAVE LTD,Childrens Services,972.00,Childrens Services,2323P09_CR00099,101666
Sandwell Metropolitan Borough Council,http://www.sandwell.gov.uk/info/200202/performance_and_spending/1079/payments_over_500,15-Dec-2022,Childrens Services,NEWAVE LTD,Childrens Services,1071.01,Childrens Services,2323P09_CR00100,101666
Sandwell Metropolitan Borough Council,http://www.sandwell.gov.uk/info/200202/performance_and_spending/1079/payments_over_500,15-Dec-2022,Childrens Services,NEWAVE LTD,Childrens Services,1176.00,Childrens Services,2323P09_CR00101,101666
Sandwell Metropolitan Borough Council,http://www.sandwell.gov.uk/info/200202/performance_and_spending/1079/payments_over_500,11-Dec-2022,Childrens Services,NEWAVE LTD,Childrens Services,1705.48,Childrens Services,2323P09_CR00102,101666
Sandwell Metropolitan Borough Council,http://www.sandwell.gov.uk/info/200202/performance_and_spending/1079/payments_over_500,11-Dec-2022,Childrens Services,NEWAVE LTD,Childrens Services,1830.48,Childrens Services,2323P09_CR00103,101666
Sandwell Metropolitan Borough Council,http://www.sandwell.gov.uk/info/200202/performance_and_spending/1079/payments_over_500,11-Dec-2022,Childrens Services,NEWAVE LTD,Childrens Services,1830.48,Childrens Services,2323P09_CR00104,101666
Sandwell Metropolitan Borough Council,http://www.sandwell.gov.uk/info/200202/performance_and_spending/1079/payments_over_500,11-Dec-2022,Childrens Services,NEWAVE LTD,Childrens Services,2705.48,Childrens Services,2323P09_CR00105,101666
Sandwell Metropolitan Borough Council,http://www.sandwell.gov.uk/info/200202/performance_and_spending/1079/payments_over_500,01-Dec-2022,Childrens Services,NORTH BIRMINGHAM TRAVEL LTD,Childrens Services,82257.95,Childrens Services,2323P09_CR00106,72112
Sandwell Metropolitan Borough Council,http://www.sandwell.gov.uk/info/200202/performance_and_spending/1079/payments_over_500,01-Dec-2022,Childrens Services,NORTH BIRMINGHAM TRAVEL LTD,Childrens Services,198118.17,Childrens Services,2323P09_CR00107,72112
Sandwell Metropolitan Borough Council,http://www.sandwell.gov.uk/info/200202/performance_and_spending/1079/payments_over_500,09-Dec-2022,Childrens Services,NORTH SMETHWICK DEVELOPMENT TRUST,Childrens Services,525.00,Childrens Services,2323P09_CR00108,01346623
Sandwell Metropolitan Borough Council,http://www.sandwell.gov.uk/info/200202/performance_and_spending/1079/payments_over_500,01-Dec-2022,Childrens Services,NOTTINGHAMSHIRE COUNTY COUNCIL,Childrens Services,1440.00,Childrens Services,2323P09_CR00109,01218759
Sandwell Metropolitan Borough Council,http://www.sandwell.gov.uk/info/200202/performance_and_spending/1079/payments_over_500,01-Dec-2022,Childrens Services,NOTTINGHAMSHIRE COUNTY COUNCIL,Childrens Services,2335.30,Childrens Services,2323P09_CR00110,01218759
Sandwell Metropolitan Borough Council,http://www.sandwell.gov.uk/info/200202/performance_and_spending/1079/payments_over_500,12-Dec-2022,Childrens Services,ONE 4 YOU SERVICES LTD,Childrens Services,5897.44,Childrens Services,2323P09_CR00111,81204
Sandwell Metropolitan Borough Council,http://www.sandwell.gov.uk/info/200202/performance_and_spending/1079/payments_over_500,12-Dec-2022,Childrens Services,ONE 4 YOU SERVICES LTD,Childrens Services,8108.98,Childrens Services,2323P09_CR00112,81204
Sandwell Metropolitan Borough Council,http://www.sandwell.gov.uk/info/200202/performance_and_spending/1079/payments_over_500,12-Dec-2022,Childrens Services,ONE 4 YOU SERVICES LTD,Childrens Services,10764.59,Childrens Services,2323P09_CR00113,81204
Sandwell Metropolitan Borough Council,http://www.sandwell.gov.uk/info/200202/performance_and_spending/1079/payments_over_500,13-Dec-2022,Childrens Services,ONE 4 YOU SERVICES LTD,Childrens Services,42770.41,Childrens Services,2323P09_CR00114,81204
Sandwell Metropolitan Borough Council,http://www.sandwell.gov.uk/info/200202/performance_and_spending/1079/payments_over_500,13-Dec-2022,Childrens Services,ONE 4 YOU SERVICES LTD,Childrens Services,43938.13,Childrens Services,2323P09_CR00115,81204
Sandwell Metropolitan Borough Council,http://www.sandwell.gov.uk/info/200202/performance_and_spending/1079/payments_over_500,13-Dec-2022,Childrens Services,ONE 4 YOU SERVICES LTD,Childrens Services,106105.85,Childrens Services,2323P09_CR00116,81204
Sandwell Metropolitan Borough Council,http://www.sandwell.gov.uk/info/200202/performance_and_spending/1079/payments_over_500,09-Dec-2022,Childrens Services,OPEN LENS MEDIA,Childrens Services,1350.00,Childrens Services,2323P09_CR00117,154205
Sandwell Metropolitan Borough Council,http://www.sandwell.gov.uk/info/200202/performance_and_spending/1079/payments_over_500,01-Dec-2022,Childrens Services,OPEN LENS MEDIA,Childrens Services,1375.00,Childrens Services,2323P09_CR00118,154205
Sandwell Metropolitan Borough Council,http://www.sandwell.gov.uk/info/200202/performance_and_spending/1079/payments_over_500,07-Dec-2022,Childrens Services,PLACES FOR PEOPLE LEISURE MANAGEMENT LTD,Childrens Services,500.00,Childrens Services,2323P09_CR00119,118956
Sandwell Metropolitan Borough Council,http://www.sandwell.gov.uk/info/200202/performance_and_spending/1079/payments_over_500,05-Dec-2022,Childrens Services,PROSPECTS SERVICES LIMITED,Childrens Services,4089.92,Childrens Services,2323P09_CR00120,01721288
Sandwell Metropolitan Borough Council,http://www.sandwell.gov.uk/info/200202/performance_and_spending/1079/payments_over_500,05-Dec-2022,Childrens Services,PROSPECTS SERVICES LIMITED,Childrens Services,4089.92,Childrens Services,2323P09_CR00121,01721288
Sandwell Metropolitan Borough Council,http://www.sandwell.gov.uk/info/200202/performance_and_spending/1079/payments_over_500,07-Dec-2022,Childrens Services,PURELY NUTRITION LTD,Childrens Services,3818.90,Childrens Services,2323P09_CR00122,76827
Sandwell Metropolitan Borough Council,http://www.sandwell.gov.uk/info/200202/performance_and_spending/1079/payments_over_500,01-Dec-2022,Childrens Services,QUALITY EDUCATION SOLUTIONS LIMITED,Childrens Services,1050.62,Childrens Services,2323P09_CR00123,70602
Sandwell Metropolitan Borough Council,http://www.sandwell.gov.uk/info/200202/performance_and_spending/1079/payments_over_500,01-Dec-2022,Childrens Services,SANDWELL CHILDREN'S TRUST,Childrens Services,141699.97,Childrens Services,2323P09_CR00124,133302
Sandwell Metropolitan Borough Council,http://www.sandwell.gov.uk/info/200202/performance_and_spending/1079/payments_over_500,01-Dec-2022,Childrens Services,SANDWELL CHILDREN'S TRUST,Childrens Services,5421071.00,Childrens Services,2323P09_CR00125,133302
Sandwell Metropolitan Borough Council,http://www.sandwell.gov.uk/info/200202/performance_and_spending/1079/payments_over_500,01-Dec-2022,Childrens Services,SANDWELL CONSORTIUM CIC,Childrens Services,9516.12,Childrens Services,2323P09_CR00126,104616
Sandwell Metropolitan Borough Council,http://www.sandwell.gov.uk/info/200202/performance_and_spending/1079/payments_over_500,01-Dec-2022,Childrens Services,SANDWELL CONSORTIUM CIC,Childrens Services,12259.47,Childrens Services,2323P09_CR00127,104616
Sandwell Metropolitan Borough Council,http://www.sandwell.gov.uk/info/200202/performance_and_spending/1079/payments_over_500,01-Dec-2022,Childrens Services,SIPS EDUCATION LTD,Childrens Services,2493.95,Childrens Services,2323P09_CR00128,110784
Sandwell Metropolitan Borough Council,http://www.sandwell.gov.uk/info/200202/performance_and_spending/1079/payments_over_500,01-Dec-2022,Childrens Services,SIPS EDUCATION LTD,Childrens Services,2885.55,Childrens Services,2323P09_CR00129,110784
Sandwell Metropolitan Borough Council,http://www.sandwell.gov.uk/info/200202/performance_and_spending/1079/payments_over_500,01-Dec-2022,Childrens Services,SNOWDONIA FIRST AID (REDACTED PERSONAL DATA),Childrens Services,1200.00,Childrens Services,2323P09_CR00130,164218
Sandwell Metropolitan Borough Council,http://www.sandwell.gov.uk/info/200202/performance_and_spending/1079/payments_over_500,16-Dec-2022,Childrens Services,ST ALBANS COMMUNITY ASSOCIATION,Childrens Services,1382.00,Childrens Services,2323P09_CR00131,08323189
Sandwell Metropolitan Borough Council,http://www.sandwell.gov.uk/info/200202/performance_and_spending/1079/payments_over_500,02-Dec-2022,Childrens Services,TECHNICAL OUTDOOR SOLUTIONS,Childrens Services,846.75,Childrens Services,2323P09_CR00132,122844
Sandwell Metropolitan Borough Council,http://www.sandwell.gov.uk/info/200202/performance_and_spending/1079/payments_over_500,01-Dec-2022,Childrens Services,THE GIFT VOUCHER SHOP LIMITED,Childrens Services,735.00,Childrens Services,2323P09_CR00133,111545
Sandwell Metropolitan Borough Council,http://www.sandwell.gov.uk/info/200202/performance_and_spending/1079/payments_over_500,01-Dec-2022,Childrens Services,THE GIFT VOUCHER SHOP LIMITED,Childrens Services,1160.32,Childrens Services,2323P09_CR00134,111545
Sandwell Metropolitan Borough Council,http://www.sandwell.gov.uk/info/200202/performance_and_spending/1079/payments_over_500,01-Dec-2022,Childrens Services,THE GIFT VOUCHER SHOP LIMITED,Childrens Services,1240.68,Childrens Services,2323P09_CR00135,111545
Sandwell Metropolitan Borough Council,http://www.sandwell.gov.uk/info/200202/performance_and_spending/1079/payments_over_500,01-Dec-2022,Childrens Services,TOP CHURCH TRAINING,Childrens Services,1275.79,Childrens Services,2323P09_CR00136,163127
Sandwell Metropolitan Borough Council,http://www.sandwell.gov.uk/info/200202/performance_and_spending/1079/payments_over_500,12-Dec-2022,Childrens Services,TOP CHURCH TRAINING,Childrens Services,1953.25,Childrens Services,2323P09_CR00137,163127
Sandwell Metropolitan Borough Council,http://www.sandwell.gov.uk/info/200202/performance_and_spending/1079/payments_over_500,05-Dec-2022,Childrens Services,TOPPS MANAGEMENT & SUPPORT SERVICES LTD,Childrens Services,8214.22,Childrens Services,2323P09_CR00138,68846
Sandwell Metropolitan Borough Council,http://www.sandwell.gov.uk/info/200202/performance_and_spending/1079/payments_over_500,12-Dec-2022,Childrens Services,TOTALENERGIES GAS & POWER LTD,Childrens Services,513.96,Childrens Services,2323P09_CR00139,107605
Sandwell Metropolitan Borough Council,http://www.sandwell.gov.uk/info/200202/performance_and_spending/1079/payments_over_500,12-Dec-2022,Childrens Services,TOTALENERGIES GAS & POWER LTD,Childrens Services,544.01,Childrens Services,2323P09_CR00140,107605
Sandwell Metropolitan Borough Council,http://www.sandwell.gov.uk/info/200202/performance_and_spending/1079/payments_over_500,07-Dec-2022,Childrens Services,TOTALENERGIES GAS & POWER LTD,Childrens Services,597.63,Childrens Services,2323P09_CR00141,107605
Sandwell Metropolitan Borough Council,http://www.sandwell.gov.uk/info/200202/performance_and_spending/1079/payments_over_500,07-Dec-2022,Childrens Services,TOTALENERGIES GAS & POWER LTD,Childrens Services,604.36,Childrens Services,2323P09_CR00142,107605
Sandwell Metropolitan Borough Council,http://www.sandwell.gov.uk/info/200202/performance_and_spending/1079/payments_over_500,01-Dec-2022,Childrens Services,TOTALENERGIES GAS & POWER LTD,Childrens Services,612.23,Childrens Services,2323P09_CR00143,107605
Sandwell Metropolitan Borough Council,http://www.sandwell.gov.uk/info/200202/performance_and_spending/1079/payments_over_500,01-Dec-2022,Childrens Services,TOTALENERGIES GAS & POWER LTD,Childrens Services,653.14,Childrens Services,2323P09_CR00144,107605
Sandwell Metropolitan Borough Council,http://www.sandwell.gov.uk/info/200202/performance_and_spending/1079/payments_over_500,07-Dec-2022,Childrens Services,TOTALENERGIES GAS & POWER LTD,Childrens Services,741.84,Childrens Services,2323P09_CR00145,107605
Sandwell Metropolitan Borough Council,http://www.sandwell.gov.uk/info/200202/performance_and_spending/1079/payments_over_500,07-Dec-2022,Childrens Services,TOTALENERGIES GAS & POWER LTD,Childrens Services,1059.22,Childrens Services,2323P09_CR00146,107605
Sandwell Metropolitan Borough Council,http://www.sandwell.gov.uk/info/200202/performance_and_spending/1079/payments_over_500,07-Dec-2022,Childrens Services,TOTALENERGIES GAS & POWER LTD,Childrens Services,1092.83,Childrens Services,2323P09_CR00147,107605
Sandwell Metropolitan Borough Council,http://www.sandwell.gov.uk/info/200202/performance_and_spending/1079/payments_over_500,12-Dec-2022,Childrens Services,TOTALENERGIES GAS & POWER LTD,Childrens Services,1181.20,Childrens Services,2323P09_CR00148,107605
Sandwell Metropolitan Borough Council,http://www.sandwell.gov.uk/info/200202/performance_and_spending/1079/payments_over_500,01-Dec-2022,Childrens Services,TOTALENERGIES GAS & POWER LTD,Childrens Services,1212.71,Childrens Services,2323P09_CR00149,107605
Sandwell Metropolitan Borough Council,http://www.sandwell.gov.uk/info/200202/performance_and_spending/1079/payments_over_500,01-Dec-2022,Childrens Services,TOTALENERGIES GAS & POWER LTD,Childrens Services,1579.22,Childrens Services,2323P09_CR00150,107605
Sandwell Metropolitan Borough Council,http://www.sandwell.gov.uk/info/200202/performance_and_spending/1079/payments_over_500,15-Dec-2022,Childrens Services,TOTALENERGIES GAS & POWER LTD,Childrens Services,1740.91,Childrens Services,2323P09_CR00151,107605
Sandwell Metropolitan Borough Council,http://www.sandwell.gov.uk/info/200202/performance_and_spending/1079/payments_over_500,07-Dec-2022,Childrens Services,TOTALENERGIES GAS & POWER LTD,Childrens Services,1785.25,Childrens Services,2323P09_CR00152,107605
Sandwell Metropolitan Borough Council,http://www.sandwell.gov.uk/info/200202/performance_and_spending/1079/payments_over_500,01-Dec-2022,Childrens Services,TOTALENERGIES GAS & POWER LTD,Childrens Services,2282.17,Childrens Services,2323P09_CR00153,107605
Sandwell Metropolitan Borough Council,http://www.sandwell.gov.uk/info/200202/performance_and_spending/1079/payments_over_500,01-Dec-2022,Childrens Services,TOTALENERGIES GAS & POWER LTD,Childrens Services,2338.30,Childrens Services,2323P09_CR00154,107605
Sandwell Metropolitan Borough Council,http://www.sandwell.gov.uk/info/200202/performance_and_spending/1079/payments_over_500,01-Dec-2022,Childrens Services,TOTALENERGIES GAS & POWER LTD,Childrens Services,2451.86,Childrens Services,2323P09_CR00155,107605
Sandwell Metropolitan Borough Council,http://www.sandwell.gov.uk/info/200202/performance_and_spending/1079/payments_over_500,01-Dec-2022,Childrens Services,TOTALENERGIES GAS & POWER LTD,Childrens Services,2686.32,Childrens Services,2323P09_CR00156,107605
Sandwell Metropolitan Borough Council,http://www.sandwell.gov.uk/info/200202/performance_and_spending/1079/payments_over_500,01-Dec-2022,Childrens Services,TRIPLE P UK LTD,Childrens Services,31280.00,Childrens Services,2323P09_CR00157,83730
Sandwell Metropolitan Borough Council,http://www.sandwell.gov.uk/info/200202/performance_and_spending/1079/payments_over_500,07-Dec-2022,Childrens Services,VIBES N SHINE CIC,Childrens Services,540.00,Childrens Services,2323P09_CR00158,163633
Sandwell Metropolitan Borough Council,http://www.sandwell.gov.uk/info/200202/performance_and_spending/1079/payments_over_500,01-Dec-2022,Childrens Services,VICTORIA PARK PRIMARY ACADEMY,Childrens Services,4025.00,Childrens Services,2323P09_CR00159,106209
Sandwell Metropolitan Borough Council,http://www.sandwell.gov.uk/info/200202/performance_and_spending/1079/payments_over_500,07-Dec-2022,Childrens Services,WALSALL MBC,Childrens Services,1414.79,Childrens Services,2323P09_CR00160,01106025
Sandwell Metropolitan Borough Council,http://www.sandwell.gov.uk/info/200202/performance_and_spending/1079/payments_over_500,01-Dec-2022,Childrens Services,WEST BROMWICH ALBION FC LTD,Childrens Services,1564.00,Childrens Services,2323P09_CR00161,01606624
Sandwell Metropolitan Borough Council,http://www.sandwell.gov.uk/info/200202/performance_and_spending/1079/payments_over_500,01-Dec-2022,Childrens Services,WEST MIDLANDS TRAVEL LIMITED,Childrens Services,603.20,Childrens Services,2323P09_CR00162,01736688
Sandwell Metropolitan Borough Council,http://www.sandwell.gov.uk/info/200202/performance_and_spending/1079/payments_over_500,01-Dec-2022,Childrens Services,WEST MIDLANDS TRAVEL LIMITED,Childrens Services,1438.40,Childrens Services,2323P09_CR00163,01736688
Sandwell Metropolitan Borough Council,http://www.sandwell.gov.uk/info/200202/performance_and_spending/1079/payments_over_500,01-Dec-2022,Childrens Services,WEST MIDLANDS TRAVEL LIMITED,Childrens Services,2202.24,Childrens Services,2323P09_CR00164,01736688
Sandwell Metropolitan Borough Council,http://www.sandwell.gov.uk/info/200202/performance_and_spending/1079/payments_over_500,01-Dec-2022,Childrens Services,WEST MIDLANDS TRAVEL LIMITED,Childrens Services,3500.18,Childrens Services,2323P09_CR00165,01736688
Sandwell Metropolitan Borough Council,http://www.sandwell.gov.uk/info/200202/performance_and_spending/1079/payments_over_500,01-Dec-2022,Childrens Services,WEST MIDLANDS TRAVEL LIMITED,Childrens Services,3500.18,Childrens Services,2323P09_CR00166,01736688
Sandwell Metropolitan Borough Council,http://www.sandwell.gov.uk/info/200202/performance_and_spending/1079/payments_over_500,07-Dec-2022,Childrens Services,WOLVERHAMPTON VOLUNTARY SECTOR COUNCIL,Childrens Services,9540.26,Childrens Services,2323P09_CR00167,43383
Sandwell Metropolitan Borough Council,http://www.sandwell.gov.uk/info/200202/performance_and_spending/1079/payments_over_500,01-Dec-2022,Childrens Services,WYRE FOREST PEST CONTROL,Childrens Services,900.00,Childrens Services,2323P09_CR00168,155392
Sandwell Metropolitan Borough Council,http://www.sandwell.gov.uk/info/200202/performance_and_spending/1079/payments_over_500,01-Dec-2022,Childrens Services,REDACTED PERSONAL DATA  T/A FUTURE EXCEL,Childrens Services,7700.00,Childrens Services,2323P09_CR00169,REDACTED PERSONAL DATA
Sandwell Metropolitan Borough Council,http://www.sandwell.gov.uk/info/200202/performance_and_spending/1079/payments_over_500,01-Dec-2022,Childrens Services,A GREENER CHILDHOOD,Childrens Services,585.00,Childrens Services,2323P09_CR00170,155772
Sandwell Metropolitan Borough Council,http://www.sandwell.gov.uk/info/200202/performance_and_spending/1079/payments_over_500,22-Dec-2022,Childrens Services,ANN JONES.,Childrens Services,650.00,Childrens Services,2323P09_CR00171,164869
Sandwell Metropolitan Borough Council,http://www.sandwell.gov.uk/info/200202/performance_and_spending/1079/payments_over_500,01-Dec-2022,Childrens Services,SAMANTHA STEATHAM,Childrens Services,500.00,Childrens Services,2323P09_CR00172,151908
Sandwell Metropolitan Borough Council,http://www.sandwell.gov.uk/info/200202/performance_and_spending/1079/payments_over_500,07-Dec-2022,Childrens Services,SAMANTHA STEATHAM,Childrens Services,500.00,Childrens Services,2323P09_CR00173,151908
Sandwell Metropolitan Borough Council,http://www.sandwell.gov.uk/info/200202/performance_and_spending/1079/payments_over_500,02-Dec-2022,Childrens Services,SAMANTHA STEATHAM,Childrens Services,500.00,Childrens Services,2323P09_CR00174,151908
Sandwell Metropolitan Borough Council,http://www.sandwell.gov.uk/info/200202/performance_and_spending/1079/payments_over_500,01-Dec-2022,Childrens Services,MOHAMMED SHOKAT,Childrens Services,47317.52,Childrens Services,2323P09_CR00175,08583128
Sandwell Metropolitan Borough Council,http://www.sandwell.gov.uk/info/200202/performance_and_spending/1079/payments_over_500,12-Dec-2022,Childrens Services,REDACTED PERSONAL DATA,Childrens Services,727.27,Childrens Services,2323P09_CR00176,REDACTED PERSONAL DATA
Sandwell Metropolitan Borough Council,http://www.sandwell.gov.uk/info/200202/performance_and_spending/1079/payments_over_500,12-Dec-2022,Childrens Services,REDACTED PERSONAL DATA,Childrens Services,727.27,Childrens Services,2323P09_CR00177,REDACTED PERSONAL DATA
Sandwell Metropolitan Borough Council,http://www.sandwell.gov.uk/info/200202/performance_and_spending/1079/payments_over_500,12-Dec-2022,Childrens Services,REDACTED PERSONAL DATA,Childrens Services,545.45,Childrens Services,2323P09_CR00178,REDACTED PERSONAL DATA
Sandwell Metropolitan Borough Council,http://www.sandwell.gov.uk/info/200202/performance_and_spending/1079/payments_over_500,12-Dec-2022,Childrens Services,REDACTED PERSONAL DATA,Childrens Services,545.45,Childrens Services,2323P09_CR00179,REDACTED PERSONAL DATA
Sandwell Metropolitan Borough Council,http://www.sandwell.gov.uk/info/200202/performance_and_spending/1079/payments_over_500,12-Dec-2022,Childrens Services,REDACTED PERSONAL DATA,Childrens Services,727.27,Childrens Services,2323P09_CR00180,REDACTED PERSONAL DATA
Sandwell Metropolitan Borough Council,http://www.sandwell.gov.uk/info/200202/performance_and_spending/1079/payments_over_500,12-Dec-2022,Childrens Services,REDACTED PERSONAL DATA,Childrens Services,545.45,Childrens Services,2323P09_CR00181,REDACTED PERSONAL DATA
Sandwell Metropolitan Borough Council,http://www.sandwell.gov.uk/info/200202/performance_and_spending/1079/payments_over_500,12-Dec-2022,Childrens Services,REDACTED PERSONAL DATA,Childrens Services,545.45,Childrens Services,2323P09_CR00182,REDACTED PERSONAL DATA
Sandwell Metropolitan Borough Council,http://www.sandwell.gov.uk/info/200202/performance_and_spending/1079/payments_over_500,12-Dec-2022,Childrens Services,REDACTED PERSONAL DATA,Childrens Services,545.45,Childrens Services,2323P09_CR00183,REDACTED PERSONAL DATA
Sandwell Metropolitan Borough Council,http://www.sandwell.gov.uk/info/200202/performance_and_spending/1079/payments_over_500,12-Dec-2022,Childrens Services,REDACTED PERSONAL DATA,Childrens Services,1090.90,Childrens Services,2323P09_CR00184,REDACTED PERSONAL DATA
Sandwell Metropolitan Borough Council,http://www.sandwell.gov.uk/info/200202/performance_and_spending/1079/payments_over_500,12-Dec-2022,Childrens Services,REDACTED PERSONAL DATA,Childrens Services,545.45,Childrens Services,2323P09_CR00185,REDACTED PERSONAL DATA
Sandwell Metropolitan Borough Council,http://www.sandwell.gov.uk/info/200202/performance_and_spending/1079/payments_over_500,12-Dec-2022,Childrens Services,REDACTED PERSONAL DATA,Childrens Services,545.45,Childrens Services,2323P09_CR00186,REDACTED PERSONAL DATA
Sandwell Metropolitan Borough Council,http://www.sandwell.gov.uk/info/200202/performance_and_spending/1079/payments_over_500,12-Dec-2022,Childrens Services,REDACTED PERSONAL DATA,Childrens Services,545.45,Childrens Services,2323P09_CR00187,REDACTED PERSONAL DATA
Sandwell Metropolitan Borough Council,http://www.sandwell.gov.uk/info/200202/performance_and_spending/1079/payments_over_500,12-Dec-2022,Childrens Services,REDACTED PERSONAL DATA,Childrens Services,909.09,Childrens Services,2323P09_CR00188,REDACTED PERSONAL DATA
Sandwell Metropolitan Borough Council,http://www.sandwell.gov.uk/info/200202/performance_and_spending/1079/payments_over_500,12-Dec-2022,Childrens Services,REDACTED PERSONAL DATA,Childrens Services,545.45,Childrens Services,2323P09_CR00189,REDACTED PERSONAL DATA
Sandwell Metropolitan Borough Council,http://www.sandwell.gov.uk/info/200202/performance_and_spending/1079/payments_over_500,12-Dec-2022,Childrens Services,REDACTED PERSONAL DATA,Childrens Services,545.45,Childrens Services,2323P09_CR00190,REDACTED PERSONAL DATA
Sandwell Metropolitan Borough Council,http://www.sandwell.gov.uk/info/200202/performance_and_spending/1079/payments_over_500,12-Dec-2022,Childrens Services,REDACTED PERSONAL DATA,Childrens Services,800.00,Childrens Services,2323P09_CR00191,REDACTED PERSONAL DATA
Sandwell Metropolitan Borough Council,http://www.sandwell.gov.uk/info/200202/performance_and_spending/1079/payments_over_500,12-Dec-2022,Childrens Services,REDACTED PERSONAL DATA,Childrens Services,545.45,Childrens Services,2323P09_CR00192,REDACTED PERSONAL DATA
Sandwell Metropolitan Borough Council,http://www.sandwell.gov.uk/info/200202/performance_and_spending/1079/payments_over_500,12-Dec-2022,Childrens Services,REDACTED PERSONAL DATA,Childrens Services,727.28,Childrens Services,2323P09_CR00193,REDACTED PERSONAL DATA
Sandwell Metropolitan Borough Council,http://www.sandwell.gov.uk/info/200202/performance_and_spending/1079/payments_over_500,12-Dec-2022,Childrens Services,REDACTED PERSONAL DATA,Childrens Services,727.27,Childrens Services,2323P09_CR00194,REDACTED PERSONAL DATA
Sandwell Metropolitan Borough Council,http://www.sandwell.gov.uk/info/200202/performance_and_spending/1079/payments_over_500,12-Dec-2022,Childrens Services,REDACTED PERSONAL DATA,Childrens Services,545.45,Childrens Services,2323P09_CR00195,REDACTED PERSONAL DATA
Sandwell Metropolitan Borough Council,http://www.sandwell.gov.uk/info/200202/performance_and_spending/1079/payments_over_500,12-Dec-2022,Childrens Services,REDACTED PERSONAL DATA,Childrens Services,545.45,Childrens Services,2323P09_CR00196,REDACTED PERSONAL DATA
Sandwell Metropolitan Borough Council,http://www.sandwell.gov.uk/info/200202/performance_and_spending/1079/payments_over_500,12-Dec-2022,Childrens Services,REDACTED PERSONAL DATA,Childrens Services,545.45,Childrens Services,2323P09_CR00197,REDACTED PERSONAL DATA
Sandwell Metropolitan Borough Council,http://www.sandwell.gov.uk/info/200202/performance_and_spending/1079/payments_over_500,12-Dec-2022,Childrens Services,REDACTED PERSONAL DATA,Childrens Services,727.27,Childrens Services,2323P09_CR00198,REDACTED PERSONAL DATA
Sandwell Metropolitan Borough Council,http://www.sandwell.gov.uk/info/200202/performance_and_spending/1079/payments_over_500,12-Dec-2022,Childrens Services,REDACTED PERSONAL DATA,Childrens Services,727.27,Childrens Services,2323P09_CR00199,REDACTED PERSONAL DATA
Sandwell Metropolitan Borough Council,http://www.sandwell.gov.uk/info/200202/performance_and_spending/1079/payments_over_500,12-Dec-2022,Childrens Services,REDACTED PERSONAL DATA,Childrens Services,727.27,Childrens Services,2323P09_CR00200,REDACTED PERSONAL DATA
Sandwell Metropolitan Borough Council,http://www.sandwell.gov.uk/info/200202/performance_and_spending/1079/payments_over_500,12-Dec-2022,Childrens Services,REDACTED PERSONAL DATA,Childrens Services,545.45,Childrens Services,2323P09_CR00201,REDACTED PERSONAL DATA
Sandwell Metropolitan Borough Council,http://www.sandwell.gov.uk/info/200202/performance_and_spending/1079/payments_over_500,12-Dec-2022,Childrens Services,REDACTED PERSONAL DATA,Childrens Services,727.27,Childrens Services,2323P09_CR00202,REDACTED PERSONAL DATA
Sandwell Metropolitan Borough Council,http://www.sandwell.gov.uk/info/200202/performance_and_spending/1079/payments_over_500,12-Dec-2022,Childrens Services,REDACTED PERSONAL DATA,Childrens Services,545.45,Childrens Services,2323P09_CR00203,REDACTED PERSONAL DATA
Sandwell Metropolitan Borough Council,http://www.sandwell.gov.uk/info/200202/performance_and_spending/1079/payments_over_500,12-Dec-2022,Childrens Services,REDACTED PERSONAL DATA,Childrens Services,727.27,Childrens Services,2323P09_CR00204,REDACTED PERSONAL DATA
Sandwell Metropolitan Borough Council,http://www.sandwell.gov.uk/info/200202/performance_and_spending/1079/payments_over_500,12-Dec-2022,Childrens Services,REDACTED PERSONAL DATA,Childrens Services,545.45,Childrens Services,2323P09_CR00205,REDACTED PERSONAL DATA
Sandwell Metropolitan Borough Council,http://www.sandwell.gov.uk/info/200202/performance_and_spending/1079/payments_over_500,12-Dec-2022,Childrens Services,REDACTED PERSONAL DATA,Childrens Services,545.45,Childrens Services,2323P09_CR00206,REDACTED PERSONAL DATA
Sandwell Metropolitan Borough Council,http://www.sandwell.gov.uk/info/200202/performance_and_spending/1079/payments_over_500,12-Dec-2022,Childrens Services,REDACTED PERSONAL DATA,Childrens Services,727.27,Childrens Services,2323P09_CR00207,REDACTED PERSONAL DATA
Sandwell Metropolitan Borough Council,http://www.sandwell.gov.uk/info/200202/performance_and_spending/1079/payments_over_500,12-Dec-2022,Childrens Services,REDACTED PERSONAL DATA,Childrens Services,545.45,Childrens Services,2323P09_CR00208,REDACTED PERSONAL DATA
Sandwell Metropolitan Borough Council,http://www.sandwell.gov.uk/info/200202/performance_and_spending/1079/payments_over_500,12-Dec-2022,Childrens Services,REDACTED PERSONAL DATA,Childrens Services,727.27,Childrens Services,2323P09_CR00209,REDACTED PERSONAL DATA
Sandwell Metropolitan Borough Council,http://www.sandwell.gov.uk/info/200202/performance_and_spending/1079/payments_over_500,15-Dec-2022,Childrens Services,EARLS GYMNASTICS CLUB,Childrens Services,1008.00,Childrens Services,2323P09_CR00210,96950
Sandwell Metropolitan Borough Council,http://www.sandwell.gov.uk/info/200202/performance_and_spending/1079/payments_over_500,15-Dec-2022,Childrens Services,RB SPORTS ACTIVITIES LTD,Childrens Services,1008.00,Childrens Services,2323P09_CR00211,126163
Sandwell Metropolitan Borough Council,http://www.sandwell.gov.uk/info/200202/performance_and_spending/1079/payments_over_500,05-Dec-2022,Childrens Services,THE ALBION FOUNDATION,Childrens Services,2400.00,Childrens Services,2323P09_CR00212,21026659
Sandwell Metropolitan Borough Council,http://www.sandwell.gov.uk/info/200202/performance_and_spending/1079/payments_over_500,01-Dec-2022,Childrens Services Capital,CASTLE BLINDS & CURTAINS LTD,Childrens Services Capital,1274.00,Childrens Services Capital,2323P09_CR00213,01664945
Sandwell Metropolitan Borough Council,http://www.sandwell.gov.uk/info/200202/performance_and_spending/1079/payments_over_500,14-Dec-2022,Childrens Services Capital,RHINO SENSORY UK LTD,Childrens Services Capital,1278.38,Childrens Services Capital,2323P09_CR00214,163857
Sandwell Metropolitan Borough Council,http://www.sandwell.gov.uk/info/200202/performance_and_spending/1079/payments_over_500,01-Dec-2022,Childrens Services Capital,SEDDON CONSTRUCTION LIMITED,Childrens Services Capital,63536.78,Childrens Services Capital,2323P09_CR00215,132999
Sandwell Metropolitan Borough Council,http://www.sandwell.gov.uk/info/200202/performance_and_spending/1079/payments_over_500,05-Dec-2022,Childrens Services Capital,WILLMOTT DIXON CONSTRUCTION LIMITED,Childrens Services Capital,288543.15,Childrens Services Capital,2323P09_CR00216,34081
Sandwell Metropolitan Borough Council,http://www.sandwell.gov.uk/info/200202/performance_and_spending/1079/payments_over_500,01-Dec-2022,Corporate Management,WEST BROMWICH ALBION FC LTD,Corporate Management,1800.00,Corporate Management,2323P09_CR00217,01606624
Sandwell Metropolitan Borough Council,http://www.sandwell.gov.uk/info/200202/performance_and_spending/1079/payments_over_500,01-Dec-2022,Director of Law & Governance,ADVANCED CHILD CARE ASSESSMENTS LTD,Assistant Chief Executive (Excl SIU),616.78,Assistant Chief Executive (Excl SIU),2323P09_CR00218,137306
Sandwell Metropolitan Borough Council,http://www.sandwell.gov.uk/info/200202/performance_and_spending/1079/payments_over_500,01-Dec-2022,Director of Law & Governance,ADVANCED CHILD CARE ASSESSMENTS LTD,Assistant Chief Executive (Excl SIU),660.00,Assistant Chief Executive (Excl SIU),2323P09_CR00219,137306
Sandwell Metropolitan Borough Council,http://www.sandwell.gov.uk/info/200202/performance_and_spending/1079/payments_over_500,01-Dec-2022,Director of Law & Governance,ADVANCED CHILD CARE ASSESSMENTS LTD,Assistant Chief Executive (Excl SIU),1500.00,Assistant Chief Executive (Excl SIU),2323P09_CR00220,137306
Sandwell Metropolitan Borough Council,http://www.sandwell.gov.uk/info/200202/performance_and_spending/1079/payments_over_500,01-Dec-2022,Director of Law & Governance,ADVANCED CHILD CARE ASSESSMENTS LTD,Assistant Chief Executive (Excl SIU),4365.00,Assistant Chief Executive (Excl SIU),2323P09_CR00221,137306
Sandwell Metropolitan Borough Council,http://www.sandwell.gov.uk/info/200202/performance_and_spending/1079/payments_over_500,15-Dec-2022,Director of Law & Governance,ALLSTAR BUSINESS SOLUTIONS LIMITED,Assistant Chief Executive (Excl SIU),765.00,Assistant Chief Executive (Excl SIU),2323P09_CR00222,104057
Sandwell Metropolitan Borough Council,http://www.sandwell.gov.uk/info/200202/performance_and_spending/1079/payments_over_500,01-Dec-2022,Director of Law & Governance,ASSOCIATION OF ELECTORAL ADMINISTRATORS LTD,Assistant Chief Executive (Excl SIU),1704.30,Assistant Chief Executive (Excl SIU),2323P09_CR00223,01693286
Sandwell Metropolitan Borough Council,http://www.sandwell.gov.uk/info/200202/performance_and_spending/1079/payments_over_500,06-Dec-2022,Director of Law & Governance,BACHES SOLICITORS,Assistant Chief Executive (Excl SIU),642.07,Assistant Chief Executive (Excl SIU),2323P09_CR00224,01643644
Sandwell Metropolitan Borough Council,http://www.sandwell.gov.uk/info/200202/performance_and_spending/1079/payments_over_500,01-Dec-2022,Director of Law & Governance,BACHES SOLICITORS ,Assistant Chief Executive (Excl SIU),995.42,Assistant Chief Executive (Excl SIU),2323P09_CR00225,01643644
Sandwell Metropolitan Borough Council,http://www.sandwell.gov.uk/info/200202/performance_and_spending/1079/payments_over_500,01-Dec-2022,Director of Law & Governance,BEVAN BRITTAN LLP,Assistant Chief Executive (Excl SIU),1071.70,Assistant Chief Executive (Excl SIU),2323P09_CR00226,55036
Sandwell Metropolitan Borough Council,http://www.sandwell.gov.uk/info/200202/performance_and_spending/1079/payments_over_500,01-Dec-2022,Director of Law & Governance,BEVAN BRITTAN LLP,Assistant Chief Executive (Excl SIU),4000.00,Assistant Chief Executive (Excl SIU),2323P09_CR00227,55036
Sandwell Metropolitan Borough Council,http://www.sandwell.gov.uk/info/200202/performance_and_spending/1079/payments_over_500,01-Dec-2022,Director of Law & Governance,C D EXCEL LIMITED,Assistant Chief Executive (Excl SIU),680.00,Assistant Chief Executive (Excl SIU),2323P09_CR00228,122160
Sandwell Metropolitan Borough Council,http://www.sandwell.gov.uk/info/200202/performance_and_spending/1079/payments_over_500,15-Dec-2022,Director of Law & Governance,CFH DOCMAIIL LTD,Assistant Chief Executive (Excl SIU),844.68,Assistant Chief Executive (Excl SIU),2323P09_CR00229,140107
Sandwell Metropolitan Borough Council,http://www.sandwell.gov.uk/info/200202/performance_and_spending/1079/payments_over_500,02-Dec-2022,Director of Law & Governance,CFH DOCMAIIL LTD,Assistant Chief Executive (Excl SIU),992.19,Assistant Chief Executive (Excl SIU),2323P09_CR00230,140107
Sandwell Metropolitan Borough Council,http://www.sandwell.gov.uk/info/200202/performance_and_spending/1079/payments_over_500,02-Dec-2022,Director of Law & Governance,CFH DOCMAIIL LTD,Assistant Chief Executive (Excl SIU),2340.44,Assistant Chief Executive (Excl SIU),2323P09_CR00231,140107
Sandwell Metropolitan Borough Council,http://www.sandwell.gov.uk/info/200202/performance_and_spending/1079/payments_over_500,02-Dec-2022,Director of Law & Governance,CFH DOCMAIIL LTD,Assistant Chief Executive (Excl SIU),3692.71,Assistant Chief Executive (Excl SIU),2323P09_CR00232,140107
Sandwell Metropolitan Borough Council,http://www.sandwell.gov.uk/info/200202/performance_and_spending/1079/payments_over_500,06-Dec-2022,Director of Law & Governance,COPYRIGHT LICENSING AGENCY LTD,Assistant Chief Executive (Excl SIU),15759.59,Assistant Chief Executive (Excl SIU),2323P09_CR00233,01085821
Sandwell Metropolitan Borough Council,http://www.sandwell.gov.uk/info/200202/performance_and_spending/1079/payments_over_500,01-Dec-2022,Director of Law & Governance,E4LAW LTD T/A LEXTOX,Assistant Chief Executive (Excl SIU),720.50,Assistant Chief Executive (Excl SIU),2323P09_CR00234,123174
Sandwell Metropolitan Borough Council,http://www.sandwell.gov.uk/info/200202/performance_and_spending/1079/payments_over_500,01-Dec-2022,Director of Law & Governance,E4LAW LTD T/A LEXTOX,Assistant Chief Executive (Excl SIU),1059.00,Assistant Chief Executive (Excl SIU),2323P09_CR00235,123174
Sandwell Metropolitan Borough Council,http://www.sandwell.gov.uk/info/200202/performance_and_spending/1079/payments_over_500,01-Dec-2022,Director of Law & Governance,E4LAW LTD T/A LEXTOX,Assistant Chief Executive (Excl SIU),1059.00,Assistant Chief Executive (Excl SIU),2323P09_CR00236,123174
Sandwell Metropolitan Borough Council,http://www.sandwell.gov.uk/info/200202/performance_and_spending/1079/payments_over_500,01-Dec-2022,Director of Law & Governance,EE LIMITED,Assistant Chief Executive (Excl SIU),1883.83,Assistant Chief Executive (Excl SIU),2323P09_CR00237,117168
Sandwell Metropolitan Borough Council,http://www.sandwell.gov.uk/info/200202/performance_and_spending/1079/payments_over_500,01-Dec-2022,Director of Law & Governance,FACULTATIEVE TECHNOLOGIES LTD,Assistant Chief Executive (Excl SIU),1692.00,Assistant Chief Executive (Excl SIU),2323P09_CR00238,89268
Sandwell Metropolitan Borough Council,http://www.sandwell.gov.uk/info/200202/performance_and_spending/1079/payments_over_500,01-Dec-2022,Director of Law & Governance,FACULTATIEVE TECHNOLOGIES LTD,Assistant Chief Executive (Excl SIU),1990.59,Assistant Chief Executive (Excl SIU),2323P09_CR00239,89268
Sandwell Metropolitan Borough Council,http://www.sandwell.gov.uk/info/200202/performance_and_spending/1079/payments_over_500,01-Dec-2022,Director of Law & Governance,FACULTATIEVE TECHNOLOGIES LTD,Assistant Chief Executive (Excl SIU),3635.75,Assistant Chief Executive (Excl SIU),2323P09_CR00240,89268
Sandwell Metropolitan Borough Council,http://www.sandwell.gov.uk/info/200202/performance_and_spending/1079/payments_over_500,01-Dec-2022,Director of Law & Governance,GOVERNANCE TRAINING AND CONSULTANCY LTD,Assistant Chief Executive (Excl SIU),950.00,Assistant Chief Executive (Excl SIU),2323P09_CR00241,136320
Sandwell Metropolitan Borough Council,http://www.sandwell.gov.uk/info/200202/performance_and_spending/1079/payments_over_500,01-Dec-2022,Director of Law & Governance,GREENTECH LTD,Assistant Chief Executive (Excl SIU),675.92,Assistant Chief Executive (Excl SIU),2323P09_CR00242,163053
Sandwell Metropolitan Borough Council,http://www.sandwell.gov.uk/info/200202/performance_and_spending/1079/payments_over_500,01-Dec-2022,Director of Law & Governance,GREENTECH LTD,Assistant Chief Executive (Excl SIU),678.06,Assistant Chief Executive (Excl SIU),2323P09_CR00243,163053
Sandwell Metropolitan Borough Council,http://www.sandwell.gov.uk/info/200202/performance_and_spending/1079/payments_over_500,01-Dec-2022,Director of Law & Governance,GREGORY PSYCHOLOGICAL SERVICES LIMITED,Assistant Chief Executive (Excl SIU),3065.40,Assistant Chief Executive (Excl SIU),2323P09_CR00244,132674
Sandwell Metropolitan Borough Council,http://www.sandwell.gov.uk/info/200202/performance_and_spending/1079/payments_over_500,05-Dec-2022,Director of Law & Governance,GRESHAM OFFICE FURNITURE LTD,Assistant Chief Executive (Excl SIU),707.00,Assistant Chief Executive (Excl SIU),2323P09_CR00245,93465
Sandwell Metropolitan Borough Council,http://www.sandwell.gov.uk/info/200202/performance_and_spending/1079/payments_over_500,01-Dec-2022,Director of Law & Governance,INSIGHT ASSESSMENT SERVICES,Assistant Chief Executive (Excl SIU),918.50,Assistant Chief Executive (Excl SIU),2323P09_CR00246,119754
Sandwell Metropolitan Borough Council,http://www.sandwell.gov.uk/info/200202/performance_and_spending/1079/payments_over_500,01-Nov-2022,Director of Law & Governance,INSIGHT ASSESSMENT SERVICES,Assistant Chief Executive (Excl SIU),2055.00,Assistant Chief Executive (Excl SIU),2323P09_CR00247,119754
Sandwell Metropolitan Borough Council,http://www.sandwell.gov.uk/info/200202/performance_and_spending/1079/payments_over_500,01-Dec-2022,Director of Law & Governance,INSIGHT ASSESSMENT SERVICES,Assistant Chief Executive (Excl SIU),3667.00,Assistant Chief Executive (Excl SIU),2323P09_CR00248,119754
Sandwell Metropolitan Borough Council,http://www.sandwell.gov.uk/info/200202/performance_and_spending/1079/payments_over_500,07-Dec-2022,Director of Law & Governance,J AND J NEGUS LIMITED,Assistant Chief Executive (Excl SIU),3750.00,Assistant Chief Executive (Excl SIU),2323P09_CR00249,99192
Sandwell Metropolitan Borough Council,http://www.sandwell.gov.uk/info/200202/performance_and_spending/1079/payments_over_500,01-Dec-2022,Director of Law & Governance,JEWSON LIMITED,Assistant Chief Executive (Excl SIU),698.75,Assistant Chief Executive (Excl SIU),2323P09_CR00250,01540195
Sandwell Metropolitan Borough Council,http://www.sandwell.gov.uk/info/200202/performance_and_spending/1079/payments_over_500,01-Dec-2022,Director of Law & Governance,JEWSON LIMITED,Assistant Chief Executive (Excl SIU),980.40,Assistant Chief Executive (Excl SIU),2323P09_CR00251,01540195
Sandwell Metropolitan Borough Council,http://www.sandwell.gov.uk/info/200202/performance_and_spending/1079/payments_over_500,01-Dec-2022,Director of Law & Governance,LEEC LIMITED,Assistant Chief Executive (Excl SIU),1147.25,Assistant Chief Executive (Excl SIU),2323P09_CR00252,120114
Sandwell Metropolitan Borough Council,http://www.sandwell.gov.uk/info/200202/performance_and_spending/1079/payments_over_500,01-Dec-2022,Director of Law & Governance,MEDICAL EXPERT WITNESS ALLIANCE,Assistant Chief Executive (Excl SIU),2574.00,Assistant Chief Executive (Excl SIU),2323P09_CR00253,134580
Sandwell Metropolitan Borough Council,http://www.sandwell.gov.uk/info/200202/performance_and_spending/1079/payments_over_500,01-Dec-2022,Director of Law & Governance,MJ SOCIAL WORK CONSULTANCY LTD,Assistant Chief Executive (Excl SIU),2304.90,Assistant Chief Executive (Excl SIU),2323P09_CR00254,149266
Sandwell Metropolitan Borough Council,http://www.sandwell.gov.uk/info/200202/performance_and_spending/1079/payments_over_500,01-Dec-2022,Director of Law & Governance,PARAMOUNT CARE SOLUTIONS,Assistant Chief Executive (Excl SIU),2600.00,Assistant Chief Executive (Excl SIU),2323P09_CR00255,129972
Sandwell Metropolitan Borough Council,http://www.sandwell.gov.uk/info/200202/performance_and_spending/1079/payments_over_500,01-Dec-2022,Director of Law & Governance,PENNON WATER SERVICES T/A SOURCE FOR BUSINESS,Assistant Chief Executive (Excl SIU),660.44,Assistant Chief Executive (Excl SIU),2323P09_CR00256,131726
Sandwell Metropolitan Borough Council,http://www.sandwell.gov.uk/info/200202/performance_and_spending/1079/payments_over_500,01-Dec-2022,Director of Law & Governance,REED ELSEVIER (UK) LIMITED,Assistant Chief Executive (Excl SIU),55360.00,Assistant Chief Executive (Excl SIU),2323P09_CR00257,8115
Sandwell Metropolitan Borough Council,http://www.sandwell.gov.uk/info/200202/performance_and_spending/1079/payments_over_500,01-Dec-2022,Director of Law & Governance,SERCO LIMITED,Assistant Chief Executive (Excl SIU),554.96,Assistant Chief Executive (Excl SIU),2323P09_CR00258,53771
Sandwell Metropolitan Borough Council,http://www.sandwell.gov.uk/info/200202/performance_and_spending/1079/payments_over_500,01-Dec-2022,Director of Law & Governance,SERCO LIMITED,Assistant Chief Executive (Excl SIU),664.30,Assistant Chief Executive (Excl SIU),2323P09_CR00259,53771
Sandwell Metropolitan Borough Council,http://www.sandwell.gov.uk/info/200202/performance_and_spending/1079/payments_over_500,01-Dec-2022,Director of Law & Governance,SERCO LIMITED,Assistant Chief Executive (Excl SIU),927.40,Assistant Chief Executive (Excl SIU),2323P09_CR00260,53771
Sandwell Metropolitan Borough Council,http://www.sandwell.gov.uk/info/200202/performance_and_spending/1079/payments_over_500,01-Dec-2022,Director of Law & Governance,SERCO LIMITED,Assistant Chief Executive (Excl SIU),1150.40,Assistant Chief Executive (Excl SIU),2323P09_CR00261,53771
Sandwell Metropolitan Borough Council,http://www.sandwell.gov.uk/info/200202/performance_and_spending/1079/payments_over_500,01-Dec-2022,Director of Law & Governance,SERCO LIMITED,Assistant Chief Executive (Excl SIU),1430.36,Assistant Chief Executive (Excl SIU),2323P09_CR00262,53771
Sandwell Metropolitan Borough Council,http://www.sandwell.gov.uk/info/200202/performance_and_spending/1079/payments_over_500,01-Dec-2022,Director of Law & Governance,SERCO LIMITED,Assistant Chief Executive (Excl SIU),1531.92,Assistant Chief Executive (Excl SIU),2323P09_CR00263,53771
Sandwell Metropolitan Borough Council,http://www.sandwell.gov.uk/info/200202/performance_and_spending/1079/payments_over_500,07-Dec-2022,Director of Law & Governance,TELESHORE U.K. LTD,Assistant Chief Executive (Excl SIU),598.60,Assistant Chief Executive (Excl SIU),2323P09_CR00264,01638687
Sandwell Metropolitan Borough Council,http://www.sandwell.gov.uk/info/200202/performance_and_spending/1079/payments_over_500,01-Dec-2022,Director of Law & Governance,TELESHORE U.K. LTD,Assistant Chief Executive (Excl SIU),4262.00,Assistant Chief Executive (Excl SIU),2323P09_CR00265,01638687
Sandwell Metropolitan Borough Council,http://www.sandwell.gov.uk/info/200202/performance_and_spending/1079/payments_over_500,01-Dec-2022,Director of Law & Governance,THOMSON REUTERS (PROFESSIONAL) UK LIMITED,Assistant Chief Executive (Excl SIU),1704.00,Assistant Chief Executive (Excl SIU),2323P09_CR00266,102777
Sandwell Metropolitan Borough Council,http://www.sandwell.gov.uk/info/200202/performance_and_spending/1079/payments_over_500,01-Dec-2022,Director of Law & Governance,THORNES THE SOLICITORS,Assistant Chief Executive (Excl SIU),825.00,Assistant Chief Executive (Excl SIU),2323P09_CR00267,137982
Sandwell Metropolitan Borough Council,http://www.sandwell.gov.uk/info/200202/performance_and_spending/1079/payments_over_500,16-Dec-2022,Director of Law & Governance,THORNES THE SOLICITORS,Assistant Chief Executive (Excl SIU),956.18,Assistant Chief Executive (Excl SIU),2323P09_CR00268,137982
Sandwell Metropolitan Borough Council,http://www.sandwell.gov.uk/info/200202/performance_and_spending/1079/payments_over_500,13-Dec-2022,Director of Law & Governance,THORNES THE SOLICITORS,Assistant Chief Executive (Excl SIU),1048.88,Assistant Chief Executive (Excl SIU),2323P09_CR00269,137982
Sandwell Metropolitan Borough Council,http://www.sandwell.gov.uk/info/200202/performance_and_spending/1079/payments_over_500,01-Dec-2022,Director of Law & Governance,THORNES THE SOLICITORS,Assistant Chief Executive (Excl SIU),1206.00,Assistant Chief Executive (Excl SIU),2323P09_CR00270,137982
Sandwell Metropolitan Borough Council,http://www.sandwell.gov.uk/info/200202/performance_and_spending/1079/payments_over_500,07-Dec-2022,Director of Law & Governance,THORNES THE SOLICITORS,Assistant Chief Executive (Excl SIU),1652.48,Assistant Chief Executive (Excl SIU),2323P09_CR00271,137982
Sandwell Metropolitan Borough Council,http://www.sandwell.gov.uk/info/200202/performance_and_spending/1079/payments_over_500,07-Dec-2022,Director of Law & Governance,TREASURED MEMORIES LTD,Assistant Chief Executive (Excl SIU),636.85,Assistant Chief Executive (Excl SIU),2323P09_CR00272,91211
Sandwell Metropolitan Borough Council,http://www.sandwell.gov.uk/info/200202/performance_and_spending/1079/payments_over_500,01-Dec-2022,Director of Law & Governance,TROWERS & HAMLINS LLP,Director of Law & Governance,8300.00,Director of Law & Governance,2323P09_CR00273,37198
Sandwell Metropolitan Borough Council,http://www.sandwell.gov.uk/info/200202/performance_and_spending/1079/payments_over_500,09-Dec-2022,Director of Law & Governance,UBIQUS UK LTD,Assistant Chief Executive (Excl SIU),841.82,Assistant Chief Executive (Excl SIU),2323P09_CR00274,76474
Sandwell Metropolitan Borough Council,http://www.sandwell.gov.uk/info/200202/performance_and_spending/1079/payments_over_500,01-Dec-2022,Director of Law & Governance,VIVEDIA LTD,Assistant Chief Executive (Excl SIU),1278.00,Assistant Chief Executive (Excl SIU),2323P09_CR00275,141990
Sandwell Metropolitan Borough Council,http://www.sandwell.gov.uk/info/200202/performance_and_spending/1079/payments_over_500,01-Dec-2022,Director of Law & Governance,VIVEDIA LTD,Assistant Chief Executive (Excl SIU),2919.00,Assistant Chief Executive (Excl SIU),2323P09_CR00276,141990
Sandwell Metropolitan Borough Council,http://www.sandwell.gov.uk/info/200202/performance_and_spending/1079/payments_over_500,01-Dec-2022,Director of Law & Governance,WILCOX PSYCHOLOGICAL ASSOCIATES LTD,Assistant Chief Executive (Excl SIU),860.00,Assistant Chief Executive (Excl SIU),2323P09_CR00277,01561103
Sandwell Metropolitan Borough Council,http://www.sandwell.gov.uk/info/200202/performance_and_spending/1079/payments_over_500,01-Dec-2022,Director of Law & Governance,WILCOX PSYCHOLOGICAL ASSOCIATES LTD,Assistant Chief Executive (Excl SIU),1966.92,Assistant Chief Executive (Excl SIU),2323P09_CR00278,01561103
Sandwell Metropolitan Borough Council,http://www.sandwell.gov.uk/info/200202/performance_and_spending/1079/payments_over_500,18-Dec-2022,Director of Law & Governance,ROBIN HOPKINS,Assistant Chief Executive (Excl SIU),800.00,Assistant Chief Executive (Excl SIU),2323P09_CR00279,136104
Sandwell Metropolitan Borough Council,http://www.sandwell.gov.uk/info/200202/performance_and_spending/1079/payments_over_500,18-Dec-2022,Director of Law & Governance,ROBIN HOPKINS,Assistant Chief Executive (Excl SIU),1000.00,Assistant Chief Executive (Excl SIU),2323P09_CR00280,136104
Sandwell Metropolitan Borough Council,http://www.sandwell.gov.uk/info/200202/performance_and_spending/1079/payments_over_500,02-Dec-2022,Director of Law & Governance,BEN WILLIAMS,Assistant Chief Executive (Excl SIU),1500.00,Assistant Chief Executive (Excl SIU),2323P09_CR00281,95573
Sandwell Metropolitan Borough Council,http://www.sandwell.gov.uk/info/200202/performance_and_spending/1079/payments_over_500,19-Dec-2022,Director of Law & Governance,HUMA ALI,Assistant Chief Executive (Excl SIU),1250.00,Assistant Chief Executive (Excl SIU),2323P09_CR00282,98276
Sandwell Metropolitan Borough Council,http://www.sandwell.gov.uk/info/200202/performance_and_spending/1079/payments_over_500,01-Dec-2022,Director of Law & Governance,JONATHAN BOTT,Assistant Chief Executive (Excl SIU),850.00,Assistant Chief Executive (Excl SIU),2323P09_CR00283,125485
Sandwell Metropolitan Borough Council,http://www.sandwell.gov.uk/info/200202/performance_and_spending/1079/payments_over_500,01-Dec-2022,Director of Law & Governance,KRISTINA BROWN,Assistant Chief Executive (Excl SIU),4500.00,Assistant Chief Executive (Excl SIU),2323P09_CR00284,01754801
Sandwell Metropolitan Borough Council,http://www.sandwell.gov.uk/info/200202/performance_and_spending/1079/payments_over_500,19-Dec-2022,Director of Law & Governance,MATTHEW FIDDY,Assistant Chief Executive (Excl SIU),1750.00,Assistant Chief Executive (Excl SIU),2323P09_CR00285,114444
Sandwell Metropolitan Borough Council,http://www.sandwell.gov.uk/info/200202/performance_and_spending/1079/payments_over_500,01-Dec-2022,Director of Law & Governance,RICHARD HADLEY,Assistant Chief Executive (Excl SIU),1500.00,Assistant Chief Executive (Excl SIU),2323P09_CR00286,22611
Sandwell Metropolitan Borough Council,http://www.sandwell.gov.uk/info/200202/performance_and_spending/1079/payments_over_500,01-Dec-2022,Director of Law & Governance,ALEXANDER BARNFIELD,Assistant Chief Executive (Excl SIU),1325.00,Assistant Chief Executive (Excl SIU),2323P09_CR00287,122304
Sandwell Metropolitan Borough Council,http://www.sandwell.gov.uk/info/200202/performance_and_spending/1079/payments_over_500,18-Dec-2022,Director of Law & Governance,ELIZABETH VESSEY,Assistant Chief Executive (Excl SIU),1170.00,Assistant Chief Executive (Excl SIU),2323P09_CR00288,122940
Sandwell Metropolitan Borough Council,http://www.sandwell.gov.uk/info/200202/performance_and_spending/1079/payments_over_500,01-Dec-2022,Director of Law & Governance,MARK JACKSON,Assistant Chief Executive (Excl SIU),2912.50,Assistant Chief Executive (Excl SIU),2323P09_CR00289,79150
Sandwell Metropolitan Borough Council,http://www.sandwell.gov.uk/info/200202/performance_and_spending/1079/payments_over_500,01-Dec-2022,Director of Law & Governance,MICHAEL SINGLETON,Assistant Chief Executive (Excl SIU),950.00,Assistant Chief Executive (Excl SIU),2323P09_CR00290,45301
Sandwell Metropolitan Borough Council,http://www.sandwell.gov.uk/info/200202/performance_and_spending/1079/payments_over_500,01-Dec-2022,Director of Law & Governance,DR B A ANDREOU,Assistant Chief Executive (Excl SIU),2052.00,Assistant Chief Executive (Excl SIU),2323P09_CR00291,13025425
Sandwell Metropolitan Borough Council,http://www.sandwell.gov.uk/info/200202/performance_and_spending/1079/payments_over_500,01-Dec-2022,Director of Law & Governance,DR JOHN DUNCAN MIDDLETON,Assistant Chief Executive (Excl SIU),1235.00,Assistant Chief Executive (Excl SIU),2323P09_CR00292,118186
Sandwell Metropolitan Borough Council,http://www.sandwell.gov.uk/info/200202/performance_and_spending/1079/payments_over_500,01-Dec-2022,Director of Law & Governance,DR TONY COLLINS,Assistant Chief Executive (Excl SIU),2242.00,Assistant Chief Executive (Excl SIU),2323P09_CR00293,119994
Sandwell Metropolitan Borough Council,http://www.sandwell.gov.uk/info/200202/performance_and_spending/1079/payments_over_500,02-Dec-2022,Director of Law & Governance,NATIONAL WESTMINSTER BANK PLC,Assistant Chief Executive (Excl SIU),2021.00,Assistant Chief Executive (Excl SIU),2323P09_CR00294,120965
Sandwell Metropolitan Borough Council,http://www.sandwell.gov.uk/info/200202/performance_and_spending/1079/payments_over_500,14-Dec-2022,FINANCE (Inc SIU),AWH LEGAL LTD,Assistant Chief Executive (Excl SIU),6000.00,Assistant Chief Executive (Excl SIU),2323P09_CR00295,164723
Sandwell Metropolitan Borough Council,http://www.sandwell.gov.uk/info/200202/performance_and_spending/1079/payments_over_500,06-Dec-2022,FINANCE (Inc SIU),BROWNE JACOBSON LLP,Assistant Chief Executive (Excl SIU),523.90,Assistant Chief Executive (Excl SIU),2323P09_CR00296,109574
Sandwell Metropolitan Borough Council,http://www.sandwell.gov.uk/info/200202/performance_and_spending/1079/payments_over_500,06-Dec-2022,FINANCE (Inc SIU),BROWNE JACOBSON LLP,Assistant Chief Executive (Excl SIU),523.90,Assistant Chief Executive (Excl SIU),2323P09_CR00297,109574
Sandwell Metropolitan Borough Council,http://www.sandwell.gov.uk/info/200202/performance_and_spending/1079/payments_over_500,06-Dec-2022,FINANCE (Inc SIU),BROWNE JACOBSON LLP,Assistant Chief Executive (Excl SIU),533.00,Assistant Chief Executive (Excl SIU),2323P09_CR00298,109574
Sandwell Metropolitan Borough Council,http://www.sandwell.gov.uk/info/200202/performance_and_spending/1079/payments_over_500,06-Dec-2022,FINANCE (Inc SIU),BROWNE JACOBSON LLP,Assistant Chief Executive (Excl SIU),574.60,Assistant Chief Executive (Excl SIU),2323P09_CR00299,109574
Sandwell Metropolitan Borough Council,http://www.sandwell.gov.uk/info/200202/performance_and_spending/1079/payments_over_500,06-Dec-2022,FINANCE (Inc SIU),BROWNE JACOBSON LLP,Assistant Chief Executive (Excl SIU),608.40,Assistant Chief Executive (Excl SIU),2323P09_CR00300,109574
Sandwell Metropolitan Borough Council,http://www.sandwell.gov.uk/info/200202/performance_and_spending/1079/payments_over_500,06-Dec-2022,FINANCE (Inc SIU),BROWNE JACOBSON LLP,Assistant Chief Executive (Excl SIU),637.00,Assistant Chief Executive (Excl SIU),2323P09_CR00301,109574
Sandwell Metropolitan Borough Council,http://www.sandwell.gov.uk/info/200202/performance_and_spending/1079/payments_over_500,09-Dec-2022,FINANCE (Inc SIU),BROWNE JACOBSON LLP,Assistant Chief Executive (Excl SIU),649.10,Assistant Chief Executive (Excl SIU),2323P09_CR00302,109574
Sandwell Metropolitan Borough Council,http://www.sandwell.gov.uk/info/200202/performance_and_spending/1079/payments_over_500,09-Dec-2022,FINANCE (Inc SIU),BROWNE JACOBSON LLP,Assistant Chief Executive (Excl SIU),659.10,Assistant Chief Executive (Excl SIU),2323P09_CR00303,109574
Sandwell Metropolitan Borough Council,http://www.sandwell.gov.uk/info/200202/performance_and_spending/1079/payments_over_500,09-Dec-2022,FINANCE (Inc SIU),BROWNE JACOBSON LLP,Assistant Chief Executive (Excl SIU),700.70,Assistant Chief Executive (Excl SIU),2323P09_CR00304,109574
Sandwell Metropolitan Borough Council,http://www.sandwell.gov.uk/info/200202/performance_and_spending/1079/payments_over_500,09-Dec-2022,FINANCE (Inc SIU),BROWNE JACOBSON LLP,Assistant Chief Executive (Excl SIU),997.10,Assistant Chief Executive (Excl SIU),2323P09_CR00305,109574
Sandwell Metropolitan Borough Council,http://www.sandwell.gov.uk/info/200202/performance_and_spending/1079/payments_over_500,06-Dec-2022,FINANCE (Inc SIU),BROWNE JACOBSON LLP,Assistant Chief Executive (Excl SIU),1098.50,Assistant Chief Executive (Excl SIU),2323P09_CR00306,109574
Sandwell Metropolitan Borough Council,http://www.sandwell.gov.uk/info/200202/performance_and_spending/1079/payments_over_500,07-Dec-2022,FINANCE (Inc SIU),BROWNE JACOBSON LLP,Assistant Chief Executive (Excl SIU),1132.30,Assistant Chief Executive (Excl SIU),2323P09_CR00307,109574
Sandwell Metropolitan Borough Council,http://www.sandwell.gov.uk/info/200202/performance_and_spending/1079/payments_over_500,06-Dec-2022,FINANCE (Inc SIU),BROWNE JACOBSON LLP,Assistant Chief Executive (Excl SIU),1926.60,Assistant Chief Executive (Excl SIU),2323P09_CR00308,109574
Sandwell Metropolitan Borough Council,http://www.sandwell.gov.uk/info/200202/performance_and_spending/1079/payments_over_500,15-Dec-2022,FINANCE (Inc SIU),CLEARWATER SOLICITORS LTD,Assistant Chief Executive (Excl SIU),7500.00,Assistant Chief Executive (Excl SIU),2323P09_CR00309,139808
Sandwell Metropolitan Borough Council,http://www.sandwell.gov.uk/info/200202/performance_and_spending/1079/payments_over_500,13-Dec-2022,FINANCE (Inc SIU),COBLEYS LLP,Assistant Chief Executive (Excl SIU),1000.00,Assistant Chief Executive (Excl SIU),2323P09_CR00310,110381
Sandwell Metropolitan Borough Council,http://www.sandwell.gov.uk/info/200202/performance_and_spending/1079/payments_over_500,08-Dec-2022,FINANCE (Inc SIU),DRISCOLL KINGSTON SOLICITORS,Assistant Chief Executive (Excl SIU),500.00,Assistant Chief Executive (Excl SIU),2323P09_CR00311,140883
Sandwell Metropolitan Borough Council,http://www.sandwell.gov.uk/info/200202/performance_and_spending/1079/payments_over_500,21-Dec-2022,FINANCE (Inc SIU),DRISCOLL KINGSTON SOLICITORS,Assistant Chief Executive (Excl SIU),1133.28,Assistant Chief Executive (Excl SIU),2323P09_CR00312,140883
Sandwell Metropolitan Borough Council,http://www.sandwell.gov.uk/info/200202/performance_and_spending/1079/payments_over_500,08-Dec-2022,FINANCE (Inc SIU),DRISCOLL KINGSTON SOLICITORS,Assistant Chief Executive (Excl SIU),2000.00,Assistant Chief Executive (Excl SIU),2323P09_CR00313,140883
Sandwell Metropolitan Borough Council,http://www.sandwell.gov.uk/info/200202/performance_and_spending/1079/payments_over_500,09-Dec-2022,FINANCE (Inc SIU),DRISCOLL KINGSTON SOLICITORS,Assistant Chief Executive (Excl SIU),3000.00,Assistant Chief Executive (Excl SIU),2323P09_CR00314,140883
Sandwell Metropolitan Borough Council,http://www.sandwell.gov.uk/info/200202/performance_and_spending/1079/payments_over_500,21-Dec-2022,FINANCE (Inc SIU),DRISCOLL KINGSTON SOLICITORS,Assistant Chief Executive (Excl SIU),5000.00,Assistant Chief Executive (Excl SIU),2323P09_CR00315,140883
Sandwell Metropolitan Borough Council,http://www.sandwell.gov.uk/info/200202/performance_and_spending/1079/payments_over_500,08-Dec-2022,FINANCE (Inc SIU),GOWING LAW SOLICITORS,Assistant Chief Executive (Excl SIU),1000.00,Assistant Chief Executive (Excl SIU),2323P09_CR00316,163069
Sandwell Metropolitan Borough Council,http://www.sandwell.gov.uk/info/200202/performance_and_spending/1079/payments_over_500,14-Dec-2022,FINANCE (Inc SIU),GOWING LAW SOLICITORS,Assistant Chief Executive (Excl SIU),1000.00,Assistant Chief Executive (Excl SIU),2323P09_CR00317,163069
Sandwell Metropolitan Borough Council,http://www.sandwell.gov.uk/info/200202/performance_and_spending/1079/payments_over_500,01-Dec-2022,FINANCE (Inc SIU),GOWING LAW SOLICITORS,Assistant Chief Executive (Excl SIU),7000.00,Assistant Chief Executive (Excl SIU),2323P09_CR00318,163069
Sandwell Metropolitan Borough Council,http://www.sandwell.gov.uk/info/200202/performance_and_spending/1079/payments_over_500,01-Dec-2022,FINANCE (Inc SIU),GRAHAM COFFEY & CO SOLICITORS,Assistant Chief Executive (Excl SIU),660.00,Assistant Chief Executive (Excl SIU),2323P09_CR00319,92839
Sandwell Metropolitan Borough Council,http://www.sandwell.gov.uk/info/200202/performance_and_spending/1079/payments_over_500,14-Dec-2022,FINANCE (Inc SIU),MATRIX SOLICITORS,Assistant Chief Executive (Excl SIU),1000.00,Assistant Chief Executive (Excl SIU),2323P09_CR00320,150465
Sandwell Metropolitan Borough Council,http://www.sandwell.gov.uk/info/200202/performance_and_spending/1079/payments_over_500,08-Dec-2022,FINANCE (Inc SIU),MATRIX SOLICITORS,Assistant Chief Executive (Excl SIU),1200.00,Assistant Chief Executive (Excl SIU),2323P09_CR00321,150465
Sandwell Metropolitan Borough Council,http://www.sandwell.gov.uk/info/200202/performance_and_spending/1079/payments_over_500,19-Dec-2022,FINANCE (Inc SIU),MATRIX SOLICITORS,Assistant Chief Executive (Excl SIU),1250.00,Assistant Chief Executive (Excl SIU),2323P09_CR00322,150465
Sandwell Metropolitan Borough Council,http://www.sandwell.gov.uk/info/200202/performance_and_spending/1079/payments_over_500,06-Dec-2022,FINANCE (Inc SIU),MATRIX SOLICITORS,Assistant Chief Executive (Excl SIU),2000.00,Assistant Chief Executive (Excl SIU),2323P09_CR00323,150465
Sandwell Metropolitan Borough Council,http://www.sandwell.gov.uk/info/200202/performance_and_spending/1079/payments_over_500,19-Dec-2022,FINANCE (Inc SIU),MATRIX SOLICITORS,Assistant Chief Executive (Excl SIU),4000.00,Assistant Chief Executive (Excl SIU),2323P09_CR00324,150465
Sandwell Metropolitan Borough Council,http://www.sandwell.gov.uk/info/200202/performance_and_spending/1079/payments_over_500,14-Dec-2022,FINANCE (Inc SIU),MATRIX SOLICITORS,Assistant Chief Executive (Excl SIU),4000.00,Assistant Chief Executive (Excl SIU),2323P09_CR00325,150465
Sandwell Metropolitan Borough Council,http://www.sandwell.gov.uk/info/200202/performance_and_spending/1079/payments_over_500,22-Dec-2022,FINANCE (Inc SIU),MATRIX SOLICITORS,Assistant Chief Executive (Excl SIU),4500.00,Assistant Chief Executive (Excl SIU),2323P09_CR00326,150465
Sandwell Metropolitan Borough Council,http://www.sandwell.gov.uk/info/200202/performance_and_spending/1079/payments_over_500,08-Dec-2022,FINANCE (Inc SIU),MATRIX SOLICITORS,Assistant Chief Executive (Excl SIU),5500.00,Assistant Chief Executive (Excl SIU),2323P09_CR00327,150465
Sandwell Metropolitan Borough Council,http://www.sandwell.gov.uk/info/200202/performance_and_spending/1079/payments_over_500,01-Dec-2022,FINANCE (Inc SIU),MCDERMOTT SMITH LAW CLIENT ACCOUNT,Assistant Chief Executive (Excl SIU),5000.00,Assistant Chief Executive (Excl SIU),2323P09_CR00328,164526
Sandwell Metropolitan Borough Council,http://www.sandwell.gov.uk/info/200202/performance_and_spending/1079/payments_over_500,14-Dec-2022,FINANCE (Inc SIU),SATCHELL MORAN SOLICITORS,Assistant Chief Executive (Excl SIU),2000.00,Assistant Chief Executive (Excl SIU),2323P09_CR00329,154265
Sandwell Metropolitan Borough Council,http://www.sandwell.gov.uk/info/200202/performance_and_spending/1079/payments_over_500,09-Dec-2022,FINANCE (Inc SIU),SEDGWICK INTERNATIONAL UK ,Assistant Chief Executive (Excl SIU),700.00,Assistant Chief Executive (Excl SIU),2323P09_CR00330,136510
Sandwell Metropolitan Borough Council,http://www.sandwell.gov.uk/info/200202/performance_and_spending/1079/payments_over_500,22-Dec-2022,FINANCE (Inc SIU),SNK SOLICITORS - HSBC CLIENT ACCOUNT,Assistant Chief Executive (Excl SIU),6000.00,Assistant Chief Executive (Excl SIU),2323P09_CR00331,153730
Sandwell Metropolitan Borough Council,http://www.sandwell.gov.uk/info/200202/performance_and_spending/1079/payments_over_500,22-Dec-2022,FINANCE (Inc SIU),THE ASBESTOS LAW PARTNERSHIP LLP- CLIENT ACCOUNT,Assistant Chief Executive (Excl SIU),1461.10,Assistant Chief Executive (Excl SIU),2323P09_CR00332,150951
Sandwell Metropolitan Borough Council,http://www.sandwell.gov.uk/info/200202/performance_and_spending/1079/payments_over_500,02-Dec-2022,FINANCE (Inc SIU),THE PHOENIX COLLEGIATE,Assistant Chief Executive (Excl SIU),700.00,Assistant Chief Executive (Excl SIU),2323P09_CR00333,100538
Sandwell Metropolitan Borough Council,http://www.sandwell.gov.uk/info/200202/performance_and_spending/1079/payments_over_500,14-Dec-2022,FINANCE (Inc SIU),WILLIAMS & CO CLIENT ACCOUNT,Assistant Chief Executive (Excl SIU),3500.00,Assistant Chief Executive (Excl SIU),2323P09_CR00334,164882
Sandwell Metropolitan Borough Council,http://www.sandwell.gov.uk/info/200202/performance_and_spending/1079/payments_over_500,14-Dec-2022,FINANCE (Inc SIU),WILLIAMS & CO CLIENT ACCOUNT,Assistant Chief Executive (Excl SIU),6250.00,Assistant Chief Executive (Excl SIU),2323P09_CR00335,164882
Sandwell Metropolitan Borough Council,http://www.sandwell.gov.uk/info/200202/performance_and_spending/1079/payments_over_500,23-Dec-2022,FINANCE (Inc SIU),BOND TURNER,Assistant Chief Executive (Excl SIU),1500.00,Assistant Chief Executive (Excl SIU),2323P09_CR00336,152400
Sandwell Metropolitan Borough Council,http://www.sandwell.gov.uk/info/200202/performance_and_spending/1079/payments_over_500,02-Dec-2022,FINANCE (Inc SIU),BOND TURNER,Assistant Chief Executive (Excl SIU),2250.00,Assistant Chief Executive (Excl SIU),2323P09_CR00337,152400
Sandwell Metropolitan Borough Council,http://www.sandwell.gov.uk/info/200202/performance_and_spending/1079/payments_over_500,06-Dec-2022,FINANCE (Inc SIU),REDACTED PERSONAL DATA,Assistant Chief Executive (Excl SIU),1500.00,Assistant Chief Executive (Excl SIU),2323P09_CR00338,REDACTED PERSONAL DATA
Sandwell Metropolitan Borough Council,http://www.sandwell.gov.uk/info/200202/performance_and_spending/1079/payments_over_500,12-Dec-2022,FINANCE (Inc SIU),REDACTED PERSONAL DATA,Assistant Chief Executive (Excl SIU),934.00,Assistant Chief Executive (Excl SIU),2323P09_CR00339,REDACTED PERSONAL DATA
Sandwell Metropolitan Borough Council,http://www.sandwell.gov.uk/info/200202/performance_and_spending/1079/payments_over_500,01-Dec-2022,FINANCE (Inc SIU),REDACTED PERSONAL DATA,Assistant Chief Executive (Excl SIU),2166.35,Assistant Chief Executive (Excl SIU),2323P09_CR00340,REDACTED PERSONAL DATA
Sandwell Metropolitan Borough Council,http://www.sandwell.gov.uk/info/200202/performance_and_spending/1079/payments_over_500,02-Dec-2022,FINANCE (Inc SIU),REDACTED PERSONAL DATA,Assistant Chief Executive (Excl SIU),700.00,Assistant Chief Executive (Excl SIU),2323P09_CR00341,REDACTED PERSONAL DATA
Sandwell Metropolitan Borough Council,http://www.sandwell.gov.uk/info/200202/performance_and_spending/1079/payments_over_500,01-Dec-2022,FINANCE (Inc SIU),HAYS SPECIALIST RECRUITMENT LTD,Assistant Chief Executive (Excl SIU),-68115.55,Assistant Chief Executive (Excl SIU),2323P09_CR00342,80349
Sandwell Metropolitan Borough Council,http://www.sandwell.gov.uk/info/200202/performance_and_spending/1079/payments_over_500,01-Dec-2022,FINANCE (Inc SIU),HAYS SPECIALIST RECRUITMENT LTD,Assistant Chief Executive (Excl SIU),-7079.83,Assistant Chief Executive (Excl SIU),2323P09_CR00343,80349
Sandwell Metropolitan Borough Council,http://www.sandwell.gov.uk/info/200202/performance_and_spending/1079/payments_over_500,01-Dec-2022,FINANCE (Inc SIU),HAYS SPECIALIST RECRUITMENT LTD,Assistant Chief Executive (Excl SIU),-3393.95,Assistant Chief Executive (Excl SIU),2323P09_CR00344,80349
Sandwell Metropolitan Borough Council,http://www.sandwell.gov.uk/info/200202/performance_and_spending/1079/payments_over_500,01-Dec-2022,FINANCE (Inc SIU),ALLPAY LIMITED,Total Adult Social Care,960.30,Total Adult Social Care,2323P09_CR00345,111177
Sandwell Metropolitan Borough Council,http://www.sandwell.gov.uk/info/200202/performance_and_spending/1079/payments_over_500,01-Dec-2022,FINANCE (Inc SIU),ANALYTICAL SERVICES INTERNATIONAL LTD,Assistant Chief Executive (Excl SIU),8390.00,Assistant Chief Executive (Excl SIU),2323P09_CR00346,141474
Sandwell Metropolitan Borough Council,http://www.sandwell.gov.uk/info/200202/performance_and_spending/1079/payments_over_500,01-Dec-2022,FINANCE (Inc SIU),ANALYTICAL SERVICES INTERNATIONAL LTD,Assistant Chief Executive (Excl SIU),8930.00,Assistant Chief Executive (Excl SIU),2323P09_CR00347,141474
Sandwell Metropolitan Borough Council,http://www.sandwell.gov.uk/info/200202/performance_and_spending/1079/payments_over_500,19-Dec-2022,FINANCE (Inc SIU),BARNSLEY MBC,Assistant Chief Executive (Excl SIU),3000.00,Assistant Chief Executive (Excl SIU),2323P09_CR00348,01650159
Sandwell Metropolitan Borough Council,http://www.sandwell.gov.uk/info/200202/performance_and_spending/1079/payments_over_500,19-Dec-2022,FINANCE (Inc SIU),BCH PROPERTY LIMITED,Childrens Services,933.52,Childrens Services,2323P09_CR00349,01011861
Sandwell Metropolitan Borough Council,http://www.sandwell.gov.uk/info/200202/performance_and_spending/1079/payments_over_500,19-Dec-2022,FINANCE (Inc SIU),BCH PROPERTY LIMITED,Childrens Services,962.64,Childrens Services,2323P09_CR00350,01011861
Sandwell Metropolitan Borough Council,http://www.sandwell.gov.uk/info/200202/performance_and_spending/1079/payments_over_500,19-Dec-2022,FINANCE (Inc SIU),BCH PROPERTY LIMITED,Childrens Services,1166.76,Childrens Services,2323P09_CR00351,01011861
Sandwell Metropolitan Borough Council,http://www.sandwell.gov.uk/info/200202/performance_and_spending/1079/payments_over_500,19-Dec-2022,FINANCE (Inc SIU),BCH PROPERTY LIMITED,Childrens Services,1166.76,Childrens Services,2323P09_CR00352,01011861
Sandwell Metropolitan Borough Council,http://www.sandwell.gov.uk/info/200202/performance_and_spending/1079/payments_over_500,19-Dec-2022,FINANCE (Inc SIU),BCH PROPERTY LIMITED,Childrens Services,1166.76,Childrens Services,2323P09_CR00353,01011861
Sandwell Metropolitan Borough Council,http://www.sandwell.gov.uk/info/200202/performance_and_spending/1079/payments_over_500,19-Dec-2022,FINANCE (Inc SIU),BCH PROPERTY LIMITED,Childrens Services,1166.76,Childrens Services,2323P09_CR00354,01011861
Sandwell Metropolitan Borough Council,http://www.sandwell.gov.uk/info/200202/performance_and_spending/1079/payments_over_500,19-Dec-2022,FINANCE (Inc SIU),BCH PROPERTY LIMITED,Childrens Services,1166.76,Childrens Services,2323P09_CR00355,01011861
Sandwell Metropolitan Borough Council,http://www.sandwell.gov.uk/info/200202/performance_and_spending/1079/payments_over_500,19-Dec-2022,FINANCE (Inc SIU),BCH PROPERTY LIMITED,Childrens Services,1166.76,Childrens Services,2323P09_CR00356,01011861
Sandwell Metropolitan Borough Council,http://www.sandwell.gov.uk/info/200202/performance_and_spending/1079/payments_over_500,19-Dec-2022,FINANCE (Inc SIU),BCH PROPERTY LIMITED,Childrens Services,1166.76,Childrens Services,2323P09_CR00357,01011861
Sandwell Metropolitan Borough Council,http://www.sandwell.gov.uk/info/200202/performance_and_spending/1079/payments_over_500,19-Dec-2022,FINANCE (Inc SIU),BCH PROPERTY LIMITED,Childrens Services,1283.52,Childrens Services,2323P09_CR00358,01011861
Sandwell Metropolitan Borough Council,http://www.sandwell.gov.uk/info/200202/performance_and_spending/1079/payments_over_500,19-Dec-2022,FINANCE (Inc SIU),BCH PROPERTY LIMITED,Childrens Services,1283.52,Childrens Services,2323P09_CR00359,01011861
Sandwell Metropolitan Borough Council,http://www.sandwell.gov.uk/info/200202/performance_and_spending/1079/payments_over_500,19-Dec-2022,FINANCE (Inc SIU),BCH PROPERTY LIMITED,Childrens Services,1283.52,Childrens Services,2323P09_CR00360,01011861
Sandwell Metropolitan Borough Council,http://www.sandwell.gov.uk/info/200202/performance_and_spending/1079/payments_over_500,19-Dec-2022,FINANCE (Inc SIU),BCH PROPERTY LIMITED,Childrens Services,1283.52,Childrens Services,2323P09_CR00361,01011861
Sandwell Metropolitan Borough Council,http://www.sandwell.gov.uk/info/200202/performance_and_spending/1079/payments_over_500,19-Dec-2022,FINANCE (Inc SIU),BCH PROPERTY LIMITED,Childrens Services,1283.52,Childrens Services,2323P09_CR00362,01011861
Sandwell Metropolitan Borough Council,http://www.sandwell.gov.uk/info/200202/performance_and_spending/1079/payments_over_500,19-Dec-2022,FINANCE (Inc SIU),BCH PROPERTY LIMITED,Childrens Services,1568.00,Childrens Services,2323P09_CR00363,01011861
Sandwell Metropolitan Borough Council,http://www.sandwell.gov.uk/info/200202/performance_and_spending/1079/payments_over_500,19-Dec-2022,FINANCE (Inc SIU),BCH PROPERTY LIMITED,Childrens Services,1568.00,Childrens Services,2323P09_CR00364,01011861
Sandwell Metropolitan Borough Council,http://www.sandwell.gov.uk/info/200202/performance_and_spending/1079/payments_over_500,19-Dec-2022,FINANCE (Inc SIU),BCH PROPERTY LIMITED,Childrens Services,1568.00,Childrens Services,2323P09_CR00365,01011861
Sandwell Metropolitan Borough Council,http://www.sandwell.gov.uk/info/200202/performance_and_spending/1079/payments_over_500,19-Dec-2022,FINANCE (Inc SIU),BCH PROPERTY LIMITED,Childrens Services,1568.00,Childrens Services,2323P09_CR00366,01011861
Sandwell Metropolitan Borough Council,http://www.sandwell.gov.uk/info/200202/performance_and_spending/1079/payments_over_500,19-Dec-2022,FINANCE (Inc SIU),BCH PROPERTY LIMITED,Childrens Services,1568.00,Childrens Services,2323P09_CR00367,01011861
Sandwell Metropolitan Borough Council,http://www.sandwell.gov.uk/info/200202/performance_and_spending/1079/payments_over_500,19-Dec-2022,FINANCE (Inc SIU),BCH PROPERTY LIMITED,Childrens Services,1568.00,Childrens Services,2323P09_CR00368,01011861
Sandwell Metropolitan Borough Council,http://www.sandwell.gov.uk/info/200202/performance_and_spending/1079/payments_over_500,07-Dec-2022,FINANCE (Inc SIU),BIRMINGHAM CHILDRENS HOSPITAL NHS TRUST,Assistant Chief Executive (Excl SIU),1224.00,Assistant Chief Executive (Excl SIU),2323P09_CR00369,01748491
Sandwell Metropolitan Borough Council,http://www.sandwell.gov.uk/info/200202/performance_and_spending/1079/payments_over_500,01-Dec-2022,FINANCE (Inc SIU),BWR RECRUITMENT LTD TA TOTAL SOCIAL,Assistant Chief Executive (Excl SIU),708.40,Assistant Chief Executive (Excl SIU),2323P09_CR00370,162923
Sandwell Metropolitan Borough Council,http://www.sandwell.gov.uk/info/200202/performance_and_spending/1079/payments_over_500,01-Dec-2022,FINANCE (Inc SIU),BWR RECRUITMENT LTD TA TOTAL SOCIAL,Assistant Chief Executive (Excl SIU),1032.00,Assistant Chief Executive (Excl SIU),2323P09_CR00371,162923
Sandwell Metropolitan Borough Council,http://www.sandwell.gov.uk/info/200202/performance_and_spending/1079/payments_over_500,07-Dec-2022,FINANCE (Inc SIU),BWR RECRUITMENT LTD TA TOTAL SOCIAL,Assistant Chief Executive (Excl SIU),1191.40,Assistant Chief Executive (Excl SIU),2323P09_CR00372,162923
Sandwell Metropolitan Borough Council,http://www.sandwell.gov.uk/info/200202/performance_and_spending/1079/payments_over_500,01-Dec-2022,FINANCE (Inc SIU),BWR RECRUITMENT LTD TA TOTAL SOCIAL,Assistant Chief Executive (Excl SIU),1191.40,Assistant Chief Executive (Excl SIU),2323P09_CR00373,162923
Sandwell Metropolitan Borough Council,http://www.sandwell.gov.uk/info/200202/performance_and_spending/1079/payments_over_500,07-Dec-2022,FINANCE (Inc SIU),BWR RECRUITMENT LTD TA TOTAL SOCIAL,Assistant Chief Executive (Excl SIU),1272.80,Assistant Chief Executive (Excl SIU),2323P09_CR00374,162923
Sandwell Metropolitan Borough Council,http://www.sandwell.gov.uk/info/200202/performance_and_spending/1079/payments_over_500,01-Dec-2022,FINANCE (Inc SIU),BWR RECRUITMENT LTD TA TOTAL SOCIAL,Assistant Chief Executive (Excl SIU),1272.80,Assistant Chief Executive (Excl SIU),2323P09_CR00375,162923
Sandwell Metropolitan Borough Council,http://www.sandwell.gov.uk/info/200202/performance_and_spending/1079/payments_over_500,01-Dec-2022,FINANCE (Inc SIU),CENTERPRISE INTERNATIONAL LTD,Assistant Chief Executive (Excl SIU),21106.00,Assistant Chief Executive (Excl SIU),2323P09_CR00376,10029
Sandwell Metropolitan Borough Council,http://www.sandwell.gov.uk/info/200202/performance_and_spending/1079/payments_over_500,05-Dec-2022,FINANCE (Inc SIU),CUSTODIAN GROUP LTD,Childrens Services,525.00,Childrens Services,2323P09_CR00377,151637
Sandwell Metropolitan Borough Council,http://www.sandwell.gov.uk/info/200202/performance_and_spending/1079/payments_over_500,05-Dec-2022,FINANCE (Inc SIU),CUSTODIAN GROUP LTD,Childrens Services,525.00,Childrens Services,2323P09_CR00378,151637
Sandwell Metropolitan Borough Council,http://www.sandwell.gov.uk/info/200202/performance_and_spending/1079/payments_over_500,05-Dec-2022,FINANCE (Inc SIU),CUSTODIAN GROUP LTD,Childrens Services,525.00,Childrens Services,2323P09_CR00379,151637
Sandwell Metropolitan Borough Council,http://www.sandwell.gov.uk/info/200202/performance_and_spending/1079/payments_over_500,05-Dec-2022,FINANCE (Inc SIU),CUSTODIAN GROUP LTD,Childrens Services,525.00,Childrens Services,2323P09_CR00380,151637
Sandwell Metropolitan Borough Council,http://www.sandwell.gov.uk/info/200202/performance_and_spending/1079/payments_over_500,05-Dec-2022,FINANCE (Inc SIU),CUSTODIAN GROUP LTD,Childrens Services,525.00,Childrens Services,2323P09_CR00381,151637
Sandwell Metropolitan Borough Council,http://www.sandwell.gov.uk/info/200202/performance_and_spending/1079/payments_over_500,09-Dec-2022,FINANCE (Inc SIU),CUSTODIAN GROUP LTD,Childrens Services,525.00,Childrens Services,2323P09_CR00382,151637
Sandwell Metropolitan Borough Council,http://www.sandwell.gov.uk/info/200202/performance_and_spending/1079/payments_over_500,09-Dec-2022,FINANCE (Inc SIU),CUSTODIAN GROUP LTD,Childrens Services,525.00,Childrens Services,2323P09_CR00383,151637
Sandwell Metropolitan Borough Council,http://www.sandwell.gov.uk/info/200202/performance_and_spending/1079/payments_over_500,09-Dec-2022,FINANCE (Inc SIU),CUSTODIAN GROUP LTD,Childrens Services,525.00,Childrens Services,2323P09_CR00384,151637
Sandwell Metropolitan Borough Council,http://www.sandwell.gov.uk/info/200202/performance_and_spending/1079/payments_over_500,09-Dec-2022,FINANCE (Inc SIU),CUSTODIAN GROUP LTD,Childrens Services,525.00,Childrens Services,2323P09_CR00385,151637
Sandwell Metropolitan Borough Council,http://www.sandwell.gov.uk/info/200202/performance_and_spending/1079/payments_over_500,09-Dec-2022,FINANCE (Inc SIU),CUSTODIAN GROUP LTD,Childrens Services,525.00,Childrens Services,2323P09_CR00386,151637
Sandwell Metropolitan Borough Council,http://www.sandwell.gov.uk/info/200202/performance_and_spending/1079/payments_over_500,19-Dec-2022,FINANCE (Inc SIU),CUSTODIAN GROUP LTD,Childrens Services,525.00,Childrens Services,2323P09_CR00387,151637
Sandwell Metropolitan Borough Council,http://www.sandwell.gov.uk/info/200202/performance_and_spending/1079/payments_over_500,19-Dec-2022,FINANCE (Inc SIU),CUSTODIAN GROUP LTD,Childrens Services,525.00,Childrens Services,2323P09_CR00388,151637
Sandwell Metropolitan Borough Council,http://www.sandwell.gov.uk/info/200202/performance_and_spending/1079/payments_over_500,19-Dec-2022,FINANCE (Inc SIU),CUSTODIAN GROUP LTD,Childrens Services,525.00,Childrens Services,2323P09_CR00389,151637
Sandwell Metropolitan Borough Council,http://www.sandwell.gov.uk/info/200202/performance_and_spending/1079/payments_over_500,19-Dec-2022,FINANCE (Inc SIU),CUSTODIAN GROUP LTD,Childrens Services,525.00,Childrens Services,2323P09_CR00390,151637
Sandwell Metropolitan Borough Council,http://www.sandwell.gov.uk/info/200202/performance_and_spending/1079/payments_over_500,19-Dec-2022,FINANCE (Inc SIU),CUSTODIAN GROUP LTD,Childrens Services,525.00,Childrens Services,2323P09_CR00391,151637
Sandwell Metropolitan Borough Council,http://www.sandwell.gov.uk/info/200202/performance_and_spending/1079/payments_over_500,05-Dec-2022,FINANCE (Inc SIU),DSI BILLING SERVICES LIMITED,Assistant Chief Executive (Excl SIU),19626.18,Assistant Chief Executive (Excl SIU),2323P09_CR00392,161962
Sandwell Metropolitan Borough Council,http://www.sandwell.gov.uk/info/200202/performance_and_spending/1079/payments_over_500,07-Dec-2022,FINANCE (Inc SIU),EDEN BROWN LIMITED,Assistant Chief Executive (Excl SIU),972.32,Assistant Chief Executive (Excl SIU),2323P09_CR00393,47241
Sandwell Metropolitan Borough Council,http://www.sandwell.gov.uk/info/200202/performance_and_spending/1079/payments_over_500,01-Dec-2022,FINANCE (Inc SIU),EDEN BROWN LIMITED,Assistant Chief Executive (Excl SIU),972.32,Assistant Chief Executive (Excl SIU),2323P09_CR00394,47241
Sandwell Metropolitan Borough Council,http://www.sandwell.gov.uk/info/200202/performance_and_spending/1079/payments_over_500,07-Dec-2022,FINANCE (Inc SIU),G4S CASH SOLUTIONS (UK) LTD,Assistant Chief Executive (Excl SIU),640.30,Assistant Chief Executive (Excl SIU),2323P09_CR00395,01606348
Sandwell Metropolitan Borough Council,http://www.sandwell.gov.uk/info/200202/performance_and_spending/1079/payments_over_500,19-Dec-2022,FINANCE (Inc SIU),GALLAGHER BASSETT INTERNATIONAL LTD,Assistant Chief Executive (Excl SIU),24321.00,Assistant Chief Executive (Excl SIU),2323P09_CR00396,106229
Sandwell Metropolitan Borough Council,http://www.sandwell.gov.uk/info/200202/performance_and_spending/1079/payments_over_500,12-Dec-2022,FINANCE (Inc SIU),HAWK INCENTIVES LTD,Assistant Chief Executive (Excl SIU),1500.00,Assistant Chief Executive (Excl SIU),2323P09_CR00397,148982
Sandwell Metropolitan Borough Council,http://www.sandwell.gov.uk/info/200202/performance_and_spending/1079/payments_over_500,01-Dec-2022,FINANCE (Inc SIU),HAYS SPECIALIST RECRUITMENT LTD,Assistant Chief Executive (Excl SIU),102040.96,Assistant Chief Executive (Excl SIU),2323P09_CR00398,80349
Sandwell Metropolitan Borough Council,http://www.sandwell.gov.uk/info/200202/performance_and_spending/1079/payments_over_500,01-Dec-2022,FINANCE (Inc SIU),HAYS SPECIALIST RECRUITMENT LTD,Assistant Chief Executive (Excl SIU),103336.30,Assistant Chief Executive (Excl SIU),2323P09_CR00399,80349
Sandwell Metropolitan Borough Council,http://www.sandwell.gov.uk/info/200202/performance_and_spending/1079/payments_over_500,01-Dec-2022,FINANCE (Inc SIU),HAYS SPECIALIST RECRUITMENT LTD,Assistant Chief Executive (Excl SIU),131086.82,Assistant Chief Executive (Excl SIU),2323P09_CR00400,80349
Sandwell Metropolitan Borough Council,http://www.sandwell.gov.uk/info/200202/performance_and_spending/1079/payments_over_500,01-Dec-2022,FINANCE (Inc SIU),HAYS SPECIALIST RECRUITMENT LTD,Assistant Chief Executive (Excl SIU),131734.71,Assistant Chief Executive (Excl SIU),2323P09_CR00401,80349
Sandwell Metropolitan Borough Council,http://www.sandwell.gov.uk/info/200202/performance_and_spending/1079/payments_over_500,01-Dec-2022,FINANCE (Inc SIU),HAYS SPECIALIST RECRUITMENT LTD,Assistant Chief Executive (Excl SIU),139851.26,Assistant Chief Executive (Excl SIU),2323P09_CR00402,80349
Sandwell Metropolitan Borough Council,http://www.sandwell.gov.uk/info/200202/performance_and_spending/1079/payments_over_500,02-Dec-2022,FINANCE (Inc SIU),HEMISPHERE WEST EUROPE LTD,Assistant Chief Executive (Excl SIU),1620.00,Assistant Chief Executive (Excl SIU),2323P09_CR00403,147383
Sandwell Metropolitan Borough Council,http://www.sandwell.gov.uk/info/200202/performance_and_spending/1079/payments_over_500,19-Dec-2022,FINANCE (Inc SIU),HM COURT & TRIBUNAL SERVICES,Assistant Chief Executive (Excl SIU),5562.00,Assistant Chief Executive (Excl SIU),2323P09_CR00404,120965
Sandwell Metropolitan Borough Council,http://www.sandwell.gov.uk/info/200202/performance_and_spending/1079/payments_over_500,06-Dec-2022,FINANCE (Inc SIU),HUMMINGBIRD-SOLUTIONS LTD,Assistant Chief Executive (Excl SIU),756.24,Assistant Chief Executive (Excl SIU),2323P09_CR00405,162921
Sandwell Metropolitan Borough Council,http://www.sandwell.gov.uk/info/200202/performance_and_spending/1079/payments_over_500,16-Dec-2022,FINANCE (Inc SIU),INOAPPS LIMITED,Assistant Chief Executive (Excl SIU),7700.00,Assistant Chief Executive (Excl SIU),2323P09_CR00406,122364
Sandwell Metropolitan Borough Council,http://www.sandwell.gov.uk/info/200202/performance_and_spending/1079/payments_over_500,09-Dec-2022,FINANCE (Inc SIU),INOAPPS LIMITED,Assistant Chief Executive (Excl SIU),7700.00,Assistant Chief Executive (Excl SIU),2323P09_CR00407,122364
Sandwell Metropolitan Borough Council,http://www.sandwell.gov.uk/info/200202/performance_and_spending/1079/payments_over_500,05-Dec-2022,FINANCE (Inc SIU),IRON MOUNTAIN (UK) LTD,Assistant Chief Executive (Excl SIU),1035.31,Assistant Chief Executive (Excl SIU),2323P09_CR00408,01719704
Sandwell Metropolitan Borough Council,http://www.sandwell.gov.uk/info/200202/performance_and_spending/1079/payments_over_500,01-Dec-2022,FINANCE (Inc SIU),JORECRUITMENT LIMITED,Assistant Chief Executive (Excl SIU),517.50,Assistant Chief Executive (Excl SIU),2323P09_CR00409,154704
Sandwell Metropolitan Borough Council,http://www.sandwell.gov.uk/info/200202/performance_and_spending/1079/payments_over_500,20-Dec-2022,FINANCE (Inc SIU),JORECRUITMENT LIMITED,Assistant Chief Executive (Excl SIU),525.00,Assistant Chief Executive (Excl SIU),2323P09_CR00410,154704
Sandwell Metropolitan Borough Council,http://www.sandwell.gov.uk/info/200202/performance_and_spending/1079/payments_over_500,01-Dec-2022,FINANCE (Inc SIU),JORECRUITMENT LIMITED,Assistant Chief Executive (Excl SIU),555.00,Assistant Chief Executive (Excl SIU),2323P09_CR00411,154704
Sandwell Metropolitan Borough Council,http://www.sandwell.gov.uk/info/200202/performance_and_spending/1079/payments_over_500,06-Dec-2022,FINANCE (Inc SIU),JORECRUITMENT LIMITED,Assistant Chief Executive (Excl SIU),555.00,Assistant Chief Executive (Excl SIU),2323P09_CR00412,154704
Sandwell Metropolitan Borough Council,http://www.sandwell.gov.uk/info/200202/performance_and_spending/1079/payments_over_500,06-Dec-2022,FINANCE (Inc SIU),JORECRUITMENT LIMITED,Assistant Chief Executive (Excl SIU),555.00,Assistant Chief Executive (Excl SIU),2323P09_CR00413,154704
Sandwell Metropolitan Borough Council,http://www.sandwell.gov.uk/info/200202/performance_and_spending/1079/payments_over_500,20-Dec-2022,FINANCE (Inc SIU),JORECRUITMENT LIMITED,Assistant Chief Executive (Excl SIU),555.00,Assistant Chief Executive (Excl SIU),2323P09_CR00414,154704
Sandwell Metropolitan Borough Council,http://www.sandwell.gov.uk/info/200202/performance_and_spending/1079/payments_over_500,01-Dec-2022,FINANCE (Inc SIU),JORECRUITMENT LIMITED,Assistant Chief Executive (Excl SIU),562.50,Assistant Chief Executive (Excl SIU),2323P09_CR00415,154704
Sandwell Metropolitan Borough Council,http://www.sandwell.gov.uk/info/200202/performance_and_spending/1079/payments_over_500,01-Dec-2022,FINANCE (Inc SIU),JORECRUITMENT LIMITED,Assistant Chief Executive (Excl SIU),666.00,Assistant Chief Executive (Excl SIU),2323P09_CR00416,154704
Sandwell Metropolitan Borough Council,http://www.sandwell.gov.uk/info/200202/performance_and_spending/1079/payments_over_500,01-Dec-2022,FINANCE (Inc SIU),JORECRUITMENT LIMITED,Assistant Chief Executive (Excl SIU),666.00,Assistant Chief Executive (Excl SIU),2323P09_CR00417,154704
Sandwell Metropolitan Borough Council,http://www.sandwell.gov.uk/info/200202/performance_and_spending/1079/payments_over_500,06-Dec-2022,FINANCE (Inc SIU),JORECRUITMENT LIMITED,Assistant Chief Executive (Excl SIU),666.00,Assistant Chief Executive (Excl SIU),2323P09_CR00418,154704
Sandwell Metropolitan Borough Council,http://www.sandwell.gov.uk/info/200202/performance_and_spending/1079/payments_over_500,20-Dec-2022,FINANCE (Inc SIU),JORECRUITMENT LIMITED,Assistant Chief Executive (Excl SIU),666.00,Assistant Chief Executive (Excl SIU),2323P09_CR00419,154704
Sandwell Metropolitan Borough Council,http://www.sandwell.gov.uk/info/200202/performance_and_spending/1079/payments_over_500,01-Dec-2022,FINANCE (Inc SIU),JORECRUITMENT LIMITED,Assistant Chief Executive (Excl SIU),740.00,Assistant Chief Executive (Excl SIU),2323P09_CR00420,154704
Sandwell Metropolitan Borough Council,http://www.sandwell.gov.uk/info/200202/performance_and_spending/1079/payments_over_500,01-Dec-2022,FINANCE (Inc SIU),JORECRUITMENT LIMITED,Assistant Chief Executive (Excl SIU),740.00,Assistant Chief Executive (Excl SIU),2323P09_CR00421,154704
Sandwell Metropolitan Borough Council,http://www.sandwell.gov.uk/info/200202/performance_and_spending/1079/payments_over_500,06-Dec-2022,FINANCE (Inc SIU),JORECRUITMENT LIMITED,Assistant Chief Executive (Excl SIU),740.00,Assistant Chief Executive (Excl SIU),2323P09_CR00422,154704
Sandwell Metropolitan Borough Council,http://www.sandwell.gov.uk/info/200202/performance_and_spending/1079/payments_over_500,20-Dec-2022,FINANCE (Inc SIU),JORECRUITMENT LIMITED,Assistant Chief Executive (Excl SIU),740.00,Assistant Chief Executive (Excl SIU),2323P09_CR00423,154704
Sandwell Metropolitan Borough Council,http://www.sandwell.gov.uk/info/200202/performance_and_spending/1079/payments_over_500,20-Dec-2022,FINANCE (Inc SIU),JORECRUITMENT LIMITED,Assistant Chief Executive (Excl SIU),750.00,Assistant Chief Executive (Excl SIU),2323P09_CR00424,154704
Sandwell Metropolitan Borough Council,http://www.sandwell.gov.uk/info/200202/performance_and_spending/1079/payments_over_500,01-Dec-2022,FINANCE (Inc SIU),JORECRUITMENT LIMITED,Assistant Chief Executive (Excl SIU),1113.70,Assistant Chief Executive (Excl SIU),2323P09_CR00425,154704
Sandwell Metropolitan Borough Council,http://www.sandwell.gov.uk/info/200202/performance_and_spending/1079/payments_over_500,01-Dec-2022,FINANCE (Inc SIU),JORECRUITMENT LIMITED,Assistant Chief Executive (Excl SIU),1113.70,Assistant Chief Executive (Excl SIU),2323P09_CR00426,154704
Sandwell Metropolitan Borough Council,http://www.sandwell.gov.uk/info/200202/performance_and_spending/1079/payments_over_500,06-Dec-2022,FINANCE (Inc SIU),JORECRUITMENT LIMITED,Assistant Chief Executive (Excl SIU),1113.70,Assistant Chief Executive (Excl SIU),2323P09_CR00427,154704
Sandwell Metropolitan Borough Council,http://www.sandwell.gov.uk/info/200202/performance_and_spending/1079/payments_over_500,20-Dec-2022,FINANCE (Inc SIU),JORECRUITMENT LIMITED,Assistant Chief Executive (Excl SIU),1113.70,Assistant Chief Executive (Excl SIU),2323P09_CR00428,154704
Sandwell Metropolitan Borough Council,http://www.sandwell.gov.uk/info/200202/performance_and_spending/1079/payments_over_500,01-Dec-2022,FINANCE (Inc SIU),JORECRUITMENT LIMITED,Assistant Chief Executive (Excl SIU),1569.79,Assistant Chief Executive (Excl SIU),2323P09_CR00429,154704
Sandwell Metropolitan Borough Council,http://www.sandwell.gov.uk/info/200202/performance_and_spending/1079/payments_over_500,01-Dec-2022,FINANCE (Inc SIU),JORECRUITMENT LIMITED,Assistant Chief Executive (Excl SIU),1569.79,Assistant Chief Executive (Excl SIU),2323P09_CR00430,154704
Sandwell Metropolitan Borough Council,http://www.sandwell.gov.uk/info/200202/performance_and_spending/1079/payments_over_500,06-Dec-2022,FINANCE (Inc SIU),JORECRUITMENT LIMITED,Assistant Chief Executive (Excl SIU),1569.79,Assistant Chief Executive (Excl SIU),2323P09_CR00431,154704
Sandwell Metropolitan Borough Council,http://www.sandwell.gov.uk/info/200202/performance_and_spending/1079/payments_over_500,20-Dec-2022,FINANCE (Inc SIU),JORECRUITMENT LIMITED,Assistant Chief Executive (Excl SIU),1569.79,Assistant Chief Executive (Excl SIU),2323P09_CR00432,154704
Sandwell Metropolitan Borough Council,http://www.sandwell.gov.uk/info/200202/performance_and_spending/1079/payments_over_500,01-Dec-2022,FINANCE (Inc SIU),KENYON BLOCK CONSULTANTS LIMITED,Assistant Chief Executive (Excl SIU),540.00,Assistant Chief Executive (Excl SIU),2323P09_CR00433,119366
Sandwell Metropolitan Borough Council,http://www.sandwell.gov.uk/info/200202/performance_and_spending/1079/payments_over_500,01-Dec-2022,FINANCE (Inc SIU),KENYON BLOCK CONSULTANTS LIMITED,Assistant Chief Executive (Excl SIU),832.50,Assistant Chief Executive (Excl SIU),2323P09_CR00434,119366
Sandwell Metropolitan Borough Council,http://www.sandwell.gov.uk/info/200202/performance_and_spending/1079/payments_over_500,01-Dec-2022,FINANCE (Inc SIU),KENYON BLOCK CONSULTANTS LIMITED,Assistant Chief Executive (Excl SIU),900.00,Assistant Chief Executive (Excl SIU),2323P09_CR00435,119366
Sandwell Metropolitan Borough Council,http://www.sandwell.gov.uk/info/200202/performance_and_spending/1079/payments_over_500,09-Dec-2022,FINANCE (Inc SIU),KENYON BLOCK CONSULTANTS LIMITED,Assistant Chief Executive (Excl SIU),922.50,Assistant Chief Executive (Excl SIU),2323P09_CR00436,119366
Sandwell Metropolitan Borough Council,http://www.sandwell.gov.uk/info/200202/performance_and_spending/1079/payments_over_500,01-Dec-2022,FINANCE (Inc SIU),KENYON BLOCK CONSULTANTS LIMITED,Assistant Chief Executive (Excl SIU),945.00,Assistant Chief Executive (Excl SIU),2323P09_CR00437,119366
Sandwell Metropolitan Borough Council,http://www.sandwell.gov.uk/info/200202/performance_and_spending/1079/payments_over_500,09-Dec-2022,FINANCE (Inc SIU),KENYON BLOCK CONSULTANTS LIMITED,Assistant Chief Executive (Excl SIU),967.50,Assistant Chief Executive (Excl SIU),2323P09_CR00438,119366
Sandwell Metropolitan Borough Council,http://www.sandwell.gov.uk/info/200202/performance_and_spending/1079/payments_over_500,06-Dec-2022,FINANCE (Inc SIU),MACILDOWIE ASSOCIATES LTD,Assistant Chief Executive (Excl SIU),3510.00,Assistant Chief Executive (Excl SIU),2323P09_CR00439,164797
Sandwell Metropolitan Borough Council,http://www.sandwell.gov.uk/info/200202/performance_and_spending/1079/payments_over_500,01-Dec-2022,FINANCE (Inc SIU),MACILDOWIE ASSOCIATES LTD,Assistant Chief Executive (Excl SIU),3510.00,Assistant Chief Executive (Excl SIU),2323P09_CR00440,164797
Sandwell Metropolitan Borough Council,http://www.sandwell.gov.uk/info/200202/performance_and_spending/1079/payments_over_500,07-Dec-2022,FINANCE (Inc SIU),NATIONAL MEDICARE SERVICES LTD,Assistant Chief Executive (Excl SIU),773.00,Assistant Chief Executive (Excl SIU),2323P09_CR00441,164404
Sandwell Metropolitan Borough Council,http://www.sandwell.gov.uk/info/200202/performance_and_spending/1079/payments_over_500,09-Dec-2022,FINANCE (Inc SIU),NATIONAL MEDICARE SERVICES LTD,Assistant Chief Executive (Excl SIU),1025.00,Assistant Chief Executive (Excl SIU),2323P09_CR00442,164404
Sandwell Metropolitan Borough Council,http://www.sandwell.gov.uk/info/200202/performance_and_spending/1079/payments_over_500,01-Dec-2022,FINANCE (Inc SIU),NEC SOFTWARE SOLUTIONS UK LTD,Assistant Chief Executive (Excl SIU),710.22,Assistant Chief Executive (Excl SIU),2323P09_CR00443,56043
Sandwell Metropolitan Borough Council,http://www.sandwell.gov.uk/info/200202/performance_and_spending/1079/payments_over_500,01-Dec-2022,FINANCE (Inc SIU),NEC SOFTWARE SOLUTIONS UK LTD,Assistant Chief Executive (Excl SIU),813.91,Assistant Chief Executive (Excl SIU),2323P09_CR00444,56043
Sandwell Metropolitan Borough Council,http://www.sandwell.gov.uk/info/200202/performance_and_spending/1079/payments_over_500,01-Dec-2022,FINANCE (Inc SIU),NEC SOFTWARE SOLUTIONS UK LTD,Assistant Chief Executive (Excl SIU),1440.00,Assistant Chief Executive (Excl SIU),2323P09_CR00445,56043
Sandwell Metropolitan Borough Council,http://www.sandwell.gov.uk/info/200202/performance_and_spending/1079/payments_over_500,01-Dec-2022,FINANCE (Inc SIU),NEC SOFTWARE SOLUTIONS UK LTD,Assistant Chief Executive (Excl SIU),5400.00,Assistant Chief Executive (Excl SIU),2323P09_CR00446,56043
Sandwell Metropolitan Borough Council,http://www.sandwell.gov.uk/info/200202/performance_and_spending/1079/payments_over_500,01-Dec-2022,FINANCE (Inc SIU),NEC SOFTWARE SOLUTIONS UK LTD,Assistant Chief Executive (Excl SIU),8772.50,Assistant Chief Executive (Excl SIU),2323P09_CR00447,56043
Sandwell Metropolitan Borough Council,http://www.sandwell.gov.uk/info/200202/performance_and_spending/1079/payments_over_500,01-Dec-2022,FINANCE (Inc SIU),NEC SOFTWARE SOLUTIONS UK LTD,Assistant Chief Executive (Excl SIU),14642.10,Assistant Chief Executive (Excl SIU),2323P09_CR00448,56043
Sandwell Metropolitan Borough Council,http://www.sandwell.gov.uk/info/200202/performance_and_spending/1079/payments_over_500,06-Dec-2022,FINANCE (Inc SIU),PAYPOINT PLC,Assistant Chief Executive (Excl SIU),5084.20,Assistant Chief Executive (Excl SIU),2323P09_CR00449,112333
Sandwell Metropolitan Borough Council,http://www.sandwell.gov.uk/info/200202/performance_and_spending/1079/payments_over_500,13-Dec-2022,FINANCE (Inc SIU),PAYPOINT PLC,Assistant Chief Executive (Excl SIU),8288.80,Assistant Chief Executive (Excl SIU),2323P09_CR00450,112333
Sandwell Metropolitan Borough Council,http://www.sandwell.gov.uk/info/200202/performance_and_spending/1079/payments_over_500,16-Dec-2022,FINANCE (Inc SIU),PAYPOINT PLC,Assistant Chief Executive (Excl SIU),9136.50,Assistant Chief Executive (Excl SIU),2323P09_CR00451,112333
Sandwell Metropolitan Borough Council,http://www.sandwell.gov.uk/info/200202/performance_and_spending/1079/payments_over_500,19-Dec-2022,FINANCE (Inc SIU),PENNA PLC,Assistant Chief Executive (Excl SIU),3669.00,Assistant Chief Executive (Excl SIU),2323P09_CR00452,20829
Sandwell Metropolitan Borough Council,http://www.sandwell.gov.uk/info/200202/performance_and_spending/1079/payments_over_500,01-Dec-2022,FINANCE (Inc SIU),PENNA PLC,Assistant Chief Executive (Excl SIU),3996.00,Assistant Chief Executive (Excl SIU),2323P09_CR00453,20829
Sandwell Metropolitan Borough Council,http://www.sandwell.gov.uk/info/200202/performance_and_spending/1079/payments_over_500,01-Dec-2022,FINANCE (Inc SIU),PENNA PLC,Assistant Chief Executive (Excl SIU),9991.00,Assistant Chief Executive (Excl SIU),2323P09_CR00454,20829
Sandwell Metropolitan Borough Council,http://www.sandwell.gov.uk/info/200202/performance_and_spending/1079/payments_over_500,01-Dec-2022,FINANCE (Inc SIU),PHOENIX SOFTWARE LTD,Assistant Chief Executive (Excl SIU),4673.32,Assistant Chief Executive (Excl SIU),2323P09_CR00455,01504689
Sandwell Metropolitan Borough Council,http://www.sandwell.gov.uk/info/200202/performance_and_spending/1079/payments_over_500,01-Dec-2022,FINANCE (Inc SIU),PHOENIX SOFTWARE LTD,Assistant Chief Executive (Excl SIU),7332.80,Assistant Chief Executive (Excl SIU),2323P09_CR00456,01504689
Sandwell Metropolitan Borough Council,http://www.sandwell.gov.uk/info/200202/performance_and_spending/1079/payments_over_500,19-Dec-2022,FINANCE (Inc SIU),RESTORE SCAN LIMITED,Total Adult Social Care,923.76,Total Adult Social Care,2323P09_CR00457,13549
Sandwell Metropolitan Borough Council,http://www.sandwell.gov.uk/info/200202/performance_and_spending/1079/payments_over_500,07-Dec-2022,FINANCE (Inc SIU),SELLICK PARTNERSHIP GROUP LIMITED,Assistant Chief Executive (Excl SIU),533.52,Assistant Chief Executive (Excl SIU),2323P09_CR00458,63607
Sandwell Metropolitan Borough Council,http://www.sandwell.gov.uk/info/200202/performance_and_spending/1079/payments_over_500,06-Dec-2022,FINANCE (Inc SIU),SELLICK PARTNERSHIP GROUP LIMITED,Assistant Chief Executive (Excl SIU),1878.72,Assistant Chief Executive (Excl SIU),2323P09_CR00459,63607
Sandwell Metropolitan Borough Council,http://www.sandwell.gov.uk/info/200202/performance_and_spending/1079/payments_over_500,01-Dec-2022,FINANCE (Inc SIU),SELLICK PARTNERSHIP GROUP LIMITED,Assistant Chief Executive (Excl SIU),2109.00,Assistant Chief Executive (Excl SIU),2323P09_CR00460,63607
Sandwell Metropolitan Borough Council,http://www.sandwell.gov.uk/info/200202/performance_and_spending/1079/payments_over_500,09-Dec-2022,FINANCE (Inc SIU),SERVICE CARE SOLUTIONS,Assistant Chief Executive (Excl SIU),519.75,Assistant Chief Executive (Excl SIU),2323P09_CR00461,123856
Sandwell Metropolitan Borough Council,http://www.sandwell.gov.uk/info/200202/performance_and_spending/1079/payments_over_500,16-Dec-2022,FINANCE (Inc SIU),SERVICE CARE SOLUTIONS,Assistant Chief Executive (Excl SIU),548.70,Assistant Chief Executive (Excl SIU),2323P09_CR00462,123856
Sandwell Metropolitan Borough Council,http://www.sandwell.gov.uk/info/200202/performance_and_spending/1079/payments_over_500,07-Dec-2022,FINANCE (Inc SIU),SERVICE CARE SOLUTIONS,Assistant Chief Executive (Excl SIU),676.73,Assistant Chief Executive (Excl SIU),2323P09_CR00463,123856
Sandwell Metropolitan Borough Council,http://www.sandwell.gov.uk/info/200202/performance_and_spending/1079/payments_over_500,16-Dec-2022,FINANCE (Inc SIU),SERVICE CARE SOLUTIONS,Assistant Chief Executive (Excl SIU),676.73,Assistant Chief Executive (Excl SIU),2323P09_CR00464,123856
Sandwell Metropolitan Borough Council,http://www.sandwell.gov.uk/info/200202/performance_and_spending/1079/payments_over_500,16-Dec-2022,FINANCE (Inc SIU),SERVICE CARE SOLUTIONS,Assistant Chief Executive (Excl SIU),676.73,Assistant Chief Executive (Excl SIU),2323P09_CR00465,123856
Sandwell Metropolitan Borough Council,http://www.sandwell.gov.uk/info/200202/performance_and_spending/1079/payments_over_500,16-Dec-2022,FINANCE (Inc SIU),SERVICE CARE SOLUTIONS,Assistant Chief Executive (Excl SIU),676.73,Assistant Chief Executive (Excl SIU),2323P09_CR00466,123856
Sandwell Metropolitan Borough Council,http://www.sandwell.gov.uk/info/200202/performance_and_spending/1079/payments_over_500,09-Dec-2022,FINANCE (Inc SIU),SERVICE CARE SOLUTIONS,Assistant Chief Executive (Excl SIU),676.73,Assistant Chief Executive (Excl SIU),2323P09_CR00467,123856
Sandwell Metropolitan Borough Council,http://www.sandwell.gov.uk/info/200202/performance_and_spending/1079/payments_over_500,01-Dec-2022,FINANCE (Inc SIU),SERVICE CARE SOLUTIONS,Assistant Chief Executive (Excl SIU),676.73,Assistant Chief Executive (Excl SIU),2323P09_CR00468,123856
Sandwell Metropolitan Borough Council,http://www.sandwell.gov.uk/info/200202/performance_and_spending/1079/payments_over_500,09-Dec-2022,FINANCE (Inc SIU),SERVICE CARE SOLUTIONS,Assistant Chief Executive (Excl SIU),945.00,Assistant Chief Executive (Excl SIU),2323P09_CR00469,123856
Sandwell Metropolitan Borough Council,http://www.sandwell.gov.uk/info/200202/performance_and_spending/1079/payments_over_500,16-Dec-2022,FINANCE (Inc SIU),SERVICE CARE SOLUTIONS,Assistant Chief Executive (Excl SIU),947.40,Assistant Chief Executive (Excl SIU),2323P09_CR00470,123856
Sandwell Metropolitan Borough Council,http://www.sandwell.gov.uk/info/200202/performance_and_spending/1079/payments_over_500,16-Dec-2022,FINANCE (Inc SIU),SERVICE CARE SOLUTIONS,Assistant Chief Executive (Excl SIU),950.60,Assistant Chief Executive (Excl SIU),2323P09_CR00471,123856
Sandwell Metropolitan Borough Council,http://www.sandwell.gov.uk/info/200202/performance_and_spending/1079/payments_over_500,09-Dec-2022,FINANCE (Inc SIU),SHEFFIELD CHILDRENS NHS FOUNDATION TRUST,Assistant Chief Executive (Excl SIU),1358.00,Assistant Chief Executive (Excl SIU),2323P09_CR00472,97325
Sandwell Metropolitan Borough Council,http://www.sandwell.gov.uk/info/200202/performance_and_spending/1079/payments_over_500,01-Dec-2022,FINANCE (Inc SIU),SOCITM ADVISORY LTD,Assistant Chief Executive (Excl SIU),6555.00,Assistant Chief Executive (Excl SIU),2323P09_CR00473,162370
Sandwell Metropolitan Borough Council,http://www.sandwell.gov.uk/info/200202/performance_and_spending/1079/payments_over_500,19-Dec-2022,FINANCE (Inc SIU),"THE INSTITUTE OF REVENUES, RATING AND VALUATION",Assistant Chief Executive (Excl SIU),1560.00,Assistant Chief Executive (Excl SIU),2323P09_CR00474,01088661
Sandwell Metropolitan Borough Council,http://www.sandwell.gov.uk/info/200202/performance_and_spending/1079/payments_over_500,01-Dec-2022,FINANCE (Inc SIU),THE OYSTER PARTNERSHIP LTD,Assistant Chief Executive (Excl SIU),830.05,Assistant Chief Executive (Excl SIU),2323P09_CR00475,148917
Sandwell Metropolitan Borough Council,http://www.sandwell.gov.uk/info/200202/performance_and_spending/1079/payments_over_500,01-Dec-2022,FINANCE (Inc SIU),THE OYSTER PARTNERSHIP LTD,Assistant Chief Executive (Excl SIU),832.30,Assistant Chief Executive (Excl SIU),2323P09_CR00476,148917
Sandwell Metropolitan Borough Council,http://www.sandwell.gov.uk/info/200202/performance_and_spending/1079/payments_over_500,07-Dec-2022,FINANCE (Inc SIU),THE OYSTER PARTNERSHIP LTD,Assistant Chief Executive (Excl SIU),1020.15,Assistant Chief Executive (Excl SIU),2323P09_CR00477,148917
Sandwell Metropolitan Borough Council,http://www.sandwell.gov.uk/info/200202/performance_and_spending/1079/payments_over_500,01-Dec-2022,FINANCE (Inc SIU),THE OYSTER PARTNERSHIP LTD,Assistant Chief Executive (Excl SIU),1045.45,Assistant Chief Executive (Excl SIU),2323P09_CR00478,148917
Sandwell Metropolitan Borough Council,http://www.sandwell.gov.uk/info/200202/performance_and_spending/1079/payments_over_500,01-Dec-2022,FINANCE (Inc SIU),THE OYSTER PARTNERSHIP LTD,Assistant Chief Executive (Excl SIU),1053.10,Assistant Chief Executive (Excl SIU),2323P09_CR00479,148917
Sandwell Metropolitan Borough Council,http://www.sandwell.gov.uk/info/200202/performance_and_spending/1079/payments_over_500,07-Dec-2022,FINANCE (Inc SIU),THE OYSTER PARTNERSHIP LTD,Assistant Chief Executive (Excl SIU),1665.00,Assistant Chief Executive (Excl SIU),2323P09_CR00480,148917
Sandwell Metropolitan Borough Council,http://www.sandwell.gov.uk/info/200202/performance_and_spending/1079/payments_over_500,01-Dec-2022,FINANCE (Inc SIU),THE OYSTER PARTNERSHIP LTD,Assistant Chief Executive (Excl SIU),1665.00,Assistant Chief Executive (Excl SIU),2323P09_CR00481,148917
Sandwell Metropolitan Borough Council,http://www.sandwell.gov.uk/info/200202/performance_and_spending/1079/payments_over_500,01-Dec-2022,FINANCE (Inc SIU),THE OYSTER PARTNERSHIP LTD,Assistant Chief Executive (Excl SIU),1665.00,Assistant Chief Executive (Excl SIU),2323P09_CR00482,148917
Sandwell Metropolitan Borough Council,http://www.sandwell.gov.uk/info/200202/performance_and_spending/1079/payments_over_500,01-Dec-2022,FINANCE (Inc SIU),THE OYSTER PARTNERSHIP LTD,Assistant Chief Executive (Excl SIU),1665.00,Assistant Chief Executive (Excl SIU),2323P09_CR00483,148917
Sandwell Metropolitan Borough Council,http://www.sandwell.gov.uk/info/200202/performance_and_spending/1079/payments_over_500,01-Dec-2022,FINANCE (Inc SIU),THE OYSTER PARTNERSHIP LTD,Assistant Chief Executive (Excl SIU),1665.00,Assistant Chief Executive (Excl SIU),2323P09_CR00484,148917
Sandwell Metropolitan Borough Council,http://www.sandwell.gov.uk/info/200202/performance_and_spending/1079/payments_over_500,01-Dec-2022,FINANCE (Inc SIU),THE OYSTER PARTNERSHIP LTD,Assistant Chief Executive (Excl SIU),3475.00,Assistant Chief Executive (Excl SIU),2323P09_CR00485,148917
Sandwell Metropolitan Borough Council,http://www.sandwell.gov.uk/info/200202/performance_and_spending/1079/payments_over_500,01-Dec-2022,FINANCE (Inc SIU),TOTAL SUPPORT RECRUITMENT LTD,Assistant Chief Executive (Excl SIU),1295.04,Assistant Chief Executive (Excl SIU),2323P09_CR00486,162092
Sandwell Metropolitan Borough Council,http://www.sandwell.gov.uk/info/200202/performance_and_spending/1079/payments_over_500,07-Dec-2022,FINANCE (Inc SIU),TOTAL SUPPORT RECRUITMENT LTD,Assistant Chief Executive (Excl SIU),1584.42,Assistant Chief Executive (Excl SIU),2323P09_CR00487,162092
Sandwell Metropolitan Borough Council,http://www.sandwell.gov.uk/info/200202/performance_and_spending/1079/payments_over_500,18-Dec-2022,FINANCE (Inc SIU),TRH WALSALL LTD,Childrens Services,933.52,Childrens Services,2323P09_CR00488,85648
Sandwell Metropolitan Borough Council,http://www.sandwell.gov.uk/info/200202/performance_and_spending/1079/payments_over_500,18-Dec-2022,FINANCE (Inc SIU),TRH WALSALL LTD,Childrens Services,933.52,Childrens Services,2323P09_CR00489,85648
Sandwell Metropolitan Borough Council,http://www.sandwell.gov.uk/info/200202/performance_and_spending/1079/payments_over_500,18-Dec-2022,FINANCE (Inc SIU),TRH WALSALL LTD,Childrens Services,1166.76,Childrens Services,2323P09_CR00490,85648
Sandwell Metropolitan Borough Council,http://www.sandwell.gov.uk/info/200202/performance_and_spending/1079/payments_over_500,18-Dec-2022,FINANCE (Inc SIU),TRH WALSALL LTD,Childrens Services,1166.76,Childrens Services,2323P09_CR00491,85648
Sandwell Metropolitan Borough Council,http://www.sandwell.gov.uk/info/200202/performance_and_spending/1079/payments_over_500,18-Dec-2022,FINANCE (Inc SIU),TRH WALSALL LTD,Childrens Services,1166.76,Childrens Services,2323P09_CR00492,85648
Sandwell Metropolitan Borough Council,http://www.sandwell.gov.uk/info/200202/performance_and_spending/1079/payments_over_500,18-Dec-2022,FINANCE (Inc SIU),TRH WALSALL LTD,Childrens Services,1166.76,Childrens Services,2323P09_CR00493,85648
Sandwell Metropolitan Borough Council,http://www.sandwell.gov.uk/info/200202/performance_and_spending/1079/payments_over_500,01-Dec-2022,FINANCE (Inc SIU),VENN GROUP LTD,Assistant Chief Executive (Excl SIU),564.20,Assistant Chief Executive (Excl SIU),2323P09_CR00494,49728
Sandwell Metropolitan Borough Council,http://www.sandwell.gov.uk/info/200202/performance_and_spending/1079/payments_over_500,16-Dec-2022,FINANCE (Inc SIU),VENN GROUP LTD,Assistant Chief Executive (Excl SIU),613.58,Assistant Chief Executive (Excl SIU),2323P09_CR00495,49728
Sandwell Metropolitan Borough Council,http://www.sandwell.gov.uk/info/200202/performance_and_spending/1079/payments_over_500,01-Dec-2022,FINANCE (Inc SIU),VENN GROUP LTD,Assistant Chief Executive (Excl SIU),613.65,Assistant Chief Executive (Excl SIU),2323P09_CR00496,49728
Sandwell Metropolitan Borough Council,http://www.sandwell.gov.uk/info/200202/performance_and_spending/1079/payments_over_500,01-Dec-2022,FINANCE (Inc SIU),VENN GROUP LTD,Assistant Chief Executive (Excl SIU),663.00,Assistant Chief Executive (Excl SIU),2323P09_CR00497,49728
Sandwell Metropolitan Borough Council,http://www.sandwell.gov.uk/info/200202/performance_and_spending/1079/payments_over_500,01-Dec-2022,FINANCE (Inc SIU),VENN GROUP LTD,Assistant Chief Executive (Excl SIU),705.32,Assistant Chief Executive (Excl SIU),2323P09_CR00498,49728
Sandwell Metropolitan Borough Council,http://www.sandwell.gov.uk/info/200202/performance_and_spending/1079/payments_over_500,01-Dec-2022,FINANCE (Inc SIU),VENN GROUP LTD,Assistant Chief Executive (Excl SIU),711.75,Assistant Chief Executive (Excl SIU),2323P09_CR00499,49728
Sandwell Metropolitan Borough Council,http://www.sandwell.gov.uk/info/200202/performance_and_spending/1079/payments_over_500,01-Dec-2022,FINANCE (Inc SIU),VENN GROUP LTD,Assistant Chief Executive (Excl SIU),721.50,Assistant Chief Executive (Excl SIU),2323P09_CR00500,49728
Sandwell Metropolitan Borough Council,http://www.sandwell.gov.uk/info/200202/performance_and_spending/1079/payments_over_500,16-Dec-2022,FINANCE (Inc SIU),VENN GROUP LTD,Assistant Chief Executive (Excl SIU),724.82,Assistant Chief Executive (Excl SIU),2323P09_CR00501,49728
Sandwell Metropolitan Borough Council,http://www.sandwell.gov.uk/info/200202/performance_and_spending/1079/payments_over_500,01-Dec-2022,FINANCE (Inc SIU),VENN GROUP LTD,Assistant Chief Executive (Excl SIU),740.00,Assistant Chief Executive (Excl SIU),2323P09_CR00502,49728
Sandwell Metropolitan Borough Council,http://www.sandwell.gov.uk/info/200202/performance_and_spending/1079/payments_over_500,16-Dec-2022,FINANCE (Inc SIU),VENN GROUP LTD,Assistant Chief Executive (Excl SIU),740.00,Assistant Chief Executive (Excl SIU),2323P09_CR00503,49728
Sandwell Metropolitan Borough Council,http://www.sandwell.gov.uk/info/200202/performance_and_spending/1079/payments_over_500,01-Dec-2022,FINANCE (Inc SIU),VENN GROUP LTD,Assistant Chief Executive (Excl SIU),745.55,Assistant Chief Executive (Excl SIU),2323P09_CR00504,49728
Sandwell Metropolitan Borough Council,http://www.sandwell.gov.uk/info/200202/performance_and_spending/1079/payments_over_500,01-Dec-2022,FINANCE (Inc SIU),VENN GROUP LTD,Assistant Chief Executive (Excl SIU),745.55,Assistant Chief Executive (Excl SIU),2323P09_CR00505,49728
Sandwell Metropolitan Borough Council,http://www.sandwell.gov.uk/info/200202/performance_and_spending/1079/payments_over_500,16-Dec-2022,FINANCE (Inc SIU),VENN GROUP LTD,Assistant Chief Executive (Excl SIU),745.55,Assistant Chief Executive (Excl SIU),2323P09_CR00506,49728
Sandwell Metropolitan Borough Council,http://www.sandwell.gov.uk/info/200202/performance_and_spending/1079/payments_over_500,01-Dec-2022,FINANCE (Inc SIU),VENN GROUP LTD,Assistant Chief Executive (Excl SIU),801.79,Assistant Chief Executive (Excl SIU),2323P09_CR00507,49728
Sandwell Metropolitan Borough Council,http://www.sandwell.gov.uk/info/200202/performance_and_spending/1079/payments_over_500,01-Dec-2022,FINANCE (Inc SIU),VENN GROUP LTD,Assistant Chief Executive (Excl SIU),801.79,Assistant Chief Executive (Excl SIU),2323P09_CR00508,49728
Sandwell Metropolitan Borough Council,http://www.sandwell.gov.uk/info/200202/performance_and_spending/1079/payments_over_500,16-Dec-2022,FINANCE (Inc SIU),VENN GROUP LTD,Assistant Chief Executive (Excl SIU),801.79,Assistant Chief Executive (Excl SIU),2323P09_CR00509,49728
Sandwell Metropolitan Borough Council,http://www.sandwell.gov.uk/info/200202/performance_and_spending/1079/payments_over_500,01-Dec-2022,FINANCE (Inc SIU),VENN GROUP LTD,Assistant Chief Executive (Excl SIU),801.79,Assistant Chief Executive (Excl SIU),2323P09_CR00510,49728
Sandwell Metropolitan Borough Council,http://www.sandwell.gov.uk/info/200202/performance_and_spending/1079/payments_over_500,01-Dec-2022,FINANCE (Inc SIU),VENN GROUP LTD,Assistant Chief Executive (Excl SIU),819.75,Assistant Chief Executive (Excl SIU),2323P09_CR00511,49728
Sandwell Metropolitan Borough Council,http://www.sandwell.gov.uk/info/200202/performance_and_spending/1079/payments_over_500,16-Dec-2022,FINANCE (Inc SIU),VENN GROUP LTD,Assistant Chief Executive (Excl SIU),828.75,Assistant Chief Executive (Excl SIU),2323P09_CR00512,49728
Sandwell Metropolitan Borough Council,http://www.sandwell.gov.uk/info/200202/performance_and_spending/1079/payments_over_500,01-Dec-2022,FINANCE (Inc SIU),VENN GROUP LTD,Assistant Chief Executive (Excl SIU),830.65,Assistant Chief Executive (Excl SIU),2323P09_CR00513,49728
Sandwell Metropolitan Borough Council,http://www.sandwell.gov.uk/info/200202/performance_and_spending/1079/payments_over_500,01-Dec-2022,FINANCE (Inc SIU),VENN GROUP LTD,Assistant Chief Executive (Excl SIU),830.65,Assistant Chief Executive (Excl SIU),2323P09_CR00514,49728
Sandwell Metropolitan Borough Council,http://www.sandwell.gov.uk/info/200202/performance_and_spending/1079/payments_over_500,16-Dec-2022,FINANCE (Inc SIU),VENN GROUP LTD,Assistant Chief Executive (Excl SIU),830.65,Assistant Chief Executive (Excl SIU),2323P09_CR00515,49728
Sandwell Metropolitan Borough Council,http://www.sandwell.gov.uk/info/200202/performance_and_spending/1079/payments_over_500,01-Dec-2022,FINANCE (Inc SIU),VENN GROUP LTD,Assistant Chief Executive (Excl SIU),830.65,Assistant Chief Executive (Excl SIU),2323P09_CR00516,49728
Sandwell Metropolitan Borough Council,http://www.sandwell.gov.uk/info/200202/performance_and_spending/1079/payments_over_500,16-Dec-2022,FINANCE (Inc SIU),VENN GROUP LTD,Assistant Chief Executive (Excl SIU),845.70,Assistant Chief Executive (Excl SIU),2323P09_CR00517,49728
Sandwell Metropolitan Borough Council,http://www.sandwell.gov.uk/info/200202/performance_and_spending/1079/payments_over_500,01-Dec-2022,FINANCE (Inc SIU),VENN GROUP LTD,Assistant Chief Executive (Excl SIU),894.00,Assistant Chief Executive (Excl SIU),2323P09_CR00518,49728
Sandwell Metropolitan Borough Council,http://www.sandwell.gov.uk/info/200202/performance_and_spending/1079/payments_over_500,01-Dec-2022,FINANCE (Inc SIU),VENN GROUP LTD,Assistant Chief Executive (Excl SIU),960.00,Assistant Chief Executive (Excl SIU),2323P09_CR00519,49728
Sandwell Metropolitan Borough Council,http://www.sandwell.gov.uk/info/200202/performance_and_spending/1079/payments_over_500,01-Dec-2022,FINANCE (Inc SIU),VENN GROUP LTD,Assistant Chief Executive (Excl SIU),990.10,Assistant Chief Executive (Excl SIU),2323P09_CR00520,49728
Sandwell Metropolitan Borough Council,http://www.sandwell.gov.uk/info/200202/performance_and_spending/1079/payments_over_500,01-Dec-2022,FINANCE (Inc SIU),VENN GROUP LTD,Assistant Chief Executive (Excl SIU),990.10,Assistant Chief Executive (Excl SIU),2323P09_CR00521,49728
Sandwell Metropolitan Borough Council,http://www.sandwell.gov.uk/info/200202/performance_and_spending/1079/payments_over_500,01-Dec-2022,FINANCE (Inc SIU),VENN GROUP LTD,Assistant Chief Executive (Excl SIU),1031.93,Assistant Chief Executive (Excl SIU),2323P09_CR00522,49728
Sandwell Metropolitan Borough Council,http://www.sandwell.gov.uk/info/200202/performance_and_spending/1079/payments_over_500,01-Dec-2022,FINANCE (Inc SIU),VENN GROUP LTD,Assistant Chief Executive (Excl SIU),1096.20,Assistant Chief Executive (Excl SIU),2323P09_CR00523,49728
Sandwell Metropolitan Borough Council,http://www.sandwell.gov.uk/info/200202/performance_and_spending/1079/payments_over_500,01-Dec-2022,FINANCE (Inc SIU),VENN GROUP LTD,Assistant Chief Executive (Excl SIU),1200.00,Assistant Chief Executive (Excl SIU),2323P09_CR00524,49728
Sandwell Metropolitan Borough Council,http://www.sandwell.gov.uk/info/200202/performance_and_spending/1079/payments_over_500,16-Dec-2022,FINANCE (Inc SIU),VENN GROUP LTD,Assistant Chief Executive (Excl SIU),1200.00,Assistant Chief Executive (Excl SIU),2323P09_CR00525,49728
Sandwell Metropolitan Borough Council,http://www.sandwell.gov.uk/info/200202/performance_and_spending/1079/payments_over_500,01-Dec-2022,FINANCE (Inc SIU),VENN GROUP LTD,Assistant Chief Executive (Excl SIU),1200.00,Assistant Chief Executive (Excl SIU),2323P09_CR00526,49728
Sandwell Metropolitan Borough Council,http://www.sandwell.gov.uk/info/200202/performance_and_spending/1079/payments_over_500,01-Dec-2022,FINANCE (Inc SIU),VENN GROUP LTD,Assistant Chief Executive (Excl SIU),1211.75,Assistant Chief Executive (Excl SIU),2323P09_CR00527,49728
Sandwell Metropolitan Borough Council,http://www.sandwell.gov.uk/info/200202/performance_and_spending/1079/payments_over_500,09-Dec-2022,FINANCE (Inc SIU),VENN GROUP LTD,Assistant Chief Executive (Excl SIU),1211.75,Assistant Chief Executive (Excl SIU),2323P09_CR00528,49728
Sandwell Metropolitan Borough Council,http://www.sandwell.gov.uk/info/200202/performance_and_spending/1079/payments_over_500,16-Dec-2022,FINANCE (Inc SIU),VENN GROUP LTD,Assistant Chief Executive (Excl SIU),1211.75,Assistant Chief Executive (Excl SIU),2323P09_CR00529,49728
Sandwell Metropolitan Borough Council,http://www.sandwell.gov.uk/info/200202/performance_and_spending/1079/payments_over_500,01-Dec-2022,FINANCE (Inc SIU),VENN GROUP LTD,Assistant Chief Executive (Excl SIU),1211.75,Assistant Chief Executive (Excl SIU),2323P09_CR00530,49728
Sandwell Metropolitan Borough Council,http://www.sandwell.gov.uk/info/200202/performance_and_spending/1079/payments_over_500,01-Dec-2022,FINANCE (Inc SIU),VENN GROUP LTD,Assistant Chief Executive (Excl SIU),1305.36,Assistant Chief Executive (Excl SIU),2323P09_CR00531,49728
Sandwell Metropolitan Borough Council,http://www.sandwell.gov.uk/info/200202/performance_and_spending/1079/payments_over_500,01-Dec-2022,FINANCE (Inc SIU),VENN GROUP LTD,Assistant Chief Executive (Excl SIU),1305.36,Assistant Chief Executive (Excl SIU),2323P09_CR00532,49728
Sandwell Metropolitan Borough Council,http://www.sandwell.gov.uk/info/200202/performance_and_spending/1079/payments_over_500,16-Dec-2022,FINANCE (Inc SIU),VENN GROUP LTD,Assistant Chief Executive (Excl SIU),1305.36,Assistant Chief Executive (Excl SIU),2323P09_CR00533,49728
Sandwell Metropolitan Borough Council,http://www.sandwell.gov.uk/info/200202/performance_and_spending/1079/payments_over_500,01-Dec-2022,FINANCE (Inc SIU),VENN GROUP LTD,Assistant Chief Executive (Excl SIU),1305.36,Assistant Chief Executive (Excl SIU),2323P09_CR00534,49728
Sandwell Metropolitan Borough Council,http://www.sandwell.gov.uk/info/200202/performance_and_spending/1079/payments_over_500,01-Dec-2022,FINANCE (Inc SIU),VENN GROUP LTD,Assistant Chief Executive (Excl SIU),1438.18,Assistant Chief Executive (Excl SIU),2323P09_CR00535,49728
Sandwell Metropolitan Borough Council,http://www.sandwell.gov.uk/info/200202/performance_and_spending/1079/payments_over_500,01-Dec-2022,FINANCE (Inc SIU),VENN GROUP LTD,Assistant Chief Executive (Excl SIU),1462.52,Assistant Chief Executive (Excl SIU),2323P09_CR00536,49728
Sandwell Metropolitan Borough Council,http://www.sandwell.gov.uk/info/200202/performance_and_spending/1079/payments_over_500,16-Dec-2022,FINANCE (Inc SIU),VENN GROUP LTD,Assistant Chief Executive (Excl SIU),1464.83,Assistant Chief Executive (Excl SIU),2323P09_CR00537,49728
Sandwell Metropolitan Borough Council,http://www.sandwell.gov.uk/info/200202/performance_and_spending/1079/payments_over_500,01-Dec-2022,FINANCE (Inc SIU),VENN GROUP LTD,Assistant Chief Executive (Excl SIU),1490.98,Assistant Chief Executive (Excl SIU),2323P09_CR00538,49728
Sandwell Metropolitan Borough Council,http://www.sandwell.gov.uk/info/200202/performance_and_spending/1079/payments_over_500,01-Dec-2022,FINANCE (Inc SIU),VENN GROUP LTD,Assistant Chief Executive (Excl SIU),1590.00,Assistant Chief Executive (Excl SIU),2323P09_CR00539,49728
Sandwell Metropolitan Borough Council,http://www.sandwell.gov.uk/info/200202/performance_and_spending/1079/payments_over_500,01-Dec-2022,FINANCE (Inc SIU),VENN GROUP LTD,Assistant Chief Executive (Excl SIU),1755.99,Assistant Chief Executive (Excl SIU),2323P09_CR00540,49728
Sandwell Metropolitan Borough Council,http://www.sandwell.gov.uk/info/200202/performance_and_spending/1079/payments_over_500,16-Dec-2022,FINANCE (Inc SIU),VENN GROUP LTD,Assistant Chief Executive (Excl SIU),1773.75,Assistant Chief Executive (Excl SIU),2323P09_CR00541,49728
Sandwell Metropolitan Borough Council,http://www.sandwell.gov.uk/info/200202/performance_and_spending/1079/payments_over_500,01-Dec-2022,FINANCE (Inc SIU),VENN GROUP LTD,Assistant Chief Executive (Excl SIU),1785.58,Assistant Chief Executive (Excl SIU),2323P09_CR00542,49728
Sandwell Metropolitan Borough Council,http://www.sandwell.gov.uk/info/200202/performance_and_spending/1079/payments_over_500,01-Dec-2022,FINANCE (Inc SIU),VENN GROUP LTD,Assistant Chief Executive (Excl SIU),1785.58,Assistant Chief Executive (Excl SIU),2323P09_CR00543,49728
Sandwell Metropolitan Borough Council,http://www.sandwell.gov.uk/info/200202/performance_and_spending/1079/payments_over_500,16-Dec-2022,FINANCE (Inc SIU),VENN GROUP LTD,Assistant Chief Executive (Excl SIU),1816.47,Assistant Chief Executive (Excl SIU),2323P09_CR00544,49728
Sandwell Metropolitan Borough Council,http://www.sandwell.gov.uk/info/200202/performance_and_spending/1079/payments_over_500,01-Dec-2022,FINANCE (Inc SIU),VENN GROUP LTD,Assistant Chief Executive (Excl SIU),1855.00,Assistant Chief Executive (Excl SIU),2323P09_CR00545,49728
Sandwell Metropolitan Borough Council,http://www.sandwell.gov.uk/info/200202/performance_and_spending/1079/payments_over_500,06-Dec-2022,FINANCE (Inc SIU),VENN GROUP LTD,Assistant Chief Executive (Excl SIU),1855.00,Assistant Chief Executive (Excl SIU),2323P09_CR00546,49728
Sandwell Metropolitan Borough Council,http://www.sandwell.gov.uk/info/200202/performance_and_spending/1079/payments_over_500,01-Dec-2022,FINANCE (Inc SIU),VENN GROUP LTD,Assistant Chief Executive (Excl SIU),1855.00,Assistant Chief Executive (Excl SIU),2323P09_CR00547,49728
Sandwell Metropolitan Borough Council,http://www.sandwell.gov.uk/info/200202/performance_and_spending/1079/payments_over_500,01-Dec-2022,FINANCE (Inc SIU),VENN GROUP LTD,Assistant Chief Executive (Excl SIU),1967.60,Assistant Chief Executive (Excl SIU),2323P09_CR00548,49728
Sandwell Metropolitan Borough Council,http://www.sandwell.gov.uk/info/200202/performance_and_spending/1079/payments_over_500,01-Dec-2022,FINANCE (Inc SIU),VENN GROUP LTD,Assistant Chief Executive (Excl SIU),1967.60,Assistant Chief Executive (Excl SIU),2323P09_CR00549,49728
Sandwell Metropolitan Borough Council,http://www.sandwell.gov.uk/info/200202/performance_and_spending/1079/payments_over_500,16-Dec-2022,FINANCE (Inc SIU),VENN GROUP LTD,Assistant Chief Executive (Excl SIU),1967.60,Assistant Chief Executive (Excl SIU),2323P09_CR00550,49728
Sandwell Metropolitan Borough Council,http://www.sandwell.gov.uk/info/200202/performance_and_spending/1079/payments_over_500,01-Dec-2022,FINANCE (Inc SIU),VENN GROUP LTD,Assistant Chief Executive (Excl SIU),1967.60,Assistant Chief Executive (Excl SIU),2323P09_CR00551,49728
Sandwell Metropolitan Borough Council,http://www.sandwell.gov.uk/info/200202/performance_and_spending/1079/payments_over_500,01-Dec-2022,FINANCE (Inc SIU),VENN GROUP LTD,Assistant Chief Executive (Excl SIU),2421.96,Assistant Chief Executive (Excl SIU),2323P09_CR00552,49728
Sandwell Metropolitan Borough Council,http://www.sandwell.gov.uk/info/200202/performance_and_spending/1079/payments_over_500,01-Dec-2022,FINANCE (Inc SIU),VENN GROUP LTD,Assistant Chief Executive (Excl SIU),2685.58,Assistant Chief Executive (Excl SIU),2323P09_CR00553,49728
Sandwell Metropolitan Borough Council,http://www.sandwell.gov.uk/info/200202/performance_and_spending/1079/payments_over_500,01-Dec-2022,FINANCE (Inc SIU),VENN GROUP LTD,Assistant Chief Executive (Excl SIU),2724.71,Assistant Chief Executive (Excl SIU),2323P09_CR00554,49728
Sandwell Metropolitan Borough Council,http://www.sandwell.gov.uk/info/200202/performance_and_spending/1079/payments_over_500,16-Dec-2022,FINANCE (Inc SIU),VENN GROUP LTD,Assistant Chief Executive (Excl SIU),2955.94,Assistant Chief Executive (Excl SIU),2323P09_CR00555,49728
Sandwell Metropolitan Borough Council,http://www.sandwell.gov.uk/info/200202/performance_and_spending/1079/payments_over_500,01-Dec-2022,FINANCE (Inc SIU),VENN GROUP LTD,Assistant Chief Executive (Excl SIU),2998.19,Assistant Chief Executive (Excl SIU),2323P09_CR00556,49728
Sandwell Metropolitan Borough Council,http://www.sandwell.gov.uk/info/200202/performance_and_spending/1079/payments_over_500,01-Dec-2022,FINANCE (Inc SIU),VENN GROUP LTD,Assistant Chief Executive (Excl SIU),3027.45,Assistant Chief Executive (Excl SIU),2323P09_CR00557,49728
Sandwell Metropolitan Borough Council,http://www.sandwell.gov.uk/info/200202/performance_and_spending/1079/payments_over_500,01-Dec-2022,FINANCE (Inc SIU),VENN GROUP LTD,Assistant Chief Executive (Excl SIU),3238.38,Assistant Chief Executive (Excl SIU),2323P09_CR00558,49728
Sandwell Metropolitan Borough Council,http://www.sandwell.gov.uk/info/200202/performance_and_spending/1079/payments_over_500,07-Dec-2022,FINANCE (Inc SIU),VIVID RESOURCING,Assistant Chief Executive (Excl SIU),1687.50,Assistant Chief Executive (Excl SIU),2323P09_CR00559,150562
Sandwell Metropolitan Borough Council,http://www.sandwell.gov.uk/info/200202/performance_and_spending/1079/payments_over_500,01-Dec-2022,FINANCE (Inc SIU),VIVID RESOURCING,Assistant Chief Executive (Excl SIU),1687.50,Assistant Chief Executive (Excl SIU),2323P09_CR00560,150562
Sandwell Metropolitan Borough Council,http://www.sandwell.gov.uk/info/200202/performance_and_spending/1079/payments_over_500,01-Dec-2022,FINANCE (Inc SIU),VIVID RESOURCING,Assistant Chief Executive (Excl SIU),3375.00,Assistant Chief Executive (Excl SIU),2323P09_CR00561,150562
Sandwell Metropolitan Borough Council,http://www.sandwell.gov.uk/info/200202/performance_and_spending/1079/payments_over_500,19-Dec-2022,FINANCE (Inc SIU),WEST MIDLANDS COMBINED AUTHORITY,Corporate Management,1047000.00,Corporate Management,2323P09_CR00562,126646
Sandwell Metropolitan Borough Council,http://www.sandwell.gov.uk/info/200202/performance_and_spending/1079/payments_over_500,01-Dec-2022,FINANCE (Inc SIU),WOLVERHAMPTON CITY COUNCIL ,Assistant Chief Executive (Excl SIU),157875.00,Assistant Chief Executive (Excl SIU),2323P09_CR00563,120965
Sandwell Metropolitan Borough Council,http://www.sandwell.gov.uk/info/200202/performance_and_spending/1079/payments_over_500,23-Dec-2022,FINANCE (Inc SIU),WOLVERHAMPTON CITY COUNCIL ,Assistant Chief Executive (Excl SIU),157875.00,Assistant Chief Executive (Excl SIU),2323P09_CR00564,120965
Sandwell Metropolitan Borough Council,http://www.sandwell.gov.uk/info/200202/performance_and_spending/1079/payments_over_500,12-Dec-2022,FINANCE (Inc SIU),ZURICH INSURANCE PLC,Assistant Chief Executive (Excl SIU),10825.00,Assistant Chief Executive (Excl SIU),2323P09_CR00565,01749452
Sandwell Metropolitan Borough Council,http://www.sandwell.gov.uk/info/200202/performance_and_spending/1079/payments_over_500,05-Dec-2022,FINANCE (Inc SIU),ZURICH INSURANCE PLC,Assistant Chief Executive (Excl SIU),15000.00,Assistant Chief Executive (Excl SIU),2323P09_CR00566,01749452
Sandwell Metropolitan Borough Council,http://www.sandwell.gov.uk/info/200202/performance_and_spending/1079/payments_over_500,12-Dec-2022,FINANCE (Inc SIU),ZURICH INSURANCE PLC,Assistant Chief Executive (Excl SIU),15216.00,Assistant Chief Executive (Excl SIU),2323P09_CR00567,01749452
Sandwell Metropolitan Borough Council,http://www.sandwell.gov.uk/info/200202/performance_and_spending/1079/payments_over_500,01-Dec-2022,FINANCE (Inc SIU),TINKER TAYLOR,Assistant Chief Executive (Excl SIU),7500.00,Assistant Chief Executive (Excl SIU),2323P09_CR00568,134935
Sandwell Metropolitan Borough Council,http://www.sandwell.gov.uk/info/200202/performance_and_spending/1079/payments_over_500,15-Dec-2022,FINANCE (Inc SIU),DR MANEL MANGALIKA,Assistant Chief Executive (Excl SIU),803.00,Assistant Chief Executive (Excl SIU),2323P09_CR00569,149491
Sandwell Metropolitan Borough Council,http://www.sandwell.gov.uk/info/200202/performance_and_spending/1079/payments_over_500,01-Dec-2022,FINANCE (Inc SIU),DR MANEL MANGALIKA,Assistant Chief Executive (Excl SIU),1495.20,Assistant Chief Executive (Excl SIU),2323P09_CR00570,149491
Sandwell Metropolitan Borough Council,http://www.sandwell.gov.uk/info/200202/performance_and_spending/1079/payments_over_500,07-Dec-2022,FINANCE (Inc SIU),DR SMITA DESHPANDE,Assistant Chief Executive (Excl SIU),1901.90,Assistant Chief Executive (Excl SIU),2323P09_CR00571,149599
Sandwell Metropolitan Borough Council,http://www.sandwell.gov.uk/info/200202/performance_and_spending/1079/payments_over_500,07-Dec-2022,FINANCE (Inc SIU),DR SMITA DESHPANDE,Assistant Chief Executive (Excl SIU),2129.60,Assistant Chief Executive (Excl SIU),2323P09_CR00572,149599
Sandwell Metropolitan Borough Council,http://www.sandwell.gov.uk/info/200202/performance_and_spending/1079/payments_over_500,01-Dec-2022,FINANCE (Inc SIU),DR SMITA DESHPANDE,Assistant Chief Executive (Excl SIU),2835.80,Assistant Chief Executive (Excl SIU),2323P09_CR00573,149599
Sandwell Metropolitan Borough Council,http://www.sandwell.gov.uk/info/200202/performance_and_spending/1079/payments_over_500,02-Dec-2022,FINANCE (Inc SIU),DR SWAPNA GHOSH,Assistant Chief Executive (Excl SIU),2269.60,Assistant Chief Executive (Excl SIU),2323P09_CR00574,149696
Sandwell Metropolitan Borough Council,http://www.sandwell.gov.uk/info/200202/performance_and_spending/1079/payments_over_500,06-Dec-2022,FINANCE (Inc SIU),MONICA AHLUWALIA,Assistant Chief Executive (Excl SIU),7756.20,Assistant Chief Executive (Excl SIU),2323P09_CR00575,132440
Sandwell Metropolitan Borough Council,http://www.sandwell.gov.uk/info/200202/performance_and_spending/1079/payments_over_500,12-Dec-2022,FINANCE (Inc SIU),NATIONAL WESTMINSTER BANK PLC,Assistant Chief Executive (Excl SIU),714.00,Assistant Chief Executive (Excl SIU),2323P09_CR00576,120965
Sandwell Metropolitan Borough Council,http://www.sandwell.gov.uk/info/200202/performance_and_spending/1079/payments_over_500,12-Dec-2022,FINANCE (Inc SIU),NATIONAL WESTMINSTER BANK PLC,Assistant Chief Executive (Excl SIU),2953.00,Assistant Chief Executive (Excl SIU),2323P09_CR00577,120965
Sandwell Metropolitan Borough Council,http://www.sandwell.gov.uk/info/200202/performance_and_spending/1079/payments_over_500,01-Dec-2022,FINANCE (Inc SIU),ASCENDANT SOLUTIONS LIMITED,Assistant Chief Executive (Excl SIU),8500.00,Assistant Chief Executive (Excl SIU),2323P09_CR00578,150134
Sandwell Metropolitan Borough Council,http://www.sandwell.gov.uk/info/200202/performance_and_spending/1079/payments_over_500,05-Dec-2022,FINANCE (Inc SIU),INFORM COMMUNICATIONS PLC,Assistant Chief Executive (Excl SIU),4800.00,Assistant Chief Executive (Excl SIU),2323P09_CR00579,98508
Sandwell Metropolitan Borough Council,http://www.sandwell.gov.uk/info/200202/performance_and_spending/1079/payments_over_500,05-Dec-2022,FINANCE (Inc SIU),GREENHALGH KERR SOLICITORS LIMITED,Assistant Chief Executive (Excl SIU),2693.00,Assistant Chief Executive (Excl SIU),2323P09_CR00580,127273
Sandwell Metropolitan Borough Council,http://www.sandwell.gov.uk/info/200202/performance_and_spending/1079/payments_over_500,07-Dec-2022,FINANCE (Inc SIU),INFORM CPI LTD,Assistant Chief Executive (Excl SIU),2250.00,Assistant Chief Executive (Excl SIU),2323P09_CR00581,123986
Sandwell Metropolitan Borough Council,http://www.sandwell.gov.uk/info/200202/performance_and_spending/1079/payments_over_500,06-Dec-2022,FINANCE (Inc SIU),ABBEY INFANT SCHOOL                     ,Assistant Chief Executive (Excl SIU),1200.00,Assistant Chief Executive (Excl SIU),2323P09_CR00582,60959
Sandwell Metropolitan Borough Council,http://www.sandwell.gov.uk/info/200202/performance_and_spending/1079/payments_over_500,06-Dec-2022,FINANCE (Inc SIU),ABBEY JUNIOR SCHOOL                ,Assistant Chief Executive (Excl SIU),2610.00,Assistant Chief Executive (Excl SIU),2323P09_CR00583,60961
Sandwell Metropolitan Borough Council,http://www.sandwell.gov.uk/info/200202/performance_and_spending/1079/payments_over_500,06-Dec-2022,FINANCE (Inc SIU),ALBERT PRITCHARD INFANT SCHOOL  ,Assistant Chief Executive (Excl SIU),1890.00,Assistant Chief Executive (Excl SIU),2323P09_CR00584,60962
Sandwell Metropolitan Borough Council,http://www.sandwell.gov.uk/info/200202/performance_and_spending/1079/payments_over_500,06-Dec-2022,FINANCE (Inc SIU),ALL SAINTS CE PRIMARY SCHOOL              ,Assistant Chief Executive (Excl SIU),2730.00,Assistant Chief Executive (Excl SIU),2323P09_CR00585,60964
Sandwell Metropolitan Borough Council,http://www.sandwell.gov.uk/info/200202/performance_and_spending/1079/payments_over_500,06-Dec-2022,FINANCE (Inc SIU),ANNIE LENNARD INFANT SCHOOL,Assistant Chief Executive (Excl SIU),1920.00,Assistant Chief Executive (Excl SIU),2323P09_CR00586,60966
Sandwell Metropolitan Borough Council,http://www.sandwell.gov.uk/info/200202/performance_and_spending/1079/payments_over_500,06-Dec-2022,FINANCE (Inc SIU),BEARWOOD PRIMARY SCHOOL ,Assistant Chief Executive (Excl SIU),4290.00,Assistant Chief Executive (Excl SIU),2323P09_CR00587,60967
Sandwell Metropolitan Borough Council,http://www.sandwell.gov.uk/info/200202/performance_and_spending/1079/payments_over_500,06-Dec-2022,FINANCE (Inc SIU),BLACKHEATH PRIMARY SCHOOL ,Assistant Chief Executive (Excl SIU),5160.00,Assistant Chief Executive (Excl SIU),2323P09_CR00588,60968
Sandwell Metropolitan Borough Council,http://www.sandwell.gov.uk/info/200202/performance_and_spending/1079/payments_over_500,06-Dec-2022,FINANCE (Inc SIU),BLEAKHOUSE PRIMARY SCHOOL.,Assistant Chief Executive (Excl SIU),3240.00,Assistant Chief Executive (Excl SIU),2323P09_CR00589,60969
Sandwell Metropolitan Borough Council,http://www.sandwell.gov.uk/info/200202/performance_and_spending/1079/payments_over_500,06-Dec-2022,FINANCE (Inc SIU),BRANDHALL PRIMARY SCHOOL ,Assistant Chief Executive (Excl SIU),5010.00,Assistant Chief Executive (Excl SIU),2323P09_CR00590,60971
Sandwell Metropolitan Borough Council,http://www.sandwell.gov.uk/info/200202/performance_and_spending/1079/payments_over_500,06-Dec-2022,FINANCE (Inc SIU),BRICKHOUSE PRIMARY SCHOOL  ,Assistant Chief Executive (Excl SIU),2610.00,Assistant Chief Executive (Excl SIU),2323P09_CR00591,60973
Sandwell Metropolitan Borough Council,http://www.sandwell.gov.uk/info/200202/performance_and_spending/1079/payments_over_500,06-Dec-2022,FINANCE (Inc SIU),BRISTNALL HALL ACADEMY,Assistant Chief Executive (Excl SIU),10140.00,Assistant Chief Executive (Excl SIU),2323P09_CR00592,107471
Sandwell Metropolitan Borough Council,http://www.sandwell.gov.uk/info/200202/performance_and_spending/1079/payments_over_500,06-Dec-2022,FINANCE (Inc SIU),BURNT TREE PRIMARY SCHOOL                       ,Assistant Chief Executive (Excl SIU),4170.00,Assistant Chief Executive (Excl SIU),2323P09_CR00593,60974
Sandwell Metropolitan Borough Council,http://www.sandwell.gov.uk/info/200202/performance_and_spending/1079/payments_over_500,06-Dec-2022,FINANCE (Inc SIU),CAPE PRIMARY SCHOOL,Assistant Chief Executive (Excl SIU),6330.00,Assistant Chief Executive (Excl SIU),2323P09_CR00594,01672537
Sandwell Metropolitan Borough Council,http://www.sandwell.gov.uk/info/200202/performance_and_spending/1079/payments_over_500,06-Dec-2022,FINANCE (Inc SIU),CAUSEWAY GREEN PRIMARY SCHOOL              ,Assistant Chief Executive (Excl SIU),3420.00,Assistant Chief Executive (Excl SIU),2323P09_CR00595,60976
Sandwell Metropolitan Borough Council,http://www.sandwell.gov.uk/info/200202/performance_and_spending/1079/payments_over_500,06-Dec-2022,FINANCE (Inc SIU),CHRIST CHURCH CE PRIMARY,Assistant Chief Executive (Excl SIU),3270.00,Assistant Chief Executive (Excl SIU),2323P09_CR00596,60978
Sandwell Metropolitan Borough Council,http://www.sandwell.gov.uk/info/200202/performance_and_spending/1079/payments_over_500,06-Dec-2022,FINANCE (Inc SIU),CORNGREAVES ACADEMY,Assistant Chief Executive (Excl SIU),1740.00,Assistant Chief Executive (Excl SIU),2323P09_CR00597,112862
Sandwell Metropolitan Borough Council,http://www.sandwell.gov.uk/info/200202/performance_and_spending/1079/payments_over_500,06-Dec-2022,FINANCE (Inc SIU),CROCKETTS LANE COMMUNITY PRIMARY SCHOOL         ,Assistant Chief Executive (Excl SIU),3510.00,Assistant Chief Executive (Excl SIU),2323P09_CR00598,60980
Sandwell Metropolitan Borough Council,http://www.sandwell.gov.uk/info/200202/performance_and_spending/1079/payments_over_500,06-Dec-2022,FINANCE (Inc SIU),DEVONSHIRE INFANTS ACADEMY,Assistant Chief Executive (Excl SIU),1740.00,Assistant Chief Executive (Excl SIU),2323P09_CR00599,118366
Sandwell Metropolitan Borough Council,http://www.sandwell.gov.uk/info/200202/performance_and_spending/1079/payments_over_500,06-Dec-2022,FINANCE (Inc SIU),DEVONSHIRE JUNIOR ACADEMY,Assistant Chief Executive (Excl SIU),2880.00,Assistant Chief Executive (Excl SIU),2323P09_CR00600,118367
Sandwell Metropolitan Borough Council,http://www.sandwell.gov.uk/info/200202/performance_and_spending/1079/payments_over_500,06-Dec-2022,FINANCE (Inc SIU),EATON VALLEY PRIMARY SCHOOL,Assistant Chief Executive (Excl SIU),3600.00,Assistant Chief Executive (Excl SIU),2323P09_CR00601,60981
Sandwell Metropolitan Borough Council,http://www.sandwell.gov.uk/info/200202/performance_and_spending/1079/payments_over_500,06-Dec-2022,FINANCE (Inc SIU),FERNDALE PRIMARY SCHOOL                     ,Assistant Chief Executive (Excl SIU),4380.00,Assistant Chief Executive (Excl SIU),2323P09_CR00602,60987
Sandwell Metropolitan Borough Council,http://www.sandwell.gov.uk/info/200202/performance_and_spending/1079/payments_over_500,06-Dec-2022,FINANCE (Inc SIU),GALTON VALLEY PRIMARY SCHOOL                          ,Assistant Chief Executive (Excl SIU),4020.00,Assistant Chief Executive (Excl SIU),2323P09_CR00603,73124
Sandwell Metropolitan Borough Council,http://www.sandwell.gov.uk/info/200202/performance_and_spending/1079/payments_over_500,06-Dec-2022,FINANCE (Inc SIU),GEORGE BETTS PRIMARY ACADEMY,Assistant Chief Executive (Excl SIU),3990.00,Assistant Chief Executive (Excl SIU),2323P09_CR00604,113420
Sandwell Metropolitan Borough Council,http://www.sandwell.gov.uk/info/200202/performance_and_spending/1079/payments_over_500,06-Dec-2022,FINANCE (Inc SIU),GEORGE SALTER COLLEGIATE ACADEMY ORMISTON ACADEMIES TRUST,Assistant Chief Executive (Excl SIU),12780.00,Assistant Chief Executive (Excl SIU),2323P09_CR00605,01217798
Sandwell Metropolitan Borough Council,http://www.sandwell.gov.uk/info/200202/performance_and_spending/1079/payments_over_500,06-Dec-2022,FINANCE (Inc SIU),GLEBEFIELDS PRIMARY SCHOOL ,Assistant Chief Executive (Excl SIU),5520.00,Assistant Chief Executive (Excl SIU),2323P09_CR00606,60989
Sandwell Metropolitan Borough Council,http://www.sandwell.gov.uk/info/200202/performance_and_spending/1079/payments_over_500,06-Dec-2022,FINANCE (Inc SIU),GOSPEL OAK SCHOOL,Assistant Chief Executive (Excl SIU),12570.00,Assistant Chief Executive (Excl SIU),2323P09_CR00607,60952
Sandwell Metropolitan Borough Council,http://www.sandwell.gov.uk/info/200202/performance_and_spending/1079/payments_over_500,06-Dec-2022,FINANCE (Inc SIU),GRACE MARY PRIMARY SCHOOL ,Assistant Chief Executive (Excl SIU),2520.00,Assistant Chief Executive (Excl SIU),2323P09_CR00608,60991
Sandwell Metropolitan Borough Council,http://www.sandwell.gov.uk/info/200202/performance_and_spending/1079/payments_over_500,06-Dec-2022,FINANCE (Inc SIU),GREAT BRIDGE PRIMARY SCHOOL    ,Assistant Chief Executive (Excl SIU),4230.00,Assistant Chief Executive (Excl SIU),2323P09_CR00609,42484
Sandwell Metropolitan Borough Council,http://www.sandwell.gov.uk/info/200202/performance_and_spending/1079/payments_over_500,06-Dec-2022,FINANCE (Inc SIU),GROVE VALE PRIMARY SCHOOL,Assistant Chief Executive (Excl SIU),1350.00,Assistant Chief Executive (Excl SIU),2323P09_CR00610,60993
Sandwell Metropolitan Borough Council,http://www.sandwell.gov.uk/info/200202/performance_and_spending/1079/payments_over_500,06-Dec-2022,FINANCE (Inc SIU),HALL GREEN PRIMARY SCHOOL       ,Assistant Chief Executive (Excl SIU),4590.00,Assistant Chief Executive (Excl SIU),2323P09_CR00611,60996
Sandwell Metropolitan Borough Council,http://www.sandwell.gov.uk/info/200202/performance_and_spending/1079/payments_over_500,06-Dec-2022,FINANCE (Inc SIU),HAMSTEAD INFANT SCHOOL      ,Assistant Chief Executive (Excl SIU),1140.00,Assistant Chief Executive (Excl SIU),2323P09_CR00612,60997
Sandwell Metropolitan Borough Council,http://www.sandwell.gov.uk/info/200202/performance_and_spending/1079/payments_over_500,06-Dec-2022,FINANCE (Inc SIU),HAMSTEAD JUNIOR SCHOOL   ,Assistant Chief Executive (Excl SIU),2310.00,Assistant Chief Executive (Excl SIU),2323P09_CR00613,60998
Sandwell Metropolitan Borough Council,http://www.sandwell.gov.uk/info/200202/performance_and_spending/1079/payments_over_500,06-Dec-2022,FINANCE (Inc SIU),HANBURY PRIMARY SCHOOL                                    ,Assistant Chief Executive (Excl SIU),4020.00,Assistant Chief Executive (Excl SIU),2323P09_CR00614,60995
Sandwell Metropolitan Borough Council,http://www.sandwell.gov.uk/info/200202/performance_and_spending/1079/payments_over_500,06-Dec-2022,FINANCE (Inc SIU),HARGATE PRIMARY SCHOOL    ,Assistant Chief Executive (Excl SIU),3900.00,Assistant Chief Executive (Excl SIU),2323P09_CR00615,60999
Sandwell Metropolitan Borough Council,http://www.sandwell.gov.uk/info/200202/performance_and_spending/1079/payments_over_500,06-Dec-2022,FINANCE (Inc SIU),HARVILLS HAWTHORN PRIMARY SCHOOL ,Assistant Chief Executive (Excl SIU),3660.00,Assistant Chief Executive (Excl SIU),2323P09_CR00616,01782074
Sandwell Metropolitan Borough Council,http://www.sandwell.gov.uk/info/200202/performance_and_spending/1079/payments_over_500,06-Dec-2022,FINANCE (Inc SIU),HATELEY HEATH PRIMARY ACADEMY   ,Assistant Chief Executive (Excl SIU),4770.00,Assistant Chief Executive (Excl SIU),2323P09_CR00617,61000
Sandwell Metropolitan Borough Council,http://www.sandwell.gov.uk/info/200202/performance_and_spending/1079/payments_over_500,06-Dec-2022,FINANCE (Inc SIU),HIGH POINT ACADEMY,Assistant Chief Executive (Excl SIU),840.00,Assistant Chief Executive (Excl SIU),2323P09_CR00618,152394
Sandwell Metropolitan Borough Council,http://www.sandwell.gov.uk/info/200202/performance_and_spending/1079/payments_over_500,06-Dec-2022,FINANCE (Inc SIU),HIGHFIELDS PRIMARY SCHOOL ,Assistant Chief Executive (Excl SIU),3840.00,Assistant Chief Executive (Excl SIU),2323P09_CR00619,01782118
Sandwell Metropolitan Borough Council,http://www.sandwell.gov.uk/info/200202/performance_and_spending/1079/payments_over_500,06-Dec-2022,FINANCE (Inc SIU),HOLLY LODGE FOUNDATION HIGH SCHOOL,Assistant Chief Executive (Excl SIU),15240.00,Assistant Chief Executive (Excl SIU),2323P09_CR00620,60942
Sandwell Metropolitan Borough Council,http://www.sandwell.gov.uk/info/200202/performance_and_spending/1079/payments_over_500,06-Dec-2022,FINANCE (Inc SIU),HOLY NAME CATHOLIC PRIMARY,Assistant Chief Executive (Excl SIU),1230.00,Assistant Chief Executive (Excl SIU),2323P09_CR00621,92683
Sandwell Metropolitan Borough Council,http://www.sandwell.gov.uk/info/200202/performance_and_spending/1079/payments_over_500,06-Dec-2022,FINANCE (Inc SIU),HOLY TRINITY CE PRIMARY         ,Assistant Chief Executive (Excl SIU),4290.00,Assistant Chief Executive (Excl SIU),2323P09_CR00622,61004
Sandwell Metropolitan Borough Council,http://www.sandwell.gov.uk/info/200202/performance_and_spending/1079/payments_over_500,06-Dec-2022,FINANCE (Inc SIU),HOLYHEAD PRIMARY ACADEMY   ,Assistant Chief Executive (Excl SIU),2490.00,Assistant Chief Executive (Excl SIU),2323P09_CR00623,61005
Sandwell Metropolitan Borough Council,http://www.sandwell.gov.uk/info/200202/performance_and_spending/1079/payments_over_500,06-Dec-2022,FINANCE (Inc SIU),JOSEPH TURNER PRIMARY SCHOOL  ,Assistant Chief Executive (Excl SIU),5370.00,Assistant Chief Executive (Excl SIU),2323P09_CR00624,61006
Sandwell Metropolitan Borough Council,http://www.sandwell.gov.uk/info/200202/performance_and_spending/1079/payments_over_500,06-Dec-2022,FINANCE (Inc SIU),JUBILEE PARK ACADEMY TRUST,Assistant Chief Executive (Excl SIU),3060.00,Assistant Chief Executive (Excl SIU),2323P09_CR00625,113377
Sandwell Metropolitan Borough Council,http://www.sandwell.gov.uk/info/200202/performance_and_spending/1079/payments_over_500,06-Dec-2022,FINANCE (Inc SIU),KING GEORGE V PRIMARY SCHOOL                     ,Assistant Chief Executive (Excl SIU),2610.00,Assistant Chief Executive (Excl SIU),2323P09_CR00626,61009
Sandwell Metropolitan Borough Council,http://www.sandwell.gov.uk/info/200202/performance_and_spending/1079/payments_over_500,06-Dec-2022,FINANCE (Inc SIU),LANGLEY PRIMARY SCHOOL    ,Assistant Chief Executive (Excl SIU),4530.00,Assistant Chief Executive (Excl SIU),2323P09_CR00627,61011
Sandwell Metropolitan Borough Council,http://www.sandwell.gov.uk/info/200202/performance_and_spending/1079/payments_over_500,06-Dec-2022,FINANCE (Inc SIU),LIGHTWOODS PRIMARY ACADEMY .,Assistant Chief Executive (Excl SIU),1680.00,Assistant Chief Executive (Excl SIU),2323P09_CR00628,61012
Sandwell Metropolitan Borough Council,http://www.sandwell.gov.uk/info/200202/performance_and_spending/1079/payments_over_500,06-Dec-2022,FINANCE (Inc SIU),LODGE PRIMARY SCHOOL    ,Assistant Chief Executive (Excl SIU),4170.00,Assistant Chief Executive (Excl SIU),2323P09_CR00629,61015
Sandwell Metropolitan Borough Council,http://www.sandwell.gov.uk/info/200202/performance_and_spending/1079/payments_over_500,06-Dec-2022,FINANCE (Inc SIU),LYNG PRIMARY SCHOOL    ,Assistant Chief Executive (Excl SIU),3600.00,Assistant Chief Executive (Excl SIU),2323P09_CR00630,61026
Sandwell Metropolitan Borough Council,http://www.sandwell.gov.uk/info/200202/performance_and_spending/1079/payments_over_500,06-Dec-2022,FINANCE (Inc SIU),MEADOWS SCHOOL,Assistant Chief Executive (Excl SIU),3270.00,Assistant Chief Executive (Excl SIU),2323P09_CR00631,60955
Sandwell Metropolitan Borough Council,http://www.sandwell.gov.uk/info/200202/performance_and_spending/1079/payments_over_500,06-Dec-2022,FINANCE (Inc SIU),MESTY CROFT ACADEMY,Assistant Chief Executive (Excl SIU),4440.00,Assistant Chief Executive (Excl SIU),2323P09_CR00632,106208
Sandwell Metropolitan Borough Council,http://www.sandwell.gov.uk/info/200202/performance_and_spending/1079/payments_over_500,06-Dec-2022,FINANCE (Inc SIU),MOAT FARM INFANTS SCHOOL  ,Assistant Chief Executive (Excl SIU),3240.00,Assistant Chief Executive (Excl SIU),2323P09_CR00633,61031
Sandwell Metropolitan Borough Council,http://www.sandwell.gov.uk/info/200202/performance_and_spending/1079/payments_over_500,06-Dec-2022,FINANCE (Inc SIU),MOAT FARM JUNIOR SCHOOL ,Assistant Chief Executive (Excl SIU),4380.00,Assistant Chief Executive (Excl SIU),2323P09_CR00634,61032
Sandwell Metropolitan Borough Council,http://www.sandwell.gov.uk/info/200202/performance_and_spending/1079/payments_over_500,06-Dec-2022,FINANCE (Inc SIU),MOORLANDS PRIMARY SCHOOL   ,Assistant Chief Executive (Excl SIU),2250.00,Assistant Chief Executive (Excl SIU),2323P09_CR00635,04036544
Sandwell Metropolitan Borough Council,http://www.sandwell.gov.uk/info/200202/performance_and_spending/1079/payments_over_500,06-Dec-2022,FINANCE (Inc SIU),NEWTOWN PRIMARY ACADEMY   ,Assistant Chief Executive (Excl SIU),2970.00,Assistant Chief Executive (Excl SIU),2323P09_CR00636,61034
Sandwell Metropolitan Borough Council,http://www.sandwell.gov.uk/info/200202/performance_and_spending/1079/payments_over_500,06-Dec-2022,FINANCE (Inc SIU),OAKHAM PRIMARY SCHOOL  ,Assistant Chief Executive (Excl SIU),2760.00,Assistant Chief Executive (Excl SIU),2323P09_CR00637,61035
Sandwell Metropolitan Borough Council,http://www.sandwell.gov.uk/info/200202/performance_and_spending/1079/payments_over_500,06-Dec-2022,FINANCE (Inc SIU),OCKER HILL ACADEMY,Assistant Chief Executive (Excl SIU),2520.00,Assistant Chief Executive (Excl SIU),2323P09_CR00638,113691
Sandwell Metropolitan Borough Council,http://www.sandwell.gov.uk/info/200202/performance_and_spending/1079/payments_over_500,06-Dec-2022,FINANCE (Inc SIU),OCKER HILL INFANT SCHOOL     ,Assistant Chief Executive (Excl SIU),1620.00,Assistant Chief Executive (Excl SIU),2323P09_CR00639,61036
Sandwell Metropolitan Borough Council,http://www.sandwell.gov.uk/info/200202/performance_and_spending/1079/payments_over_500,06-Dec-2022,FINANCE (Inc SIU),OLD HILL PRIMARY SCHOOL       ,Assistant Chief Executive (Excl SIU),2310.00,Assistant Chief Executive (Excl SIU),2323P09_CR00640,61038
Sandwell Metropolitan Borough Council,http://www.sandwell.gov.uk/info/200202/performance_and_spending/1079/payments_over_500,06-Dec-2022,FINANCE (Inc SIU),OLD PARK PRIMARY SCHOOL            ,Assistant Chief Executive (Excl SIU),2940.00,Assistant Chief Executive (Excl SIU),2323P09_CR00641,61039
Sandwell Metropolitan Borough Council,http://www.sandwell.gov.uk/info/200202/performance_and_spending/1079/payments_over_500,06-Dec-2022,FINANCE (Inc SIU),OLDBURY ACADEMY,Assistant Chief Executive (Excl SIU),17940.00,Assistant Chief Executive (Excl SIU),2323P09_CR00642,69241
Sandwell Metropolitan Borough Council,http://www.sandwell.gov.uk/info/200202/performance_and_spending/1079/payments_over_500,06-Dec-2022,FINANCE (Inc SIU),ORCHARD SCHOOL     ,Assistant Chief Executive (Excl SIU),2010.00,Assistant Chief Executive (Excl SIU),2323P09_CR00643,60956
Sandwell Metropolitan Borough Council,http://www.sandwell.gov.uk/info/200202/performance_and_spending/1079/payments_over_500,06-Dec-2022,FINANCE (Inc SIU),ORMISTON FORGE ACADEMY,Assistant Chief Executive (Excl SIU),15960.00,Assistant Chief Executive (Excl SIU),2323P09_CR00644,60941
Sandwell Metropolitan Borough Council,http://www.sandwell.gov.uk/info/200202/performance_and_spending/1079/payments_over_500,06-Dec-2022,FINANCE (Inc SIU),ORMISTON SANDWELL COMMUNITY ACADEMY                        ,Assistant Chief Executive (Excl SIU),10470.00,Assistant Chief Executive (Excl SIU),2323P09_CR00645,60950
Sandwell Metropolitan Borough Council,http://www.sandwell.gov.uk/info/200202/performance_and_spending/1079/payments_over_500,06-Dec-2022,FINANCE (Inc SIU),OUR LADY AND ST HUBERTS CATHOLIC PRIMARY SCHOOL             ,Assistant Chief Executive (Excl SIU),1950.00,Assistant Chief Executive (Excl SIU),2323P09_CR00646,61053
Sandwell Metropolitan Borough Council,http://www.sandwell.gov.uk/info/200202/performance_and_spending/1079/payments_over_500,06-Dec-2022,FINANCE (Inc SIU),PARK HILL PRIMARY SCHOOL   ,Assistant Chief Executive (Excl SIU),1830.00,Assistant Chief Executive (Excl SIU),2323P09_CR00647,61040
Sandwell Metropolitan Borough Council,http://www.sandwell.gov.uk/info/200202/performance_and_spending/1079/payments_over_500,06-Dec-2022,FINANCE (Inc SIU),PENNYHILL PRIMARY,Assistant Chief Executive (Excl SIU),7740.00,Assistant Chief Executive (Excl SIU),2323P09_CR00648,73125
Sandwell Metropolitan Borough Council,http://www.sandwell.gov.uk/info/200202/performance_and_spending/1079/payments_over_500,06-Dec-2022,FINANCE (Inc SIU),PERRYFIELDS HIGH SCHOOL ,Assistant Chief Executive (Excl SIU),7590.00,Assistant Chief Executive (Excl SIU),2323P09_CR00649,60946
Sandwell Metropolitan Borough Council,http://www.sandwell.gov.uk/info/200202/performance_and_spending/1079/payments_over_500,06-Dec-2022,FINANCE (Inc SIU),PERRYFIELDS PRIMARY SCHOOL ,Assistant Chief Executive (Excl SIU),2430.00,Assistant Chief Executive (Excl SIU),2323P09_CR00650,61042
Sandwell Metropolitan Borough Council,http://www.sandwell.gov.uk/info/200202/performance_and_spending/1079/payments_over_500,06-Dec-2022,FINANCE (Inc SIU),PHOENIX COLLEGIATE COLLEGE,Assistant Chief Executive (Excl SIU),20610.00,Assistant Chief Executive (Excl SIU),2323P09_CR00651,95444
Sandwell Metropolitan Borough Council,http://www.sandwell.gov.uk/info/200202/performance_and_spending/1079/payments_over_500,06-Dec-2022,FINANCE (Inc SIU),Q3 ACADEMY LANGLEY,Assistant Chief Executive (Excl SIU),15570.00,Assistant Chief Executive (Excl SIU),2323P09_CR00652,128009
Sandwell Metropolitan Borough Council,http://www.sandwell.gov.uk/info/200202/performance_and_spending/1079/payments_over_500,06-Dec-2022,FINANCE (Inc SIU),Q3 ACADEMY TIPTON,Assistant Chief Executive (Excl SIU),25065.00,Assistant Chief Executive (Excl SIU),2323P09_CR00653,112047
Sandwell Metropolitan Borough Council,http://www.sandwell.gov.uk/info/200202/performance_and_spending/1079/payments_over_500,06-Dec-2022,FINANCE (Inc SIU),QUAERERE ACADEMY TRUST                                             ,Assistant Chief Executive (Excl SIU),9675.00,Assistant Chief Executive (Excl SIU),2323P09_CR00654,60939
Sandwell Metropolitan Borough Council,http://www.sandwell.gov.uk/info/200202/performance_and_spending/1079/payments_over_500,06-Dec-2022,FINANCE (Inc SIU),REDDAL HILL PRIMARY SCHOOL   ,Assistant Chief Executive (Excl SIU),4350.00,Assistant Chief Executive (Excl SIU),2323P09_CR00655,61043
Sandwell Metropolitan Borough Council,http://www.sandwell.gov.uk/info/200202/performance_and_spending/1079/payments_over_500,06-Dec-2022,FINANCE (Inc SIU),ROOD END PRIMARY SCHOOL     ,Assistant Chief Executive (Excl SIU),5550.00,Assistant Chief Executive (Excl SIU),2323P09_CR00656,61044
Sandwell Metropolitan Borough Council,http://www.sandwell.gov.uk/info/200202/performance_and_spending/1079/payments_over_500,06-Dec-2022,FINANCE (Inc SIU),ROUNDS GREEN PRIMARY ACADEMY   ,Assistant Chief Executive (Excl SIU),3870.00,Assistant Chief Executive (Excl SIU),2323P09_CR00657,61045
Sandwell Metropolitan Borough Council,http://www.sandwell.gov.uk/info/200202/performance_and_spending/1079/payments_over_500,06-Dec-2022,FINANCE (Inc SIU),ROWLEY HALL PRIMARY SCHOOL    ,Assistant Chief Executive (Excl SIU),6570.00,Assistant Chief Executive (Excl SIU),2323P09_CR00658,61046
Sandwell Metropolitan Borough Council,http://www.sandwell.gov.uk/info/200202/performance_and_spending/1079/payments_over_500,06-Dec-2022,FINANCE (Inc SIU),RYDERS GREEN PRIMARY SCHOOL                              ,Assistant Chief Executive (Excl SIU),3390.00,Assistant Chief Executive (Excl SIU),2323P09_CR00659,61047
Sandwell Metropolitan Borough Council,http://www.sandwell.gov.uk/info/200202/performance_and_spending/1079/payments_over_500,06-Dec-2022,FINANCE (Inc SIU),SACRED HEART PRIMARY SCHOOL                             ,Assistant Chief Executive (Excl SIU),5130.00,Assistant Chief Executive (Excl SIU),2323P09_CR00660,61048
Sandwell Metropolitan Borough Council,http://www.sandwell.gov.uk/info/200202/performance_and_spending/1079/payments_over_500,06-Dec-2022,FINANCE (Inc SIU),SANDWELL ACADEMY TRUST LTD.,Assistant Chief Executive (Excl SIU),8550.00,Assistant Chief Executive (Excl SIU),2323P09_CR00661,126137
Sandwell Metropolitan Borough Council,http://www.sandwell.gov.uk/info/200202/performance_and_spending/1079/payments_over_500,06-Dec-2022,FINANCE (Inc SIU),SHENSTONE LODGE SCHOOL                           ,Assistant Chief Executive (Excl SIU),2310.00,Assistant Chief Executive (Excl SIU),2323P09_CR00662,22995
Sandwell Metropolitan Borough Council,http://www.sandwell.gov.uk/info/200202/performance_and_spending/1079/payments_over_500,06-Dec-2022,FINANCE (Inc SIU),SHIRELAND BIOMEDICAL UTC,Assistant Chief Executive (Excl SIU),2340.00,Assistant Chief Executive (Excl SIU),2323P09_CR00663,128174
Sandwell Metropolitan Borough Council,http://www.sandwell.gov.uk/info/200202/performance_and_spending/1079/payments_over_500,06-Dec-2022,FINANCE (Inc SIU),SHIRELAND COLLEGIATE ACADEMY                      ,Assistant Chief Executive (Excl SIU),15990.00,Assistant Chief Executive (Excl SIU),2323P09_CR00664,60947
Sandwell Metropolitan Borough Council,http://www.sandwell.gov.uk/info/200202/performance_and_spending/1079/payments_over_500,06-Dec-2022,FINANCE (Inc SIU),SHIRELAND COLLEGIATE ACADEMY TRUST T/A TAMESIDE,Assistant Chief Executive (Excl SIU),6780.00,Assistant Chief Executive (Excl SIU),2323P09_CR00665,61064
Sandwell Metropolitan Borough Council,http://www.sandwell.gov.uk/info/200202/performance_and_spending/1079/payments_over_500,06-Dec-2022,FINANCE (Inc SIU),SHIRELAND HALL PRIMARY ACADEMY,Assistant Chief Executive (Excl SIU),5010.00,Assistant Chief Executive (Excl SIU),2323P09_CR00666,15209
Sandwell Metropolitan Borough Council,http://www.sandwell.gov.uk/info/200202/performance_and_spending/1079/payments_over_500,06-Dec-2022,FINANCE (Inc SIU),SHIRELAND TECHNOLOGY PRIMARY SCHOOL,Assistant Chief Executive (Excl SIU),2310.00,Assistant Chief Executive (Excl SIU),2323P09_CR00667,148598
Sandwell Metropolitan Borough Council,http://www.sandwell.gov.uk/info/200202/performance_and_spending/1079/payments_over_500,06-Dec-2022,FINANCE (Inc SIU),SILVERTREES ACADEMY TRUST,Assistant Chief Executive (Excl SIU),2580.00,Assistant Chief Executive (Excl SIU),2323P09_CR00668,113719
Sandwell Metropolitan Borough Council,http://www.sandwell.gov.uk/info/200202/performance_and_spending/1079/payments_over_500,06-Dec-2022,FINANCE (Inc SIU),SPRINGFIELD PRIMARY SCHOOL                          ,Assistant Chief Executive (Excl SIU),4320.00,Assistant Chief Executive (Excl SIU),2323P09_CR00669,61050
Sandwell Metropolitan Borough Council,http://www.sandwell.gov.uk/info/200202/performance_and_spending/1079/payments_over_500,06-Dec-2022,FINANCE (Inc SIU),ST CATHERINE OF SIENA MULTI ACADEMY COMPANY         ,Assistant Chief Executive (Excl SIU),1380.00,Assistant Chief Executive (Excl SIU),2323P09_CR00670,61052
Sandwell Metropolitan Borough Council,http://www.sandwell.gov.uk/info/200202/performance_and_spending/1079/payments_over_500,06-Dec-2022,FINANCE (Inc SIU),ST FRANCIS XAVIER CATHOLIC PRIMARY,Assistant Chief Executive (Excl SIU),1170.00,Assistant Chief Executive (Excl SIU),2323P09_CR00671,61051
Sandwell Metropolitan Borough Council,http://www.sandwell.gov.uk/info/200202/performance_and_spending/1079/payments_over_500,06-Dec-2022,FINANCE (Inc SIU),ST JAMES C OF E PRIMARY SCHOOL,Assistant Chief Executive (Excl SIU),5880.00,Assistant Chief Executive (Excl SIU),2323P09_CR00672,61054
Sandwell Metropolitan Borough Council,http://www.sandwell.gov.uk/info/200202/performance_and_spending/1079/payments_over_500,06-Dec-2022,FINANCE (Inc SIU),ST JOHN BOSCO RC PRIMARY SCHOOL                 ,Assistant Chief Executive (Excl SIU),1320.00,Assistant Chief Executive (Excl SIU),2323P09_CR00673,61055
Sandwell Metropolitan Borough Council,http://www.sandwell.gov.uk/info/200202/performance_and_spending/1079/payments_over_500,06-Dec-2022,FINANCE (Inc SIU),ST JOHNS C OF E PRIMARY ACADEMY,Assistant Chief Executive (Excl SIU),2430.00,Assistant Chief Executive (Excl SIU),2323P09_CR00674,61056
Sandwell Metropolitan Borough Council,http://www.sandwell.gov.uk/info/200202/performance_and_spending/1079/payments_over_500,06-Dec-2022,FINANCE (Inc SIU),ST MARGARETS C OF E PRIMARY SCHOOL,Assistant Chief Executive (Excl SIU),690.00,Assistant Chief Executive (Excl SIU),2323P09_CR00675,61057
Sandwell Metropolitan Borough Council,http://www.sandwell.gov.uk/info/200202/performance_and_spending/1079/payments_over_500,06-Dec-2022,FINANCE (Inc SIU),ST MARTINS CE PRIMARY SCHOOL,Assistant Chief Executive (Excl SIU),1320.00,Assistant Chief Executive (Excl SIU),2323P09_CR00676,61058
Sandwell Metropolitan Borough Council,http://www.sandwell.gov.uk/info/200202/performance_and_spending/1079/payments_over_500,06-Dec-2022,FINANCE (Inc SIU),ST MARY MAGDALENE CE PRIMARY SCHOOL       ,Assistant Chief Executive (Excl SIU),1590.00,Assistant Chief Executive (Excl SIU),2323P09_CR00677,61059
Sandwell Metropolitan Borough Council,http://www.sandwell.gov.uk/info/200202/performance_and_spending/1079/payments_over_500,06-Dec-2022,FINANCE (Inc SIU),ST MARYS RC PRIMARY SCHOOL                         ,Assistant Chief Executive (Excl SIU),1140.00,Assistant Chief Executive (Excl SIU),2323P09_CR00678,61060
Sandwell Metropolitan Borough Council,http://www.sandwell.gov.uk/info/200202/performance_and_spending/1079/payments_over_500,06-Dec-2022,FINANCE (Inc SIU),ST MATTHEWS CE PRIMARY SCHOOL               ,Assistant Chief Executive (Excl SIU),4440.00,Assistant Chief Executive (Excl SIU),2323P09_CR00679,61061
Sandwell Metropolitan Borough Council,http://www.sandwell.gov.uk/info/200202/performance_and_spending/1079/payments_over_500,06-Dec-2022,FINANCE (Inc SIU),ST MICHAELS CE HIGH SCHOOL,Assistant Chief Executive (Excl SIU),12030.00,Assistant Chief Executive (Excl SIU),2323P09_CR00680,60948
Sandwell Metropolitan Borough Council,http://www.sandwell.gov.uk/info/200202/performance_and_spending/1079/payments_over_500,06-Dec-2022,FINANCE (Inc SIU),ST PAULS C OF E ACADEMY,Assistant Chief Executive (Excl SIU),1560.00,Assistant Chief Executive (Excl SIU),2323P09_CR00681,118126
Sandwell Metropolitan Borough Council,http://www.sandwell.gov.uk/info/200202/performance_and_spending/1079/payments_over_500,06-Dec-2022,FINANCE (Inc SIU),ST PHILIPS CATHOLIC PRIMARY               ,Assistant Chief Executive (Excl SIU),2220.00,Assistant Chief Executive (Excl SIU),2323P09_CR00682,61063
Sandwell Metropolitan Borough Council,http://www.sandwell.gov.uk/info/200202/performance_and_spending/1079/payments_over_500,06-Dec-2022,FINANCE (Inc SIU),STUART BATHURST CATHOLIC HIGH SCHOOL       ,Assistant Chief Executive (Excl SIU),8850.00,Assistant Chief Executive (Excl SIU),2323P09_CR00683,60949
Sandwell Metropolitan Borough Council,http://www.sandwell.gov.uk/info/200202/performance_and_spending/1079/payments_over_500,06-Dec-2022,FINANCE (Inc SIU),TEMPLE MEADOW PRIMARY SCHOOL                      ,Assistant Chief Executive (Excl SIU),3780.00,Assistant Chief Executive (Excl SIU),2323P09_CR00684,61065
Sandwell Metropolitan Borough Council,http://www.sandwell.gov.uk/info/200202/performance_and_spending/1079/payments_over_500,06-Dec-2022,FINANCE (Inc SIU),THE PRIORY PRIMARY            ,Assistant Chief Executive (Excl SIU),6060.00,Assistant Chief Executive (Excl SIU),2323P09_CR00685,61066
Sandwell Metropolitan Borough Council,http://www.sandwell.gov.uk/info/200202/performance_and_spending/1079/payments_over_500,06-Dec-2022,FINANCE (Inc SIU),THE RIVERS MULTI ACADEMY TRUST,Assistant Chief Executive (Excl SIU),10470.00,Assistant Chief Executive (Excl SIU),2323P09_CR00686,61014
Sandwell Metropolitan Borough Council,http://www.sandwell.gov.uk/info/200202/performance_and_spending/1079/payments_over_500,06-Dec-2022,FINANCE (Inc SIU),TIMBERTREE (ACADEMY) PRIMARY SCHOOL,Assistant Chief Executive (Excl SIU),2160.00,Assistant Chief Executive (Excl SIU),2323P09_CR00687,112804
Sandwell Metropolitan Borough Council,http://www.sandwell.gov.uk/info/200202/performance_and_spending/1079/payments_over_500,06-Dec-2022,FINANCE (Inc SIU),TIPTON GREEN JUNIOR SCHOOL,Assistant Chief Executive (Excl SIU),4410.00,Assistant Chief Executive (Excl SIU),2323P09_CR00688,61068
Sandwell Metropolitan Borough Council,http://www.sandwell.gov.uk/info/200202/performance_and_spending/1079/payments_over_500,06-Dec-2022,FINANCE (Inc SIU),TIVIDALE COMMUNITY PRIMARY            ,Assistant Chief Executive (Excl SIU),1980.00,Assistant Chief Executive (Excl SIU),2323P09_CR00689,61069
Sandwell Metropolitan Borough Council,http://www.sandwell.gov.uk/info/200202/performance_and_spending/1079/payments_over_500,06-Dec-2022,FINANCE (Inc SIU),TIVIDALE HALL PRIMARY SCHOOL            ,Assistant Chief Executive (Excl SIU),2700.00,Assistant Chief Executive (Excl SIU),2323P09_CR00690,61070
Sandwell Metropolitan Borough Council,http://www.sandwell.gov.uk/info/200202/performance_and_spending/1079/payments_over_500,06-Dec-2022,FINANCE (Inc SIU),UPLANDS MANOR PRIMARY ,Assistant Chief Executive (Excl SIU),9600.00,Assistant Chief Executive (Excl SIU),2323P09_CR00691,61071
Sandwell Metropolitan Borough Council,http://www.sandwell.gov.uk/info/200202/performance_and_spending/1079/payments_over_500,06-Dec-2022,FINANCE (Inc SIU),VICTORIA PARK PRIMARY ACADEMY,Assistant Chief Executive (Excl SIU),6240.00,Assistant Chief Executive (Excl SIU),2323P09_CR00692,106209
Sandwell Metropolitan Borough Council,http://www.sandwell.gov.uk/info/200202/performance_and_spending/1079/payments_over_500,06-Dec-2022,FINANCE (Inc SIU),WEDNESBURY OAK ACADEMY,Assistant Chief Executive (Excl SIU),5250.00,Assistant Chief Executive (Excl SIU),2323P09_CR00693,116882
Sandwell Metropolitan Borough Council,http://www.sandwell.gov.uk/info/200202/performance_and_spending/1079/payments_over_500,06-Dec-2022,FINANCE (Inc SIU),WEST BROMWICH COLLEGIATE ACADEMY,Assistant Chief Executive (Excl SIU),6510.00,Assistant Chief Executive (Excl SIU),2323P09_CR00694,137780
Sandwell Metropolitan Borough Council,http://www.sandwell.gov.uk/info/200202/performance_and_spending/1079/payments_over_500,06-Dec-2022,FINANCE (Inc SIU),WESTMINSTER SCHOOL  ,Assistant Chief Executive (Excl SIU),3390.00,Assistant Chief Executive (Excl SIU),2323P09_CR00695,60957
Sandwell Metropolitan Borough Council,http://www.sandwell.gov.uk/info/200202/performance_and_spending/1079/payments_over_500,06-Dec-2022,FINANCE (Inc SIU),WHITECREST PRIMARY SCHOOL ,Assistant Chief Executive (Excl SIU),540.00,Assistant Chief Executive (Excl SIU),2323P09_CR00696,61075
Sandwell Metropolitan Borough Council,http://www.sandwell.gov.uk/info/200202/performance_and_spending/1079/payments_over_500,06-Dec-2022,FINANCE (Inc SIU),WODENSBOROUGH ORMISTON ACADEMY,Assistant Chief Executive (Excl SIU),15600.00,Assistant Chief Executive (Excl SIU),2323P09_CR00697,115040
Sandwell Metropolitan Borough Council,http://www.sandwell.gov.uk/info/200202/performance_and_spending/1079/payments_over_500,06-Dec-2022,FINANCE (Inc SIU),WOOD GREEN ACADEMY       ,Assistant Chief Executive (Excl SIU),11100.00,Assistant Chief Executive (Excl SIU),2323P09_CR00698,100125
Sandwell Metropolitan Borough Council,http://www.sandwell.gov.uk/info/200202/performance_and_spending/1079/payments_over_500,06-Dec-2022,FINANCE (Inc SIU),WOOD GREEN JUNIOR SCHOOL   ,Assistant Chief Executive (Excl SIU),3750.00,Assistant Chief Executive (Excl SIU),2323P09_CR00699,61076
Sandwell Metropolitan Borough Council,http://www.sandwell.gov.uk/info/200202/performance_and_spending/1079/payments_over_500,06-Dec-2022,FINANCE (Inc SIU),YEW TREE PRIMARY SCHOOL       ,Assistant Chief Executive (Excl SIU),7500.00,Assistant Chief Executive (Excl SIU),2323P09_CR00700,61078
Sandwell Metropolitan Borough Council,http://www.sandwell.gov.uk/info/200202/performance_and_spending/1079/payments_over_500,01-Dec-2022,Housing & Assets Total,CERTAS ENERGY LIMITED,Corporate Management,2721.90,Corporate Management,2323P09_CR00701,80421
Sandwell Metropolitan Borough Council,http://www.sandwell.gov.uk/info/200202/performance_and_spending/1079/payments_over_500,01-Dec-2022,Housing & Assets Total,CONTRACT LETTINGS LTD,Corporate Management,701.22,Corporate Management,2323P09_CR00702,76625
Sandwell Metropolitan Borough Council,http://www.sandwell.gov.uk/info/200202/performance_and_spending/1079/payments_over_500,01-Dec-2022,Housing & Assets Total,CONTRACT LETTINGS LTD,Corporate Management,701.22,Corporate Management,2323P09_CR00703,76625
Sandwell Metropolitan Borough Council,http://www.sandwell.gov.uk/info/200202/performance_and_spending/1079/payments_over_500,01-Dec-2022,Housing & Assets Total,CONTRACT LETTINGS LTD,Corporate Management,763.22,Corporate Management,2323P09_CR00704,76625
Sandwell Metropolitan Borough Council,http://www.sandwell.gov.uk/info/200202/performance_and_spending/1079/payments_over_500,01-Dec-2022,Housing & Assets Total,CONTRACT LETTINGS LTD,Corporate Management,980.00,Corporate Management,2323P09_CR00705,76625
Sandwell Metropolitan Borough Council,http://www.sandwell.gov.uk/info/200202/performance_and_spending/1079/payments_over_500,16-Dec-2022,Housing & Assets Total,COOKE RUDLING LIMITED,Assistant Chief Executive (Excl SIU),2212.50,Assistant Chief Executive (Excl SIU),2323P09_CR00706,01577073
Sandwell Metropolitan Borough Council,http://www.sandwell.gov.uk/info/200202/performance_and_spending/1079/payments_over_500,01-Dec-2022,Housing & Assets Total,COOKE RUDLING LIMITED,Assistant Chief Executive (Excl SIU),2325.00,Assistant Chief Executive (Excl SIU),2323P09_CR00707,01577073
Sandwell Metropolitan Borough Council,http://www.sandwell.gov.uk/info/200202/performance_and_spending/1079/payments_over_500,09-Dec-2022,Housing & Assets Total,DLM BUILDING & MAINTENANCE LTD,Total Adult Social Care,36884.01,Total Adult Social Care,2323P09_CR00708,137596
Sandwell Metropolitan Borough Council,http://www.sandwell.gov.uk/info/200202/performance_and_spending/1079/payments_over_500,09-Dec-2022,Housing & Assets Total,DORMY HOTEL,Corporate Management,5594.57,Corporate Management,2323P09_CR00709,01737052
Sandwell Metropolitan Borough Council,http://www.sandwell.gov.uk/info/200202/performance_and_spending/1079/payments_over_500,01-Dec-2022,Housing & Assets Total,EUROPEAN'S WELFARE ASSOCIATION CIC,Housing & Assets Total,678.50,Housing & Assets Total,2323P09_CR00710,123703
Sandwell Metropolitan Borough Council,http://www.sandwell.gov.uk/info/200202/performance_and_spending/1079/payments_over_500,06-Dec-2022,Housing & Assets Total,EUROPEAN'S WELFARE ASSOCIATION CIC,Housing & Assets Total,2200.00,Housing & Assets Total,2323P09_CR00711,123703
Sandwell Metropolitan Borough Council,http://www.sandwell.gov.uk/info/200202/performance_and_spending/1079/payments_over_500,22-Dec-2022,Housing & Assets Total,FURNITURE RESOURCE CENTRE LTD,Corporate Management,501.26,Corporate Management,2323P09_CR00712,01641204
Sandwell Metropolitan Borough Council,http://www.sandwell.gov.uk/info/200202/performance_and_spending/1079/payments_over_500,07-Dec-2022,Housing & Assets Total,FURNITURE RESOURCE CENTRE LTD,Corporate Management,639.64,Corporate Management,2323P09_CR00713,01641204
Sandwell Metropolitan Borough Council,http://www.sandwell.gov.uk/info/200202/performance_and_spending/1079/payments_over_500,07-Dec-2022,Housing & Assets Total,FURNITURE RESOURCE CENTRE LTD,Corporate Management,1714.75,Corporate Management,2323P09_CR00714,01641204
Sandwell Metropolitan Borough Council,http://www.sandwell.gov.uk/info/200202/performance_and_spending/1079/payments_over_500,01-Dec-2022,Housing & Assets Total,"HIGHFIELD HOUSE HOTEL,",Corporate Management,9185.00,Corporate Management,2323P09_CR00715,162756
Sandwell Metropolitan Borough Council,http://www.sandwell.gov.uk/info/200202/performance_and_spending/1079/payments_over_500,01-Dec-2022,Housing & Assets Total,HILL INTERIOR CONTRACTS LTD,Corporate Management,3095.00,Corporate Management,2323P09_CR00716,17158
Sandwell Metropolitan Borough Council,http://www.sandwell.gov.uk/info/200202/performance_and_spending/1079/payments_over_500,01-Dec-2022,Housing & Assets Total,HOUSING SYSTEMS LTD,Corporate Management,645.00,Corporate Management,2323P09_CR00717,155593
Sandwell Metropolitan Borough Council,http://www.sandwell.gov.uk/info/200202/performance_and_spending/1079/payments_over_500,09-Dec-2022,Housing & Assets Total,HSL COMPLIANCE LTD,Corporate Management,3000.00,Corporate Management,2323P09_CR00718,134746
Sandwell Metropolitan Borough Council,http://www.sandwell.gov.uk/info/200202/performance_and_spending/1079/payments_over_500,01-Dec-2022,Housing & Assets Total,PROFILE SECURITY SERVICES LTD,Corporate Management,9792.00,Corporate Management,2323P09_CR00719,131253
Sandwell Metropolitan Borough Council,http://www.sandwell.gov.uk/info/200202/performance_and_spending/1079/payments_over_500,01-Dec-2022,Housing & Assets Total,PROFILE SECURITY SERVICES LTD,Corporate Management,9792.00,Corporate Management,2323P09_CR00720,131253
Sandwell Metropolitan Borough Council,http://www.sandwell.gov.uk/info/200202/performance_and_spending/1079/payments_over_500,01-Dec-2022,Housing & Assets Total,SAFFRON HOTEL,Corporate Management,64295.00,Corporate Management,2323P09_CR00721,164316
Sandwell Metropolitan Borough Council,http://www.sandwell.gov.uk/info/200202/performance_and_spending/1079/payments_over_500,01-Dec-2022,Housing & Assets Total,SAFFRON HOTEL,Corporate Management,73425.00,Corporate Management,2323P09_CR00722,164316
Sandwell Metropolitan Borough Council,http://www.sandwell.gov.uk/info/200202/performance_and_spending/1079/payments_over_500,01-Dec-2022,Housing & Assets Total,SHARP,Corporate Management,856.41,Corporate Management,2323P09_CR00723,08280972
Sandwell Metropolitan Borough Council,http://www.sandwell.gov.uk/info/200202/performance_and_spending/1079/payments_over_500,01-Dec-2022,Housing & Assets Total,SHARP,Corporate Management,1013.26,Corporate Management,2323P09_CR00724,08280972
Sandwell Metropolitan Borough Council,http://www.sandwell.gov.uk/info/200202/performance_and_spending/1079/payments_over_500,01-Dec-2022,Housing & Assets Total,SHARP,Corporate Management,2306.04,Corporate Management,2323P09_CR00725,08280972
Sandwell Metropolitan Borough Council,http://www.sandwell.gov.uk/info/200202/performance_and_spending/1079/payments_over_500,16-Dec-2022,Housing & Assets Total,TPAS LTD,Corporate Management,796.00,Corporate Management,2323P09_CR00726,49982
